Workbook

Sheet FF.12-Nota
C1: Modèles avec Mises en formes Conditionnelles Excel .xlsm | S1: FF-12 | X1: VERSION E
S3: Restauration avec MFC | X3: dernière mise à jour : 17 Février 2022
C4: ="Page "&_xlfn.SHEET()&" sur "&_xlfn.SHEETS() -> Page 1 sur 8 | S4: Mise en Forme Conditionnelle | X4: annule ou remplace les versions précédentes
S5: FF = Fiche de Fabrication
AB7: ❶
B8: Union des Professionnels de la Restauration Territoriale - UPRT.FR
B9: l’uprt la diffusion des savoirs – le partage des savoirs faire
B11: Madame....Monsieur..Bonjour...et ...Bienvenue dans nos documents
B13: C’est prouvé : donner rendrait plus heureux que recevoir
B14: Partager son savoir-faire ses savoirs d’expérience
B16: La conception de documents (qui suppose une diversité de connaissances) est chronophage
B17: et les recherches sur le net le sont également
B19: Nous vous proposons dans ce document
B20: des savoirs d'expérience,que nous avons acquis tout au long de notre parcours professionnel en restauration collective
B21: des liens et des savoirs de passionnés qui les ont diffusés sur le net
B22: (nous citons toujours leurs Auteurs et ajoutons des liens qui permettent de retrouver leurs documents)
B24: CONTENU DU CLASSEUR
C26: FF.12.Foies.de.volaille.VQRit
C27: FF.12.Modèle.vierge
C28: Vocabulaire
B29: u | C29: Poids fruits et légumes
C30: ORT
C31: utilitaires
B34: Nous vous en souhaitons une bonne utilisation - peut être trouverez vous une "pépite" qui vous rendra service...c'est là tout notre souhait
B36: Transmettez vos savoirs faire peu importe qui les récupèrent ; pourvu qu'un plus grand nombre puisse en bénéficier.
B37: Joël LEBOUCHER …Octobre 2019
B41: Comment utiliser les tableaux : | AB41: ❷
C42: vous pouvez dupliquer la feuille mais vous pouvez aussi copier / coller des petits tableaux dans vos feuilles . Comment
C43: choisissez le tableau qui vous convient
C44: comment le copier : en cliquant sur la cellule | L44: ICI | M44: en descendant et en vous déportant vers la droite vous sélectionnez le document
C45: clic droit : Copier….allez sur votre feuille excel puis clic droit Coller
C46: des colonnes et les lignes ont été fusionnées pour cela
C48: ICI | D48: colonnes fusionnées | L48: Avant de saisir quoi que ce soit dans une cellule cliquez dessus pour vérifier qu'il n'y ait pas de formule | Q48: les valeurs #DIV/0! indiquent seulement que les recettes sont "vierges" sur la feuille de saisie | V48: POUR LES FICHES RECETTES A LA PORTION
C49: lignes fusionnées | V49: l'Auteur a prévu la recette pour
V50: 100 | W50: Adultes
V51: Nb de portions Si vous estimez que les grammages sont trop ou pas assez copieux pour vos convives : modifiez les prévisions de l'Auteur
Q52: si vous n'utilisez pas toutes les lignes vous pouvez masquer cette valeur par une couleur de police BLANC
L53: Pour imprimer : sélectionnez les recettes qui vous conviennent : définir la zone d'impression -Mise à l'échelle : Ajuster la feuille à 1 page
V55: Pas assez copieux : diminuez le nombre de portions cela augmentera les grammages à la portion
V58: Trop copieux : augmentez le nombre de portions cela diminuera les grammages à la portion
B63: Quelques polices de caractères utilisées | Q63: Quelques formats utilisés
C64: Arial | E64: Calibri | G64: Rockwell | J64: Verdana | Q64: 15.5 > | S64: 15.5 | U64: 15.5 | W64: 15.5
C65: ARIAL | E65: CALIBRI | G65: ROCKWELL | J65: VERDANA | Q65: personnalisés > | S65: 0.000" Kg" | U65: 0" %" | W65: Monétaire
B67: Autres polices à découvrir
C68: ARIAL NARROW Arial Narrow | H68: COMIC SANS MF Comic Sans MF | P68: GIL SANS MT Gill Sans MT | V68: PALATINO LINOTYPE Palatino Linotype
C69: TAHOMA Tahoma | H69: TIMES NEW ROMAN Times New Roman | P69: TRBUCHET MF Trébuchet MF | V69: TW CEN MT Tw Cen MT
C70: VRINDA Vrinda
B71: Une numérotation avec couleur de police modifiable
C72: ❶ | D72: ❷ | E72: ❸ | F72: ❹ | G72: ❺ | H72: ❻ | I72: ❼ | J72: ❽ | K72: ❾ | L72: ❿ | M72: ⓫ | N72: ⓬ | O72: ⓭ | P72: ⓮ | Q72: ⓯ | R72: ⓰ | S72: ⓱ | T72: ⓲ | U72: ⓳ | V72: ⓴
C74: ❶ | D74: ❷ | E74: ❸ | F74: ❹ | G74: ❺ | H74: ❻ | I74: ❼ | J74: ❽ | K74: ❾ | L74: ❿ | M74: ⓫ | N74: ⓬ | O74: ⓭ | P74: ⓮ | Q74: ⓯ | R74: ⓰ | S74: ⓱ | T74: ⓲ | U74: ⓳ | V74: ⓴
C76: 1 | D76: 2 | E76: 3 | F76: 4 | G76: 5 | H76: 6 | I76: 7 | J76: 8 | K76: 9 | L76: 10 | M76: 11 | N76: 12 | O76: 13 | P76: 14 | Q76: 15 | R76: 16 | S76: 17 | T76: 18 | U76: 19 | V76: 20
C78: 1 | D78: 2 | E78: 3 | F78: 4 | G78: 5 | H78: 6 | I78: 7 | J78: 8 | K78: 9 | L78: 10 | M78: 11 | N78: 12 | O78: 13 | P78: 14 | Q78: 15 | R78: 16 | S78: 17 | T78: 18 | U78: 19 | V78: 20
C80: ⓪①②③④⑤⑥⑦⑧⑨⑩⑪⑫⑬⑭⑮⑯⑰⑱⑲⑳ | L80: couleur de police blanc sur fond gris à modifier pour vos documents
C81: cliquez sur la colonne C et sélectionnez dans la barre le numéro qui vous intéresse
C82: ⓿❶❷❸❹❺❻❼❽❾❿⓫⓬⓭⓮⓯⓰⓱⓲⓳⓴
B84: des caractères spéciaux
B85: ! | C85: " | D85: # | E85: $ | F85: % | G85: & | H85: @ | I85: ‰ | J85: ≈ | K85: ± | L85: » | M85: ¼ | N85: ½ | O85: ¾ | P85: ø | Q85: ► | R85: ◄ | S85: ▲ | T85: ▼ | U85: Φ
C87: 0.00\ " cm³" | F87: Format | cellule | personnalisé | 0" cm³"
C88: 3
H89: ou copier-coller | N89: X | O89: t | P89: u
C90: le ² se fait en tapant alt+0178 | H90: m² | I90: M² | J90: cm² | K90: ² | N90: Police Wingdings 3
C91: le ³ se fait en tapant alt+0179 | H91: m³ | I91: M³ | J91: cm³ | K91: ³ | N91: Z | O91: q | P91: p
C95: lien > | D95: Les unités pifométriques
C97: Je remercie chaleureusement les internautes passionnés qui élaborent et proposent des formules et fonctions imbriquées
C98: Quelques sites Excel pour vous aider à créer vos documents
B100: Transmettez votre savoir et votre savoir faire peu importe qui le récupère; pourvu qu'un plus grand nombre puisse en bénéficier.
B101: Joël LEBOUCHER …Octobre 2015
B102: un lien rompu ou devenu obsolète…..pas de panique…Google saura vous retrouver un document équivalent
B104: Site à découvrir
B105: SPACE pour Suivi et Programmation d'ACtivités en Equipe est un outil destiné à permettre un suivi exhaustif des activités d'une équipe.
A106: lien > | C106: Fil de discussion dédié à ce programme
A107: > | B107: http://www.excel-downloads.com/remository/Download/Professionnels/Planification-et-gestion-de-projets/SPACE.html

Sheet Nota.Worksheet
B3: Si vous souhaitez faire du copier/ coller sur un document avec macro procédez comme suit :
B4: Cliquez sur l'onglet de la feuille
B5: clic droit : Visualiser le code
B6: dans worksheet copiez le code et collez le sur le bloc note de votre PC
B7: retournez dans worksheet et supprimez le code
B8: Fermez votre document puis ouvrez le
B9: travaillez dans votre document
B10: lorsque vous avez fini recopiez le code collé sur le bloc note
B11: pour le coller à son emplacement dans worksheet
B12: enregistrez
B13: verifiez que l'enregistrement soit bien au format Excel,xlsm
B14: ou dans un document supportant les macros
B21: Private Sub Worksheet_SelectionChange(ByVal Target As Range)
B22: Calculate
B23: End Sub

Sheet FF.12.Foies.de.volaille.VQRit
A1: 3 | B1: 8 | C1: 8 | D1: 8 | E1: 8 | F1: 24 | G1: 8 | H1: 8 | I1: 10 | J1: 10 | K1: 10 | L1: 8 | M1: 9 | N1: 9
A2: ICI
A3: =C3 -> Gâteau de foies de volaille avec La vache qui rit Formule Plus | B3: ① | C3: Gâteau de foies de volaille avec La vache qui rit Formule Plus | M3: CODE
B5: ❼ l'Auteur a prévu la recette pour | G5: ❽ Vous voulez la dupliquer pour: | I5: 100 | J5: =D7 -> convives | K5: La vache qui rit Formule Plus | Q5: RÉCAP Mode d'emploi des fiches FF.2.B.1 | U5: ① Catégorie
B6: =SUM(E10:E38) -> 1.53 | C6: Kg | D6: 10 | E6: portion | H6: Coût portion | I6: =IF(M40="","",M40/I5) -> 0.228 | J6: =SUM(I10:I38) -> 15.3 | K6: =NOW() -> 2022-02-17T17:21:40.060 | Q6: Saisissez vos valeurs dans les cellules fond jaune ou ivoire | U6: Copiez / Collez colonnes de K à N
D7: convives | E7: =(B6/D6)*1000 -> 153 | H7: ⑩ Coefficient vente | I7: 2.5 | M7: Coût portion avec coeff. | N7: =IF(M40="","",I6*I7) -> 0.57 | U7: PATISSERIES | Z7: R255-V204 B153
B8: ❸ | C8: ❹ | D8: ❺ | J8: ⑥ | L8: ⑨ | Q8: à saisir
B9: Nb d'unités | C9: Quoi | D9: Poids Unitaire | E9: ④ Total Auteur | F9: ❷ Denrées | G9: UNITE | H9: Quoi | I9: BRUT | J9: % Perte | K9: NET à servir | L9: Prix U HT | M9: Prix T HT | N9: Pour 1Kg Brut | Q9: ❶ Nom du plat et | U9: ENTRÉES | Z9: R51-V153 B102 | AF9: Pour l'identification des fiches vous avez le choix
D10: 0.4 | E10: =IF(ISBLANK(B10),D10,B10*D10) -> 0.4 | F10: Foies de volaille | G10: =IF(ISBLANK(B10),0,(B10/D6)*I5) -> 0 | H10: =C10 -> 0 | I10: =(E10/D6)*I5 -> 4 | J10: 20 | K10: =IF(E10=0,0,((I10-(I10*J10%)))) -> 3.2 | L10: 1 | M10: =L10*I10 -> 4 | N10: =IF(J6=0,0,(I10/J6)) -> 0.2614379085 | Q10: ① Catégorie Exemple SF SAUCE FROIDE DE BASE - | AF10: entre la numérotation et l'identification Alpha
D11: 0.01 | E11: =IF(ISBLANK(B11),D11,B11*D11) -> 0.01 | F11: Echalotes | G11: =IF(ISBLANK(B11),0,(B11/D6)*I5) -> 0 | H11: =C11 -> 0 | I11: =(E11/D6)*I5 -> 0.1 | J11: 2 | K11: =IF(E11=0,0,((I11-(I11*J11%)))) -> 0.098 | L11: 1 | M11: =L11*I11 -> 0.1 | N11: =IF(J6=0,0,(I11/J6)) -> 0.006535947712 | Q11: AGNEAU : "Sauté d'agneau sans os- épaule - collier" - | U11: POISSONS | Z11: R50-V204 B255 | AG11: N°2 | AI11: A
D12: 0.01 | E12: =IF(ISBLANK(B12),D12,B12*D12) -> 0.01 | F12: Persil | G12: =IF(ISBLANK(B12),0,(B12/D6)*I5) -> 0 | H12: =C12 -> 0 | I12: =(E12/D6)*I5 -> 0.1 | J12: 5 | K12: =IF(E12=0,0,((I12-(I12*J12%)))) -> 0.095 | L12: 1 | M12: =L12*I12 -> 0.1 | N12: =IF(J6=0,0,(I12/J6)) -> 0.006535947712 | Q12: Choux Fleur- Pâte à choux etc….. | AF12: Alpha vous permet de vous constituer des répertoires Alphabétiques
D13: 0.2 | E13: =IF(ISBLANK(B13),D13,B13*D13) -> 0.2 | F13: La vache qui rit® Formule Plus | G13: =IF(ISBLANK(B13),0,(B13/D6)*I5) -> 0 | H13: =C13 -> 0 | I13: =(E13/D6)*I5 -> 2 | K13: =IF(E13=0,0,((I13-(I13*J13%)))) -> 2 | L13: 1 | M13: =L13*I13 -> 2 | N13: =IF(J6=0,0,(I13/J6)) -> 0.1307189542 | Q13: OU Famille : Hors d'œuvre - Plat - Légume - Dessert | U13: VOLAILLES | Z13: R255-V204 B0 | AF13: et de regrouper des préparations pour vous permettre de faire des assemblages
D14: 0.1 | E14: =IF(ISBLANK(B14),D14,B14*D14) -> 0.1 | F14: Béchamel | G14: =IF(ISBLANK(B14),0,(B14/D6)*I5) -> 0 | H14: =C14 -> 0 | I14: =(E14/D6)*I5 -> 1 | K14: =IF(E14=0,0,((I14-(I14*J14%)))) -> 1 | L14: 2.5 | M14: =L14*I14 -> 2.5 | N14: =IF(J6=0,0,(I14/J6)) -> 0.06535947712 | Q14: ❷ Liste des Denrées
E15: =IF(ISBLANK(B15),D15,B15*D15) -> 0 | F15: (sur une base d'une liaison de | G15: =IF(ISBLANK(B15),0,(B15/D6)*I5) -> 0 | H15: =C15 -> 0 | I15: =(E15/D6)*I5 -> 0 | K15: =IF(E15=0,0,((I15-(I15*J15%)))) -> 0 | M15: =L15*I15 -> 0 | N15: =IF(J6=0,0,(I15/J6)) -> 0 | Q15: ❸ Nb d'unités | U15: VIANDES | Z15: R255-V0 B0 | AF15: le répertoire vous permettre d'aller chercher des"postits"
E16: =IF(ISBLANK(B16),D16,B16*D16) -> 0 | F16: 100 g de beurre et farine au litre) | G16: =IF(ISBLANK(B16),0,(B16/D6)*I5) -> 0 | H16: =C16 -> 0 | I16: =(E16/D6)*I5 -> 0 | K16: =IF(E16=0,0,((I16-(I16*J16%)))) -> 0 | M16: =L16*I16 -> 0 | N16: =IF(J6=0,0,(I16/J6)) -> 0 | AF16: de les assembler sur une fiche pour faire des recettes à multiples préparations
E17: =IF(ISBLANK(B17),D17,B17*D17) -> 0 | G17: =IF(ISBLANK(B17),0,(B17/D6)*I5) -> 0 | H17: =C17 -> 0 | I17: =(E17/D6)*I5 -> 0 | K17: =IF(E17=0,0,((I17-(I17*J17%)))) -> 0 | M17: =L17*I17 -> 0 | N17: =IF(J6=0,0,(I17/J6)) -> 0 | Q17: ❹ Quoi | U17: PLATS COMPLETS | Z17: R255-V102 B0 | AF17: pourquoi ré-écrire X fois une recette si cette recette vous convient.
B18: 4 | C18: œufs | D18: 0.05 | E18: =IF(ISBLANK(B18),D18,B18*D18) -> 0.2 | F18: œufs | G18: =IF(ISBLANK(B18),0,(B18/D6)*I5) -> 40 | H18: =C18 -> œufs | I18: =(E18/D6)*I5 -> 2 | K18: =IF(E18=0,0,((I18-(I18*J18%)))) -> 2 | L18: 0.3 | M18: =L18*I18 -> 0.6 | N18: =IF(J6=0,0,(I18/J6)) -> 0.1307189542 | Q18: ❺ Poids Unitaire | AF18: il suffit de l'ajouter sur votre document et d'en déterminer les quantités à fabriquer
D19: 0.03 | E19: =IF(ISBLANK(B19),D19,B19*D19) -> 0.03 | F19: Huile olive | G19: =IF(ISBLANK(B19),0,(B19/D6)*I5) -> 0 | H19: =C19 -> 0 | I19: =(E19/D6)*I5 -> 0.3 | K19: =IF(E19=0,0,((I19-(I19*J19%)))) -> 0.3 | M19: =L19*I19 -> 0 | N19: =IF(J6=0,0,(I19/J6)) -> 0.01960784314 | U19: ACCOMPAGNEMENTS | Z19: R0-V255 B0
D20: 0.05 | E20: =IF(ISBLANK(B20),D20,B20*D20) -> 0.05 | F20: Oignons | G20: =IF(ISBLANK(B20),0,(B20/D6)*I5) -> 0 | H20: =C20 -> 0 | I20: =(E20/D6)*I5 -> 0.5 | J20: 20 | K20: =IF(E20=0,0,((I20-(I20*J20%)))) -> 0.4 | L20: 1 | M20: =L20*I20 -> 0.5 | N20: =IF(J6=0,0,(I20/J6)) -> 0.03267973856 | Q20: Exemple : | AF20: Si vous souhaitez faire du copier/ coller sur un document avec macro procédez comme suit :
D21: 0.5 | E21: =IF(ISBLANK(B21),D21,B21*D21) -> 0.5 | F21: Coulis de tomate | G21: =IF(ISBLANK(B21),0,(B21/D6)*I5) -> 0 | H21: =C21 -> 0 | I21: =(E21/D6)*I5 -> 5 | K21: =IF(E21=0,0,((I21-(I21*J21%)))) -> 5 | L21: 2.5 | M21: =L21*I21 -> 12.5 | N21: =IF(J6=0,0,(I21/J6)) -> 0.3267973856 | Q21: ❷ | R21: ❸ | S21: ❹ | U21: PREPARATIONS CHAUDES | Z21: R255-V204 B153 | AF21: Cliquez sur l'onglet de la feuille
D22: 0.01 | E22: =IF(ISBLANK(B22),D22,B22*D22) -> 0.01 | F22: Ail | G22: =IF(ISBLANK(B22),0,(B22/D6)*I5) -> 0 | H22: =C22 -> 0 | I22: =(E22/D6)*I5 -> 0.1 | J22: 2 | K22: =IF(E22=0,0,((I22-(I22*J22%)))) -> 0.098 | M22: =L22*I22 -> 0 | N22: =IF(J6=0,0,(I22/J6)) -> 0.006535947712 | Q22: Nb d'unités | R22: Quoi | S22: Poids Unitaire | AF22: clic droit : Visualiser le code
E23: =IF(ISBLANK(B23),D23,B23*D23) -> 0 | F23: Thym | G23: =IF(ISBLANK(B23),0,(B23/D6)*I5) -> 0 | H23: =C23 -> 0 | I23: =(E23/D6)*I5 -> 0 | K23: =IF(E23=0,0,((I23-(I23*J23%)))) -> 0 | M23: =L23*I23 -> 0 | N23: =IF(J6=0,0,(I23/J6)) -> 0 | U23: PLAT PRINCIPAL | Z23: R255-V0 B255 | AF23: dans worksheet copiez le code et collez le sur le bloc note de votre PC
B24: 20 | C24: olives | D24: 0.001 | E24: =IF(ISBLANK(B24),D24,B24*D24) -> 0.02 | F24: Olives noires | G24: =IF(ISBLANK(B24),0,(B24/D6)*I5) -> 200 | H24: =C24 -> olives | I24: =(E24/D6)*I5 -> 0.2 | K24: =IF(E24=0,0,((I24-(I24*J24%)))) -> 0.2 | L24: 2.5 | M24: =L24*I24 -> 0.5 | N24: =IF(J6=0,0,(I24/J6)) -> 0.01307189542 | Q24: 2 | R24: pommes | S24: 0.05 | AF24: retournez dans worksheet et supprimez le code
E25: =IF(ISBLANK(B25),D25,B25*D25) -> 0 | G25: =IF(ISBLANK(B25),0,(B25/D6)*I5) -> 0 | H25: =C25 -> 0 | I25: =(E25/D6)*I5 -> 0 | K25: =IF(E25=0,0,((I25-(I25*J25%)))) -> 0 | M25: =L25*I25 -> 0 | N25: =IF(J6=0,0,(I25/J6)) -> 0 | R25: œufs liquides | U25: CRUDITES | Z25: R0-V128 B0 | AF25: Fermez votre document puis ouvrez le
E26: =IF(ISBLANK(B26),D26,B26*D26) -> 0 | G26: =IF(ISBLANK(B26),0,(B26/D6)*I5) -> 0 | H26: =C26 -> 0 | I26: =(E26/D6)*I5 -> 0 | K26: =IF(E26=0,0,((I26-(I26*J26%)))) -> 0 | M26: =L26*I26 -> 0 | N26: =IF(J6=0,0,(I26/J6)) -> 0 | S26: 0.15 | AF26: travaillez dans votre document
E27: =IF(ISBLANK(B27),D27,B27*D27) -> 0 | G27: =IF(ISBLANK(B27),0,(B27/D6)*I5) -> 0 | H27: =C27 -> 0 | I27: =(E27/D6)*I5 -> 0 | K27: =IF(E27=0,0,((I27-(I27*J27%)))) -> 0 | M27: =L27*I27 -> 0 | N27: =IF(J6=0,0,(I27/J6)) -> 0 | R27: jaunes d'œufs | U27: CUIDITES | Z27: R153-V204 B0 | AF27: lorsque vous avez fini recopiez le code collé sur le bloc note
E28: =IF(ISBLANK(B28),D28,B28*D28) -> 0 | G28: =IF(ISBLANK(B28),0,(B28/D6)*I5) -> 0 | H28: =C28 -> 0 | I28: =(E28/D6)*I5 -> 0 | K28: =IF(E28=0,0,((I28-(I28*J28%)))) -> 0 | M28: =L28*I28 -> 0 | N28: =IF(J6=0,0,(I28/J6)) -> 0 | Q28: 3 | R28: jaunes | S28: 0.02 | AF28: pour le coller à son emplacement dans worksheet
E29: =IF(ISBLANK(B29),D29,B29*D29) -> 0 | G29: =IF(ISBLANK(B29),0,(B29/D6)*I5) -> 0 | H29: =C29 -> 0 | I29: =(E29/D6)*I5 -> 0 | K29: =IF(E29=0,0,((I29-(I29*J29%)))) -> 0 | M29: =L29*I29 -> 0 | N29: =IF(J6=0,0,(I29/J6)) -> 0 | R29: œufs coquille | U29: FECULENTS | Z29: R153-V51 B0 | AF29: enregistrez
E30: =IF(ISBLANK(B30),D30,B30*D30) -> 0 | G30: =IF(ISBLANK(B30),0,(B30/D6)*I5) -> 0 | H30: =C30 -> 0 | I30: =(E30/D6)*I5 -> 0 | K30: =IF(E30=0,0,((I30-(I30*J30%)))) -> 0 | M30: =L30*I30 -> 0 | N30: =IF(J6=0,0,(I30/J6)) -> 0 | Q30: 5 | R30: œufs | S30: 0.05 | AF30: verifiez que l'enregistrement soit bien au format Excel,xlsm
E31: =IF(ISBLANK(B31),D31,B31*D31) -> 0 | G31: =IF(ISBLANK(B31),0,(B31/D6)*I5) -> 0 | H31: =C31 -> 0 | I31: =(E31/D6)*I5 -> 0 | K31: =IF(E31=0,0,((I31-(I31*J31%)))) -> 0 | M31: =L31*I31 -> 0 | N31: =IF(J6=0,0,(I31/J6)) -> 0 | U31: COMPOSÉS VERTS | Z31: R0-V255 B0 | AF31: ou dans un document supportant les macros
E32: =IF(ISBLANK(B32),D32,B32*D32) -> 0 | G32: =IF(ISBLANK(B32),0,(B32/D6)*I5) -> 0 | H32: =C32 -> 0 | I32: =(E32/D6)*I5 -> 0 | K32: =IF(E32=0,0,((I32-(I32*J32%)))) -> 0 | M32: =L32*I32 -> 0 | N32: =IF(J6=0,0,(I32/J6)) -> 0 | Q32: ⑥ % Perte (facultatif)
E33: =IF(ISBLANK(B33),D33,B33*D33) -> 0 | G33: =IF(ISBLANK(B33),0,(B33/D6)*I5) -> 0 | H33: =C33 -> 0 | I33: =(E33/D6)*I5 -> 0 | K33: =IF(E33=0,0,((I33-(I33*J33%)))) -> 0 | M33: =L33*I33 -> 0 | N33: =IF(J6=0,0,(I33/J6)) -> 0 | U33: LAITAGES FROMAGES | Z33: R0-V0 B255
E34: =IF(ISBLANK(B34),D34,B34*D34) -> 0 | G34: =IF(ISBLANK(B34),0,(B34/D6)*I5) -> 0 | H34: =C34 -> 0 | I34: =(E34/D6)*I5 -> 0 | K34: =IF(E34=0,0,((I34-(I34*J34%)))) -> 0 | M34: =L34*I34 -> 0 | N34: =IF(J6=0,0,(I34/J6)) -> 0 | Q34: ❼ l'Auteur a prévu la recette pour
E35: =IF(ISBLANK(B35),D35,B35*D35) -> 0 | G35: =IF(ISBLANK(B35),0,(B35/D6)*I5) -> 0 | H35: =C35 -> 0 | I35: =(E35/D6)*I5 -> 0 | K35: =IF(E35=0,0,((I35-(I35*J35%)))) -> 0 | M35: =L35*I35 -> 0 | N35: =IF(J6=0,0,(I35/J6)) -> 0 | U35: LAITAGES +FECULENTS | Z35: R153-V204 B255
E36: =IF(ISBLANK(B36),D36,B36*D36) -> 0 | G36: =IF(ISBLANK(B36),0,(B36/D6)*I5) -> 0 | H36: =C36 -> 0 | I36: =(E36/D6)*I5 -> 0 | K36: =IF(E36=0,0,((I36-(I36*J36%)))) -> 0 | M36: =L36*I36 -> 0 | N36: =IF(J6=0,0,(I36/J6)) -> 0 | Q36: ❽ vos Effectifs
E37: =IF(ISBLANK(B37),D37,B37*D37) -> 0 | G37: =IF(ISBLANK(B37),0,(B37/D6)*I5) -> 0 | H37: =C37 -> 0 | I37: =(E37/D6)*I5 -> 0 | K37: =IF(E37=0,0,((I37-(I37*J37%)))) -> 0 | M37: =L37*I37 -> 0 | N37: =IF(J6=0,0,(I37/J6)) -> 0 | U37: DESSERTS | Z37: R0-V102 B204
E38: =IF(ISBLANK(B38),D38,B38*D38) -> 0 | G38: =IF(ISBLANK(B38),0,(B38/D6)*I5) -> 0 | H38: =C38 -> 0 | I38: =(E38/D6)*I5 -> 0 | K38: =IF(E38=0,0,((I38-(I38*J38%)))) -> 0 | M38: =L38*I38 -> 0 | N38: =IF(J6=0,0,(I38/J6)) -> 0 | Q38: ⑨ Prx au Kg ou Unité | AF38: Private Sub Worksheet_SelectionChange(ByVal Target As Range)
D39: 0 | G39: 0 | H39: 0 | J39: 0 | M39: =L39*I39 -> 0 | N39: =IF(ISERROR(M39/M41),"",M39/M41) ->  | U39: GOUTER | Z39: R204-V153 B255 | AF39: Calculate
B40: =SUM(B10:B39) -> 24 | E40: =SUM(E10:E38) -> 1.53 | G40: 0 | H40: =SUM(H10:H39) -> 0 | I40: =SUM(I10:I38) -> 15.3 | J40: =I40-K40 -> 0.909 | K40: =SUM(K10:K38) -> 14.391 | M40: =SUM(M10:M38) -> 22.8 | N40: =SUM(N10:N39) -> 1 | Q40: ⑩ Coefficient vente | AF40: End Sub
B41: Nb d'unités | C41: Quoi | D41: Poids Unitaire | E41: ④ Total Auteur | G41: UNITE | H41: Poids recette | I41: BRUT arrondi | J41: Perte | K41: NET à servir | M41: Prix T HT | N41: Pour 1Kg Brut | Q41: ⑪ lien Internet | U41: 10 | V41: 8 | W41: 9 | X41: 9 | Y41: largeurs de colonnes
B42: Auteur de la recette et références bibliographiques | Q42: 16 | R42: =CELL("largeur",R42) -> 16 | S42: =CELL("largeur",S42) -> 16
B43: ⑪ lien Internet | D43: https://www.belfoodservice.be/recettes.php
B44: =CELL("filename",A3) -> E:\0-UPRT\1-UPRT.FR-SITE-WEB\ff-fiches-fabrications\ff-fiches-fabrication-maj-08-2020\[OK.Modèle.fiche.F.B2.2022-25.lignes.avec.MFC.xlsm]FF.12.Foies.de.volaille.VQRit | Q44: Aide à la décision
B45: 0 | C45: Technique : | I45: Durée préparation | J45: _:_ | M45: Durée de cuisson | Q45: Nb de portions | R45: Poids portion | S45: Total
B46: =IF(ISBLANK(C46),"",LARGE(B45:B45,1)+1) ->  | H46: Produit à promouvoir | Q46: 150 | R46: 250 | S46: =(R46*Q46)/1000 -> 37.5
B47: =IF(ISBLANK(C47),"",LARGE(B45:B46,1)+1) -> 1 | C47: NUMÉROTATION AUTOMATIQUE | Q47: Saisissez vos valeurs dans les tableaux
B48: =IF(ISBLANK(C48),"",LARGE(B45:B47,1)+1) ->  | D48: si vous ne voulez pas de N° | Q48: Pourcentages Brut / Net et Net / Brut | R48: Brut | S48: NET ASSIETTE
B49: =IF(ISBLANK(C49),"",LARGE(B45:B48,1)+1) ->  | D49: saisissez du texte dans ces colonnes | R49: 200 | S49: 140
B50: =IF(ISBLANK(C50),"",LARGE(B45:B49,1)+1) ->  | R50: 30 | S50: 30
B51: =IF(ISBLANK(C51),"",LARGE(B45:B50,1)+1) ->  | R51: =IF(R49=0,0,((R49-(R49*R50%))))/1000 -> 0.14 | S51: =(S49/(100-S50)*100)/1000 -> 0.2
B52: =IF(ISBLANK(C52),"",LARGE(B45:B51,1)+1) -> 
B53: =IF(ISBLANK(C53),"",LARGE(B45:B52,1)+1) -> 
B54: =IF(ISBLANK(C54),"",LARGE(B45:B53,1)+1) -> 
B55: L'utilisation professionnelle des fiches vous engage à connaître la réglementation en matière d'hygiène et HACCP.Procédures non développées ici pour ne pas alourdir les documents
B56: 0 | C56: MISE EN PLACE DU POSTE DE TRAVAIL
B57: =IF(ISBLANK(C57),"",LARGE(B56:B56,1)+1) -> 1 | C57: tenue professionnelle de circonstance (charlotte-masque) | H57: =MAX(B57:B60)+1 -> 4 | I57: se laver les mains souvent - prévoir gants
B58: =IF(ISBLANK(C58),"",LARGE(B56:B57,1)+1) -> 2 | C58: verifier - bactéricide - esssuie mains - sacs poubelle | H58: =IF(ISBLANK(I58),"",LARGE(H57:H57,1)+1) -> 5 | I58: sélectionner le matériel nécessaire
B59: =IF(ISBLANK(C59),"",LARGE(B56:B58,1)+1) -> 3 | C59: vérifier températures - locaux et chambres froides | H59: =IF(ISBLANK(I59),"",LARGE(H57:H58,1)+1) -> 6 | I59: laver et désinfecter le matériel et le poste de travail
B60: =IF(ISBLANK(C60),"",LARGE(B56:B59,1)+1) ->  | D60: ORGANISATION RAISONNÉE DU TRAVAIL | H60: =IF(ISBLANK(I60),"",LARGE(H57:H59,1)+1) -> 7 | I60: en suivant les protocoles
B61: 0 | D61: Etape 1 | I61: =MAX(B61:B77) -> 11 | J61: Observations : | Q61: =LEFT(ADDRESS(1,COLUMN(),4),LEN(ADDRESS(1,COLUMN(),4))-1) -> Q | R61: =LEFT(ADDRESS(1,COLUMN(),4),LEN(ADDRESS(1,COLUMN(),4))-1) -> R | S61: =LEFT(ADDRESS(1,COLUMN(),4),LEN(ADDRESS(1,COLUMN(),4))-1) -> S | T61: < colonnes
B62: =IF(ISBLANK(C62),"",LARGE(B61:B61,1)+1) -> 1 | C62: Confectionner la sauce tomate : | I62: =IF(ISBLANK(J62),"",LARGE(I61:I61,1)+1) ->  | Q62: 0 | R62: MISE EN ŒUVRE
B63: =IF(ISBLANK(C63),"",LARGE(B61:B62,1)+1) -> 2 | C63: suer les oignons émincés à l'huile d'olive, | I63: =IF(ISBLANK(J63),"",LARGE(I61:I62,1)+1) ->  | Q63: =IF(ISBLANK(R63),"",LARGE(Q62:Q62,1)+1) -> 1 | R63: la numérotation est automatique
B64: =IF(ISBLANK(C64),"",LARGE(B61:B63,1)+1) -> 3 | C64: ajouter le coulis, l'ail et le thym. | I64: =IF(ISBLANK(J64),"",LARGE(I61:I63,1)+1) ->  | Q64: =IF(ISBLANK(R64),"",LARGE(Q62:Q63,1)+1) -> 2 | R64: lorsque vous saisissez du texte
B65: =IF(ISBLANK(C65),"",LARGE(B61:B64,1)+1) -> 4 | C65: Cuire environ 1/2 heure. | I65: =IF(ISBLANK(J65),"",LARGE(I61:I64,1)+1) ->  | Q65: =IF(ISBLANK(R65),"",LARGE(Q62:Q64,1)+1) -> 3 | R65: dans cette colonne R
B66: =IF(ISBLANK(C66),"",LARGE(B61:B65,1)+1) ->  | D66: En fonction des coulis, détendre avec de l'eau. | I66: =IF(ISBLANK(J66),"",LARGE(I61:I65,1)+1) ->  | Q66: =IF(ISBLANK(R66),"",LARGE(Q62:Q65,1)+1) ->  | S66: si vous ne voulez pas de numérotation
B67: =IF(ISBLANK(C67),"",LARGE(B61:B66,1)+1) -> 5 | C67: Mixer avec les olives pour la texture modifiée. | I67: =IF(ISBLANK(J67),"",LARGE(I61:I66,1)+1) ->  | Q67: =IF(ISBLANK(R67),"",LARGE(Q62:Q66,1)+1) ->  | S67: saisissez votre texte dans celle-ci colonne S pour l'exemple
B68: =IF(ISBLANK(C68),"",LARGE(B61:B67,1)+1) ->  | D68: Etape 2 | I68: =IF(ISBLANK(J68),"",LARGE(I61:I67,1)+1) -> 12 | J68: NUMÉROTATION AUTOMATIQUE | Q68: =IF(ISBLANK(R68),"",LARGE(Q62:Q67,1)+1) -> 4 | R68: formule utilisée :SI(ESTVIDE(R68);"";GRANDE.VALEUR(Q62:Q67;1)+1
B69: =IF(ISBLANK(C69),"",LARGE(B61:B68,1)+1) -> 6 | C69: Parer les foies puis les mixer avec les échalotes, le persil, | I69: =IF(ISBLANK(J69),"",LARGE(I61:I68,1)+1) ->  | K69: si vous ne voulez pas de N° | Q69: =IF(ISBLANK(R69),"",LARGE(Q62:Q68,1)+1) -> 
B70: =IF(ISBLANK(C70),"",LARGE(B61:B69,1)+1) -> 7 | C70: La vache qui rit® Formule Plus, la béchamel, l'ail et l'assaisonnement. | I70: =IF(ISBLANK(J70),"",LARGE(I61:I69,1)+1) ->  | K70: saisissez du texte dans ces colonnes
B71: =IF(ISBLANK(C71),"",LARGE(B61:B70,1)+1) -> 8 | C71: Incorporer les oeufs et mixer à nouveau. | I71: =IF(ISBLANK(J71),"",LARGE(I61:I70,1)+1) ->  | Q71: D'autres recettes sur le Net
B72: =IF(ISBLANK(C72),"",LARGE(B61:B71,1)+1) ->  | D72: Etape 3 | I72: =IF(ISBLANK(J72),"",LARGE(I61:I71,1)+1) -> 
B73: =IF(ISBLANK(C73),"",LARGE(B61:B72,1)+1) -> 9 | C73: Dresser dans des moules individuels ou dans une terrine. | I73: =IF(ISBLANK(J73),"",LARGE(I61:I72,1)+1) ->  | Q73: Les Recettes de Vache qui rit - 7
B74: =IF(ISBLANK(C74),"",LARGE(B61:B73,1)+1) -> 10 | C74: Cuire à couvert au four vapeur environ 12 minutes à 95°C. | I74: =IF(ISBLANK(J74),"",LARGE(I61:I73,1)+1) ->  | Q74: https://recettes.de/vache-qui-rit/7
B75: =IF(ISBLANK(C75),"",LARGE(B61:B74,1)+1) ->  | D75: Etape 4 | I75: =IF(ISBLANK(J75),"",LARGE(I61:I74,1)+1) -> 
B76: =IF(ISBLANK(C76),"",LARGE(B61:B75,1)+1) -> 11 | C76: Dresser avec la sauce tomate puis servir en décorant avec les olives | I76: =IF(ISBLANK(J76),"",LARGE(I61:I75,1)+1) ->  | Q76: quiche au saumon
B77: =IF(ISBLANK(C77),"",LARGE(B61:B76,1)+1) ->  | D77: pour la texture entière. | I77: =IF(ISBLANK(J77),"",LARGE(I61:I76,1)+1) ->  | Q77: https://www.yumpu.com/fr/document/view/2245108/livret-vop-mise-en-page-1-bel-food-service-catalogues-interactifs-/19
B78: Pour vérification : cocher - entourer - ou surligner les produits ou actions concernées | I78: =IF(ISBLANK(J78),"",LARGE(I61:I77,1)+1) -> 
B79: L'utilisation professionnelle de cette recette vous engage à connaître la réglementation en matière d'hygiène et HACCP. Procédures non développées ici pour ne pas alourdir la fiche technique | Q79: Tarte à la vache qui rit
Q80: http://www.paperblog.fr/4683938/tarte-a-la-vache-qui-rit/
B81: Conception 1998 Cuisine centrale de Clamart Joël Leboucher - Adaptation 2009 Cuisine Centrale de Rochefort sur mer sur un document avec macro..de D.DEMILLY
B82: Adresse PC | D82: =CELL("filename",A1) -> E:\0-UPRT\1-UPRT.FR-SITE-WEB\ff-fiches-fabrications\ff-fiches-fabrication-maj-08-2020\[OK.Modèle.fiche.F.B2.2022-25.lignes.avec.MFC.xlsm]FF.12.Foies.de.volaille.VQRit | Q82: La Vache qui rit Canada
B83: Mise à jour | D83: du 21-02-2017- Annule et remplace les versions précédentes | Q83: https://www.facebook.com/LaVachequiritCanada/
B84: Adaptation 2022: Joël Leboucher..UPRT "Union des Personnels de la Restauration Territoriale" membre du réseau RESTAU'CO
B85: 8 | C85: 8 | D85: 8 | E85: 8 | F85: 24 | G85: 8 | H85: 8 | I85: 10 | J85: 10 | K85: 10 | L85: 8 | M85: 9 | N85: 9 | O85: largeurs de colonnes manuel | Q85: Purée à la Vache qui rit®
B86: =CELL("largeur",B86) -> 8 | C86: =CELL("largeur",C86) -> 8 | D86: =CELL("largeur",D86) -> 8 | E86: =CELL("largeur",E86) -> 8 | F86: =CELL("largeur",F86) -> 24 | G86: =CELL("largeur",G86) -> 8 | H86: =CELL("largeur",H86) -> 8 | I86: =CELL("largeur",I86) -> 10 | J86: =CELL("largeur",J86) -> 10 | K86: =CELL("largeur",K86) -> 10 | L86: =CELL("largeur",L86) -> 8 | M86: =CELL("largeur",M86) -> 9 | N86: =CELL("largeur",N86) -> 9 | O86: largeurs de colonnes contrôle par formule | Q86: http://unsiphonfonfon.ladymilonguera.fr/2012/09/puree-vache-qui-rit/ | AM86: FIN
Q87: http://unsiphonfonfon.ladymilonguera.fr/

Sheet FF.12.Modèle.vierge
A1: 3 | B1: 8 | C1: 8 | D1: 8 | E1: 8 | F1: 24 | G1: 8 | H1: 8 | I1: 10 | J1: 10 | K1: 10 | L1: 8 | M1: 9 | N1: 9
A2: ICI
A3: =C3 -> NOM DE LA RECETTE | B3: ① | C3: NOM DE LA RECETTE | M3: CODE
B5: ❼ l'Auteur a prévu la recette pour | G5: ❽ Vous voulez la dupliquer pour: | I5: 200 | J5: =D7 -> convives | K5: ① Catégorie | Q5: RÉCAP Mode d'emploi des fiches FF.2.B.1 | U5: ① Catégorie
B6: =SUM(E10:E38) -> 0 | C6: Kg | D6: 600 | E6: portion | H6: Coût portion | I6: =IF(M40="","",M40/I5) -> 0 | J6: =SUM(I10:I38) -> 0 | K6: =NOW() -> 2022-02-17T17:21:40.060 | Q6: Saisissez vos valeurs dans les cellules fond jaune ou ivoire | U6: Copiez / Collez colonnes de K à N
D7: convives | E7: =(B6/D6)*1000 -> 0 | H7: ⑩ Coefficient vente | I7: 2.5 | M7: Coût portion avec coeff. | N7: =IF(M40="","",I6*I7) -> 0 | U7: PATISSERIES | Z7: R255-V204 B153
B8: ❸ | C8: ❹ | D8: ❺ | J8: ⑥ | L8: ⑨ | Q8: à saisir
B9: Nb d'unités | C9: Quoi | D9: Poids Unitaire | E9: ④ Total Auteur | F9: ❷ Denrées | G9: UNITE | H9: Quoi | I9: BRUT | J9: % Perte | K9: NET à servir | L9: Prix U HT | M9: Prix T HT | N9: Pour 1Kg Brut | Q9: ❶ Nom du plat et | U9: ENTRÉES | Z9: R51-V153 B102 | AF9: Pour l'identification des fiches vous avez le choix
E10: =IF(ISBLANK(B10),D10,B10*D10) -> 0 | G10: =IF(ISBLANK(B10),0,(B10/D6)*I5) -> 0 | H10: =C10 -> 0 | I10: =(E10/D6)*I5 -> 0 | K10: =IF(E10=0,0,((I10-(I10*J10%)))) -> 0 | L10: 1 | M10: =L10*I10 -> 0 | N10: =IF(J6=0,0,(I10/J6)) -> 0 | Q10: ① Catégorie Exemple SF SAUCE FROIDE DE BASE - | AF10: entre la numérotation et l'identification Alpha
E11: =IF(ISBLANK(B11),D11,B11*D11) -> 0 | G11: =IF(ISBLANK(B11),0,(B11/D6)*I5) -> 0 | H11: =C11 -> 0 | I11: =(E11/D6)*I5 -> 0 | K11: =IF(E11=0,0,((I11-(I11*J11%)))) -> 0 | M11: =L11*I11 -> 0 | N11: =IF(J6=0,0,(I11/J6)) -> 0 | Q11: AGNEAU : "Sauté d'agneau sans os- épaule - collier" - | U11: POISSONS | Z11: R50-V204 B255 | AG11: N°2 | AI11: A
E12: =IF(ISBLANK(B12),D12,B12*D12) -> 0 | G12: =IF(ISBLANK(B12),0,(B12/D6)*I5) -> 0 | H12: =C12 -> 0 | I12: =(E12/D6)*I5 -> 0 | K12: =IF(E12=0,0,((I12-(I12*J12%)))) -> 0 | M12: =L12*I12 -> 0 | N12: =IF(J6=0,0,(I12/J6)) -> 0 | Q12: Choux Fleur- Pâte à choux etc….. | AF12: Alpha vous permet de vous constituer des répertoires Alphabétiques
E13: =IF(ISBLANK(B13),D13,B13*D13) -> 0 | G13: =IF(ISBLANK(B13),0,(B13/D6)*I5) -> 0 | H13: =C13 -> 0 | I13: =(E13/D6)*I5 -> 0 | K13: =IF(E13=0,0,((I13-(I13*J13%)))) -> 0 | M13: =L13*I13 -> 0 | N13: =IF(J6=0,0,(I13/J6)) -> 0 | Q13: OU Famille : Hors d'œuvre - Plat - Légume - Dessert | U13: VOLAILLES | Z13: R255-V204 B0 | AF13: et de regrouper des préparations pour vous permettre de faire des assemblages
E14: =IF(ISBLANK(B14),D14,B14*D14) -> 0 | G14: =IF(ISBLANK(B14),0,(B14/D6)*I5) -> 0 | H14: =C14 -> 0 | I14: =(E14/D6)*I5 -> 0 | K14: =IF(E14=0,0,((I14-(I14*J14%)))) -> 0 | M14: =L14*I14 -> 0 | N14: =IF(J6=0,0,(I14/J6)) -> 0 | Q14: ❷ Liste des Denrées
E15: =IF(ISBLANK(B15),D15,B15*D15) -> 0 | G15: =IF(ISBLANK(B15),0,(B15/D6)*I5) -> 0 | H15: =C15 -> 0 | I15: =(E15/D6)*I5 -> 0 | K15: =IF(E15=0,0,((I15-(I15*J15%)))) -> 0 | M15: =L15*I15 -> 0 | N15: =IF(J6=0,0,(I15/J6)) -> 0 | Q15: ❸ Nb d'unités | U15: VIANDES | Z15: R255-V0 B0 | AF15: le répertoire vous permettre d'aller chercher des"postits"
E16: =IF(ISBLANK(B16),D16,B16*D16) -> 0 | G16: =IF(ISBLANK(B16),0,(B16/D6)*I5) -> 0 | H16: =C16 -> 0 | I16: =(E16/D6)*I5 -> 0 | K16: =IF(E16=0,0,((I16-(I16*J16%)))) -> 0 | M16: =L16*I16 -> 0 | N16: =IF(J6=0,0,(I16/J6)) -> 0 | AF16: de les assembler sur une fiche pour faire des recettes à multiples préparations
E17: =IF(ISBLANK(B17),D17,B17*D17) -> 0 | G17: =IF(ISBLANK(B17),0,(B17/D6)*I5) -> 0 | H17: =C17 -> 0 | I17: =(E17/D6)*I5 -> 0 | K17: =IF(E17=0,0,((I17-(I17*J17%)))) -> 0 | M17: =L17*I17 -> 0 | N17: =IF(J6=0,0,(I17/J6)) -> 0 | Q17: ❹ Quoi | U17: PLATS COMPLETS | Z17: R255-V102 B0 | AF17: pourquoi ré-écrire X fois une recette si cette recette vous convient.
E18: =IF(ISBLANK(B18),D18,B18*D18) -> 0 | G18: =IF(ISBLANK(B18),0,(B18/D6)*I5) -> 0 | H18: =C18 -> 0 | I18: =(E18/D6)*I5 -> 0 | K18: =IF(E18=0,0,((I18-(I18*J18%)))) -> 0 | M18: =L18*I18 -> 0 | N18: =IF(J6=0,0,(I18/J6)) -> 0 | Q18: ❺ Poids Unitaire | AF18: il suffit de l'ajouter sur votre document et d'en déterminer les quantités à fabriquer
E19: =IF(ISBLANK(B19),D19,B19*D19) -> 0 | G19: =IF(ISBLANK(B19),0,(B19/D6)*I5) -> 0 | H19: =C19 -> 0 | I19: =(E19/D6)*I5 -> 0 | K19: =IF(E19=0,0,((I19-(I19*J19%)))) -> 0 | M19: =L19*I19 -> 0 | N19: =IF(J6=0,0,(I19/J6)) -> 0 | U19: ACCOMPAGNEMENTS | Z19: R0-V255 B0
E20: =IF(ISBLANK(B20),D20,B20*D20) -> 0 | G20: =IF(ISBLANK(B20),0,(B20/D6)*I5) -> 0 | H20: =C20 -> 0 | I20: =(E20/D6)*I5 -> 0 | K20: =IF(E20=0,0,((I20-(I20*J20%)))) -> 0 | M20: =L20*I20 -> 0 | N20: =IF(J6=0,0,(I20/J6)) -> 0 | Q20: Exemple : | AF20: Si vous souhaitez faire du copier/ coller sur un document avec macro procédez comme suit :
E21: =IF(ISBLANK(B21),D21,B21*D21) -> 0 | G21: =IF(ISBLANK(B21),0,(B21/D6)*I5) -> 0 | H21: =C21 -> 0 | I21: =(E21/D6)*I5 -> 0 | K21: =IF(E21=0,0,((I21-(I21*J21%)))) -> 0 | M21: =L21*I21 -> 0 | N21: =IF(J6=0,0,(I21/J6)) -> 0 | Q21: ❷ | R21: ❸ | S21: ❹ | U21: PREPARATIONS CHAUDES | Z21: R255-V204 B153 | AF21: Cliquez sur l'onglet de la feuille
E22: =IF(ISBLANK(B22),D22,B22*D22) -> 0 | G22: =IF(ISBLANK(B22),0,(B22/D6)*I5) -> 0 | H22: =C22 -> 0 | I22: =(E22/D6)*I5 -> 0 | K22: =IF(E22=0,0,((I22-(I22*J22%)))) -> 0 | M22: =L22*I22 -> 0 | N22: =IF(J6=0,0,(I22/J6)) -> 0 | Q22: Nb d'unités | R22: Quoi | S22: Poids Unitaire | AF22: clic droit : Visualiser le code
E23: =IF(ISBLANK(B23),D23,B23*D23) -> 0 | G23: =IF(ISBLANK(B23),0,(B23/D6)*I5) -> 0 | H23: =C23 -> 0 | I23: =(E23/D6)*I5 -> 0 | K23: =IF(E23=0,0,((I23-(I23*J23%)))) -> 0 | M23: =L23*I23 -> 0 | N23: =IF(J6=0,0,(I23/J6)) -> 0 | U23: PLAT PRINCIPAL | Z23: R255-V0 B255 | AF23: dans worksheet copiez le code et collez le sur le bloc note de votre PC
E24: =IF(ISBLANK(B24),D24,B24*D24) -> 0 | G24: =IF(ISBLANK(B24),0,(B24/D6)*I5) -> 0 | H24: =C24 -> 0 | I24: =(E24/D6)*I5 -> 0 | K24: =IF(E24=0,0,((I24-(I24*J24%)))) -> 0 | M24: =L24*I24 -> 0 | N24: =IF(J6=0,0,(I24/J6)) -> 0 | Q24: 2 | R24: pommes | S24: 0.05 | AF24: retournez dans worksheet et supprimez le code
E25: =IF(ISBLANK(B25),D25,B25*D25) -> 0 | G25: =IF(ISBLANK(B25),0,(B25/D6)*I5) -> 0 | H25: =C25 -> 0 | I25: =(E25/D6)*I5 -> 0 | K25: =IF(E25=0,0,((I25-(I25*J25%)))) -> 0 | M25: =L25*I25 -> 0 | N25: =IF(J6=0,0,(I25/J6)) -> 0 | R25: œufs liquides | U25: CRUDITES | Z25: R0-V128 B0 | AF25: Fermez votre document puis ouvrez le
E26: =IF(ISBLANK(B26),D26,B26*D26) -> 0 | G26: =IF(ISBLANK(B26),0,(B26/D6)*I5) -> 0 | H26: =C26 -> 0 | I26: =(E26/D6)*I5 -> 0 | K26: =IF(E26=0,0,((I26-(I26*J26%)))) -> 0 | M26: =L26*I26 -> 0 | N26: =IF(J6=0,0,(I26/J6)) -> 0 | S26: 0.15 | AF26: travaillez dans votre document
E27: =IF(ISBLANK(B27),D27,B27*D27) -> 0 | G27: =IF(ISBLANK(B27),0,(B27/D6)*I5) -> 0 | H27: =C27 -> 0 | I27: =(E27/D6)*I5 -> 0 | K27: =IF(E27=0,0,((I27-(I27*J27%)))) -> 0 | M27: =L27*I27 -> 0 | N27: =IF(J6=0,0,(I27/J6)) -> 0 | R27: jaunes d'œufs | U27: CUIDITES | Z27: R153-V204 B0 | AF27: lorsque vous avez fini recopiez le code collé sur le bloc note
E28: =IF(ISBLANK(B28),D28,B28*D28) -> 0 | G28: =IF(ISBLANK(B28),0,(B28/D6)*I5) -> 0 | H28: =C28 -> 0 | I28: =(E28/D6)*I5 -> 0 | K28: =IF(E28=0,0,((I28-(I28*J28%)))) -> 0 | M28: =L28*I28 -> 0 | N28: =IF(J6=0,0,(I28/J6)) -> 0 | Q28: 3 | R28: jaunes | S28: 0.02 | AF28: pour le coller à son emplacement dans worksheet
E29: =IF(ISBLANK(B29),D29,B29*D29) -> 0 | G29: =IF(ISBLANK(B29),0,(B29/D6)*I5) -> 0 | H29: =C29 -> 0 | I29: =(E29/D6)*I5 -> 0 | K29: =IF(E29=0,0,((I29-(I29*J29%)))) -> 0 | M29: =L29*I29 -> 0 | N29: =IF(J6=0,0,(I29/J6)) -> 0 | R29: œufs coquille | U29: FECULENTS | Z29: R153-V51 B0 | AF29: enregistrez
E30: =IF(ISBLANK(B30),D30,B30*D30) -> 0 | G30: =IF(ISBLANK(B30),0,(B30/D6)*I5) -> 0 | H30: =C30 -> 0 | I30: =(E30/D6)*I5 -> 0 | K30: =IF(E30=0,0,((I30-(I30*J30%)))) -> 0 | M30: =L30*I30 -> 0 | N30: =IF(J6=0,0,(I30/J6)) -> 0 | Q30: 5 | R30: œufs | S30: 0.05 | AF30: verifiez que l'enregistrement soit bien au format Excel,xlsm
E31: =IF(ISBLANK(B31),D31,B31*D31) -> 0 | G31: =IF(ISBLANK(B31),0,(B31/D6)*I5) -> 0 | H31: =C31 -> 0 | I31: =(E31/D6)*I5 -> 0 | K31: =IF(E31=0,0,((I31-(I31*J31%)))) -> 0 | M31: =L31*I31 -> 0 | N31: =IF(J6=0,0,(I31/J6)) -> 0 | U31: COMPOSÉS VERTS | Z31: R0-V255 B0 | AF31: ou dans un document supportant les macros
E32: =IF(ISBLANK(B32),D32,B32*D32) -> 0 | G32: =IF(ISBLANK(B32),0,(B32/D6)*I5) -> 0 | H32: =C32 -> 0 | I32: =(E32/D6)*I5 -> 0 | K32: =IF(E32=0,0,((I32-(I32*J32%)))) -> 0 | M32: =L32*I32 -> 0 | N32: =IF(J6=0,0,(I32/J6)) -> 0 | Q32: ⑥ % Perte (facultatif)
E33: =IF(ISBLANK(B33),D33,B33*D33) -> 0 | G33: =IF(ISBLANK(B33),0,(B33/D6)*I5) -> 0 | H33: =C33 -> 0 | I33: =(E33/D6)*I5 -> 0 | K33: =IF(E33=0,0,((I33-(I33*J33%)))) -> 0 | M33: =L33*I33 -> 0 | N33: =IF(J6=0,0,(I33/J6)) -> 0 | U33: LAITAGES FROMAGES | Z33: R0-V0 B255
E34: =IF(ISBLANK(B34),D34,B34*D34) -> 0 | G34: =IF(ISBLANK(B34),0,(B34/D6)*I5) -> 0 | H34: =C34 -> 0 | I34: =(E34/D6)*I5 -> 0 | K34: =IF(E34=0,0,((I34-(I34*J34%)))) -> 0 | M34: =L34*I34 -> 0 | N34: =IF(J6=0,0,(I34/J6)) -> 0 | Q34: ❼ l'Auteur a prévu la recette pour
E35: =IF(ISBLANK(B35),D35,B35*D35) -> 0 | G35: =IF(ISBLANK(B35),0,(B35/D6)*I5) -> 0 | H35: =C35 -> 0 | I35: =(E35/D6)*I5 -> 0 | K35: =IF(E35=0,0,((I35-(I35*J35%)))) -> 0 | M35: =L35*I35 -> 0 | N35: =IF(J6=0,0,(I35/J6)) -> 0 | U35: LAITAGES +FECULENTS | Z35: R153-V204 B255
E36: =IF(ISBLANK(B36),D36,B36*D36) -> 0 | G36: =IF(ISBLANK(B36),0,(B36/D6)*I5) -> 0 | H36: =C36 -> 0 | I36: =(E36/D6)*I5 -> 0 | K36: =IF(E36=0,0,((I36-(I36*J36%)))) -> 0 | M36: =L36*I36 -> 0 | N36: =IF(J6=0,0,(I36/J6)) -> 0 | Q36: ❽ vos Effectifs
E37: =IF(ISBLANK(B37),D37,B37*D37) -> 0 | G37: =IF(ISBLANK(B37),0,(B37/D6)*I5) -> 0 | H37: =C37 -> 0 | I37: =(E37/D6)*I5 -> 0 | K37: =IF(E37=0,0,((I37-(I37*J37%)))) -> 0 | M37: =L37*I37 -> 0 | N37: =IF(J6=0,0,(I37/J6)) -> 0 | U37: DESSERTS | Z37: R0-V102 B204
E38: =IF(ISBLANK(B38),D38,B38*D38) -> 0 | G38: =IF(ISBLANK(B38),0,(B38/D6)*I5) -> 0 | H38: =C38 -> 0 | I38: =(E38/D6)*I5 -> 0 | K38: =IF(E38=0,0,((I38-(I38*J38%)))) -> 0 | M38: =L38*I38 -> 0 | N38: =IF(J6=0,0,(I38/J6)) -> 0 | Q38: ⑨ Prx au Kg ou Unité | AF38: Private Sub Worksheet_SelectionChange(ByVal Target As Range)
D39: 0 | G39: 0 | H39: 0 | J39: 0 | M39: =L39*I39 -> 0 | N39: =IF(ISERROR(M39/M41),"",M39/M41) ->  | U39: GOUTER | Z39: R204-V153 B255 | AF39: Calculate
B40: =SUM(B10:B39) -> 0 | E40: =SUM(E10:E38) -> 0 | G40: 0 | H40: =SUM(H10:H39) -> 0 | I40: =SUM(I10:I38) -> 0 | J40: =I40-K40 -> 0 | K40: =SUM(K10:K38) -> 0 | M40: =SUM(M10:M38) -> 0 | N40: =SUM(N10:N39) -> 0 | Q40: ⑩ Coefficient vente | AF40: End Sub
B41: Nb d'unités | C41: Quoi | D41: Poids Unitaire | E41: ④ Total Auteur | G41: UNITE | H41: Poids recette | I41: BRUT arrondi | J41: Perte | K41: NET à servir | M41: Prix T HT | N41: Pour 1Kg Brut | Q41: ⑪ lien Internet | U41: 10 | V41: 8 | W41: 9 | X41: 9 | Y41: largeurs de colonnes
B42: Auteur de la recette et références bibliographiques | Q42: 16 | R42: =CELL("largeur",R42) -> 16 | S42: =CELL("largeur",S42) -> 16
B43: ⑪ lien Internet
B44: =CELL("filename",A3) -> E:\0-UPRT\1-UPRT.FR-SITE-WEB\ff-fiches-fabrications\ff-fiches-fabrication-maj-08-2020\[OK.Modèle.fiche.F.B2.2022-25.lignes.avec.MFC.xlsm]FF.12.Modèle.vierge | Q44: Aide à la décision
B45: 0 | C45: Technique : | I45: Durée préparation | J45: _:_ | M45: Durée de cuisson | Q45: Nb de portions | R45: Poids portion | S45: Total
B46: =IF(ISBLANK(C46),"",LARGE(B45:B45,1)+1) ->  | H46: Infos : | Q46: 150 | R46: 250 | S46: =(R46*Q46)/1000 -> 37.5
B47: =IF(ISBLANK(C47),"",LARGE(B45:B46,1)+1) -> 1 | C47: NUMÉROTATION AUTOMATIQUE | Q47: Saisissez vos valeurs dans les tableaux
B48: =IF(ISBLANK(C48),"",LARGE(B45:B47,1)+1) ->  | D48: si vous ne voulez pas de N° | Q48: Pourcentages Brut / Net et Net / Brut | R48: Brut | S48: NET ASSIETTE
B49: =IF(ISBLANK(C49),"",LARGE(B45:B48,1)+1) ->  | D49: saisissez du texte dans ces colonnes | R49: 200 | S49: 140
B50: =IF(ISBLANK(C50),"",LARGE(B45:B49,1)+1) ->  | R50: 30 | S50: 30
B51: =IF(ISBLANK(C51),"",LARGE(B45:B50,1)+1) ->  | R51: =IF(R49=0,0,((R49-(R49*R50%))))/1000 -> 0.14 | S51: =(S49/(100-S50)*100)/1000 -> 0.2
B52: =IF(ISBLANK(C52),"",LARGE(B45:B51,1)+1) ->  | H52: Auteurs
B53: =IF(ISBLANK(C53),"",LARGE(B45:B52,1)+1) -> 
B54: =IF(ISBLANK(C54),"",LARGE(B45:B53,1)+1) -> 
B55: L'utilisation professionnelle des fiches vous engage à connaître la réglementation en matière d'hygiène et HACCP.Procédures non développées ici pour ne pas alourdir les documents
B56: 0 | C56: MISE EN PLACE DU POSTE DE TRAVAIL
B57: =IF(ISBLANK(C57),"",LARGE(B56:B56,1)+1) -> 1 | C57: tenue professionnelle de circonstance (charlotte-masque) | H57: =MAX(B57:B60)+1 -> 4 | I57: se laver les mains souvent - prévoir gants
B58: =IF(ISBLANK(C58),"",LARGE(B56:B57,1)+1) -> 2 | C58: verifier - bactéricide - esssuie mains - sacs poubelle | H58: =IF(ISBLANK(I58),"",LARGE(H57:H57,1)+1) -> 5 | I58: sélectionner le matériel nécessaire
B59: =IF(ISBLANK(C59),"",LARGE(B56:B58,1)+1) -> 3 | C59: vérifier températures - locaux et chambres froides | H59: =IF(ISBLANK(I59),"",LARGE(H57:H58,1)+1) -> 6 | I59: laver et désinfecter le matériel et le poste de travail
B60: =IF(ISBLANK(C60),"",LARGE(B56:B59,1)+1) ->  | H60: =IF(ISBLANK(I60),"",LARGE(H57:H59,1)+1) -> 7 | I60: en suivant les protocoles
B61: 0 | C61: ORGANISATION RAISONNÉE DU TRAVAIL | I61: =MAX(B61:B77) -> 1 | J61: Observations : | Q61: =LEFT(ADDRESS(1,COLUMN(),4),LEN(ADDRESS(1,COLUMN(),4))-1) -> Q | R61: =LEFT(ADDRESS(1,COLUMN(),4),LEN(ADDRESS(1,COLUMN(),4))-1) -> R | S61: =LEFT(ADDRESS(1,COLUMN(),4),LEN(ADDRESS(1,COLUMN(),4))-1) -> S | T61: < colonnes
B62: =IF(ISBLANK(C62),"",LARGE(B61:B61,1)+1) ->  | I62: =IF(ISBLANK(J62),"",LARGE(I61:I61,1)+1) ->  | Q62: 0 | R62: MISE EN ŒUVRE
B63: =IF(ISBLANK(C63),"",LARGE(B61:B62,1)+1) ->  | I63: =IF(ISBLANK(J63),"",LARGE(I61:I62,1)+1) ->  | Q63: =IF(ISBLANK(R63),"",LARGE(Q62:Q62,1)+1) -> 1 | R63: la numérotation est automatique
B64: =IF(ISBLANK(C64),"",LARGE(B61:B63,1)+1) ->  | I64: =IF(ISBLANK(J64),"",LARGE(I61:I63,1)+1) ->  | Q64: =IF(ISBLANK(R64),"",LARGE(Q62:Q63,1)+1) -> 2 | R64: lorsque vous saisissez du texte
B65: =IF(ISBLANK(C65),"",LARGE(B61:B64,1)+1) -> 1 | C65: NUMÉROTATION AUTOMATIQUE | I65: =IF(ISBLANK(J65),"",LARGE(I61:I64,1)+1) ->  | Q65: =IF(ISBLANK(R65),"",LARGE(Q62:Q64,1)+1) -> 3 | R65: dans cette colonne R
B66: =IF(ISBLANK(C66),"",LARGE(B61:B65,1)+1) ->  | D66: si vous ne voulez pas de N° | I66: =IF(ISBLANK(J66),"",LARGE(I61:I65,1)+1) ->  | Q66: =IF(ISBLANK(R66),"",LARGE(Q62:Q65,1)+1) ->  | S66: si vous ne voulez pas de numérotation
B67: =IF(ISBLANK(C67),"",LARGE(B61:B66,1)+1) ->  | D67: saisissez du texte dans ces colonnes | I67: =IF(ISBLANK(J67),"",LARGE(I61:I66,1)+1) ->  | Q67: =IF(ISBLANK(R67),"",LARGE(Q62:Q66,1)+1) ->  | S67: saisissez votre texte dans celle-ci colonne S pour l'exemple
B68: =IF(ISBLANK(C68),"",LARGE(B61:B67,1)+1) ->  | I68: =IF(ISBLANK(J68),"",LARGE(I61:I67,1)+1) -> 2 | J68: NUMÉROTATION AUTOMATIQUE | Q68: =IF(ISBLANK(R68),"",LARGE(Q62:Q67,1)+1) -> 4 | R68: formule utilisée :SI(ESTVIDE(R68);"";GRANDE.VALEUR(Q62:Q67;1)+1
B69: =IF(ISBLANK(C69),"",LARGE(B61:B68,1)+1) ->  | I69: =IF(ISBLANK(J69),"",LARGE(I61:I68,1)+1) ->  | K69: si vous ne voulez pas de N° | Q69: =IF(ISBLANK(R69),"",LARGE(Q62:Q68,1)+1) -> 
B70: =IF(ISBLANK(C70),"",LARGE(B61:B69,1)+1) ->  | I70: =IF(ISBLANK(J70),"",LARGE(I61:I69,1)+1) ->  | K70: saisissez du texte dans ces colonnes
B71: =IF(ISBLANK(C71),"",LARGE(B61:B70,1)+1) ->  | I71: =IF(ISBLANK(J71),"",LARGE(I61:I70,1)+1) -> 
B72: =IF(ISBLANK(C72),"",LARGE(B61:B71,1)+1) ->  | I72: =IF(ISBLANK(J72),"",LARGE(I61:I71,1)+1) -> 
B73: =IF(ISBLANK(C73),"",LARGE(B61:B72,1)+1) ->  | I73: =IF(ISBLANK(J73),"",LARGE(I61:I72,1)+1) -> 
B74: =IF(ISBLANK(C74),"",LARGE(B61:B73,1)+1) ->  | I74: =IF(ISBLANK(J74),"",LARGE(I61:I73,1)+1) -> 
B75: =IF(ISBLANK(C75),"",LARGE(B61:B74,1)+1) ->  | I75: =IF(ISBLANK(J75),"",LARGE(I61:I74,1)+1) -> 
B76: =IF(ISBLANK(C76),"",LARGE(B61:B75,1)+1) ->  | I76: =IF(ISBLANK(J76),"",LARGE(I61:I75,1)+1) -> 
B77: =IF(ISBLANK(C77),"",LARGE(B61:B76,1)+1) ->  | I77: =IF(ISBLANK(J77),"",LARGE(I61:I76,1)+1) -> 
B78: Pour vérification : cocher - entourer - ou surligner les produits ou actions concernées | I78: =IF(ISBLANK(J78),"",LARGE(I61:I77,1)+1) -> 
B79: L'utilisation professionnelle de cette recette vous engage à connaître la réglementation en matière d'hygiène et HACCP. Procédures non développées ici pour ne pas alourdir la fiche technique
B81: Conception 1998 Cuisine centrale de Clamart Joël Leboucher - Adaptation 2009 Cuisine Centrale de Rochefort sur mer sur un document avec macro..de D.DEMILLY
B82: Adresse PC | D82: =CELL("filename",A1) -> E:\0-UPRT\1-UPRT.FR-SITE-WEB\ff-fiches-fabrications\ff-fiches-fabrication-maj-08-2020\[OK.Modèle.fiche.F.B2.2022-25.lignes.avec.MFC.xlsm]FF.12.Modèle.vierge
B83: Mise à jour | D83: du 21-02-2017- Annule et remplace les versions précédentes
B84: Adaptation 2022 Joël Leboucher..UPRT "Union des Personnels de la Restauration Territoriale" membre du réseau RESTAU'CO
B85: 8 | C85: 8 | D85: 8 | E85: 8 | F85: 24 | G85: 8 | H85: 8 | I85: 10 | J85: 10 | K85: 10 | L85: 8 | M85: 9 | N85: 9 | O85: largeurs de colonnes manuel
B86: =CELL("largeur",B86) -> 8 | C86: =CELL("largeur",C86) -> 8 | D86: =CELL("largeur",D86) -> 8 | E86: =CELL("largeur",E86) -> 8 | F86: =CELL("largeur",F86) -> 24 | G86: =CELL("largeur",G86) -> 8 | H86: =CELL("largeur",H86) -> 8 | I86: =CELL("largeur",I86) -> 10 | J86: =CELL("largeur",J86) -> 10 | K86: =CELL("largeur",K86) -> 10 | L86: =CELL("largeur",L86) -> 8 | M86: =CELL("largeur",M86) -> 9 | N86: =CELL("largeur",N86) -> 9 | O86: largeurs de colonnes contrôle par formule | AM86: FIN

Sheet Vocabulaire
B1: Mise à jour du 2 Décembre 2021
W2: VOCABULAIRE PROFESSIONNEL un verbe…une action | AP2: Le vocabulaire professionnel en pâtisserie
B3: VOCABULAIRE PROFESSIONNEL " CUISINE DE COMPOSITION" | L3: VOCABULAIRE PROFESSIONNEL "La CUISINE DE REFERENCE" Michel MAINCENT | W3: En complément vous avez des liens en bas de page | AH3: Quelques verbes d'action complémentaires
C4: A | E4: E | G4: P | I4: R | M4: A | O4: D | Q4: H | S4: R | W4: A | Y4: D | AA4: F | AC4: M | AE4: R | AG4: T | AH4: 1 | AI4: accomplir | AK4: =AH59+1 -> 57 | AL4: générer | AO4: Lien > | AP4: http://www.juliemyrtille.com/lexique_du_patissier/
B5: 1 | C5: Abaisser la temp. à coeur | D5: =B22+1 -> 16 | E5: Egrener | F5: =D26+1 -> 32 | G5: Parfumer | H5: =F24+1 -> 51 | I5: Respecter le délai de 2 H | L5: 1 | M5: Abaisser | N5: =L52+1 -> 46 | O5: Dépouiller | P5: =N52+1 -> 91 | Q5: Habiller | R5: =P52+1 -> 130 | S5: Réduire | V5: 1 | W5: Abaisser | X5: =V62+1 -> 56 | Y5: Dauber | Z5: =X63+1 -> 113 | AA5: Façonner | AB5: =Z62+1 -> 163 | AC5: Macérer | AD5: =AB62+1 -> 217 | AE5: Rabattre | AF5: =AD57+1 -> 268 | AG5: Tabler | AH5: =LARGE(AH4:AH4,1)+1 -> 2 | AI5: acheter | AK5: =LARGE(AK4:AK4,1)+1 -> 58 | AL5: gérer | AP5: A
B6: =LARGE(B5:B5,1)+1 -> 2 | C6: Accompagner | D6: =LARGE(D5:D5,1)+1 -> 17 | E6: Eliminer | F6: =LARGE(F5:F5,1)+1 -> 33 | G6: Parsemer | H6: =LARGE(H5:H5,1)+1 -> 52 | I6: Retirer | L6: =LARGE(L5:L5,1)+1 -> 2 | M6: Abricoter | N6: =LARGE(N5:N5,1)+1 -> 47 | O6: Dérober | P6: =LARGE(P5:P5,1)+1 -> 92 | Q6: Hacher | R6: =LARGE(R5:R5,1)+1 -> 131 | S6: Relever | V6: =LARGE(V5:V5,1)+1 -> 2 | W6: Abaisser la temp. à coeur | X6: =LARGE(X5:X5,1)+1 -> 57 | Y6: Décanter | Z6: =LARGE(Z5:Z5,1)+1 -> 114 | AA6: Faire bouillir | AB6: =LARGE(AB5:AB5,1)+1 -> 164 | AC6: Maintenir en temp. sup à 63° | AD6: =LARGE(AD5:AD5,1)+1 -> 218 | AE6: Raccourcir | AF6: =LARGE(AF5:AF5,1)+1 -> 269 | AG6: Tailler | AH6: =LARGE(AH4:AH5,1)+1 -> 3 | AI6: achever | AK6: =LARGE(AK4:AK5,1)+1 -> 59 | AL6: identifier | AP6: Abaisse : morceau de pâte que l’on étale au rouleau à une épaisseur voulue
B7: =LARGE(B5:B6,1)+1 -> 3 | C7: Additionner | D7: =LARGE(D5:D6,1)+1 -> 18 | E7: Enfourner | F7: =LARGE(F5:F6,1)+1 -> 34 | G7: Peler | H7: =LARGE(H5:H6,1)+1 -> 53 | I7: Retourner | L7: =LARGE(L5:L6,1)+1 -> 3 | M7: Arroser | N7: =LARGE(N5:N6,1)+1 -> 48 | O7: Désosser | P7: =LARGE(P5:P6,1)+1 -> 93 | Q7: Historier | R7: =LARGE(R5:R6,1)+1 -> 132 | S7: Remonter | V7: =LARGE(V5:V6,1)+1 -> 3 | W7: Abricoter | X7: =LARGE(X5:X6,1)+1 -> 58 | Y7: Décercler | Z7: =LARGE(Z5:Z6,1)+1 -> 115 | AA7: Farcir | AB7: =LARGE(AB5:AB6,1)+1 -> 165 | AC7: Manchonner | AD7: =LARGE(AD5:AD6,1)+1 -> 219 | AE7: Rafraîchir | AF7: =LARGE(AF5:AF6,1)+1 -> 270 | AG7: Tamiser | AH7: =LARGE(AH4:AH6,1)+1 -> 4 | AI7: activer | AK7: =LARGE(AK4:AK6,1)+1 -> 60 | AL7: imaginer | AP7: Abaisser : étaler une pâte au rouleau à une épaisseur voulue.
B8: =LARGE(B5:B7,1)+1 -> 4 | C8: Adjoindre | D8: =LARGE(D5:D7,1)+1 -> 19 | E8: Enfourner | F8: =LARGE(F5:F7,1)+1 -> 35 | G8: Porter à ébullition | H8: =LARGE(H5:H7,1)+1 -> 54 | I8: Rincer | L8: =LARGE(L5:L7,1)+1 -> 4 | M8: Assaisonner | N8: =LARGE(N5:N7,1)+1 -> 49 | O8: Dessécher | Q8: I | R8: =LARGE(R5:R7,1)+1 -> 133 | S8: Revenir | V8: =LARGE(V5:V7,1)+1 -> 4 | W8: Accoler | X8: =LARGE(X5:X7,1)+1 -> 59 | Y8: Décorer | Z8: =LARGE(Z5:Z7,1)+1 -> 116 | AA8: Farder | AB8: =LARGE(AB5:AB7,1)+1 -> 166 | AC8: Manier | AD8: =LARGE(AD5:AD7,1)+1 -> 220 | AE8: Raidir | AF8: =LARGE(AF5:AF7,1)+1 -> 271 | AG8: Tamponner | AH8: =LARGE(AH4:AH7,1)+1 -> 5 | AI8: agrandir | AK8: =LARGE(AK4:AK7,1)+1 -> 61 | AL8: inscrire | AP8: Abricoter : étendre une confiture d’abricot à l’aide d’un pinceau sur un entremets, sur une tarte ou une préparation pour la rendre brillante et la protéger en surface en limitant les risques de dessèchement et de brunissement enzymatique.
B9: =LARGE(B5:B8,1)+1 -> 5 | C9: Agir rapidement | D9: =LARGE(D5:D8,1)+1 -> 20 | E9: Etaler | F9: =LARGE(F5:F8,1)+1 -> 36 | G9: Préchauffer | I9: S | M9: B | N9: =LARGE(N5:N8,1)+1 -> 50 | O9: Détendre | P9: =LARGE(P5:P8,1)+1 -> 94 | Q9: Inciser | R9: =LARGE(R5:R8,1)+1 -> 134 | S9: Rissoler | V9: =LARGE(V5:V8,1)+1 -> 5 | W9: Accompagner | X9: =LARGE(X5:X8,1)+1 -> 60 | Y9: Décortiquer | Z9: =LARGE(Z5:Z8,1)+1 -> 117 | AA9: Fariner | AB9: =LARGE(AB5:AB8,1)+1 -> 167 | AC9: Manipuler | AD9: =LARGE(AD5:AD8,1)+1 -> 221 | AE9: Rassir | AF9: =LARGE(AF5:AF8,1)+1 -> 272 | AG9: Tapisser | AH9: =LARGE(AH4:AH8,1)+1 -> 6 | AI9: ajuster | AK9: =LARGE(AK4:AK8,1)+1 -> 62 | AL9: insérer | AP9: Accoler : réunir, rassembler deux ou plusieurs éléments pour constituer un gâteau, un élément de fabrication ou autre.
B10: =LARGE(B5:B9,1)+1 -> 6 | C10: Ajouter | E10: F | F10: =LARGE(F5:F9,1)+1 -> 37 | G10: Prélever | H10: =LARGE(H5:H9,1)+1 -> 55 | I10: Saupoudrer | L10: =LARGE(L5:L9,1)+1 -> 5 | M10: Barder | N10: =LARGE(N5:N9,1)+1 -> 51 | O10: Dorer | Q10: L | R10: =LARGE(R5:R9,1)+1 -> 135 | S10: Rompre | V10: =LARGE(V5:V9,1)+1 -> 6 | W10: Additionner | X10: =LARGE(X5:X9,1)+1 -> 61 | Y10: Décuire | Z10: =LARGE(Z5:Z9,1)+1 -> 118 | AA10: Festonner | AB10: =LARGE(AB5:AB9,1)+1 -> 168 | AC10: Marbrer | AD10: =LARGE(AD5:AD9,1)+1 -> 222 | AE10: Rayer | AF10: =LARGE(AF5:AF9,1)+1 -> 273 | AG10: Terminer | AH10: =LARGE(AH4:AH9,1)+1 -> 7 | AI10: améliorer | AK10: =LARGE(AK4:AK9,1)+1 -> 63 | AL10: inspecter | AP10: Appareil : mélange de différentes substances alimentaires entrant dans la composition d’une préparation de pâtisserie.
B11: =LARGE(B5:B10,1)+1 -> 7 | C11: Aplatir | D11: =LARGE(D5:D10,1)+1 -> 21 | E11: Faire bouillir | F11: =LARGE(F5:F10,1)+1 -> 38 | G11: Préparer | H11: =LARGE(H5:H10,1)+1 -> 56 | I11: Servir | L11: =LARGE(L5:L10,1)+1 -> 6 | M11: Beurrer | N11: =LARGE(N5:N10,1)+1 -> 52 | O11: Dresser | P11: =LARGE(P5:P10,1)+1 -> 95 | Q11: Lier | R11: =LARGE(R5:R10,1)+1 -> 136 | S11: Rôtir | V11: =LARGE(V5:V10,1)+1 -> 7 | W11: Adjoindre | X11: =LARGE(X5:X10,1)+1 -> 62 | Y11: Déffilandrer | Z11: =LARGE(Z5:Z10,1)+1 -> 119 | AA11: Fileter | AB11: =LARGE(AB5:AB10,1)+1 -> 169 | AC11: Mariner | AD11: =LARGE(AD5:AD10,1)+1 -> 223 | AE11: Réaliser | AF11: =LARGE(AF5:AF10,1)+1 -> 274 | AG11: Tomber | AH11: =LARGE(AH4:AH10,1)+1 -> 8 | AI11: aménager | AK11: =LARGE(AK4:AK10,1)+1 -> 64 | AL11: installer | AP11: Apprêt : technique survenant après le façonnage d’une pâte levée fermentée (pain, brioche…), pour assurer le développement des pièces par la fermentation avant la cuisson.
C12: B | E12: G | F12: =LARGE(F5:F11,1)+1 -> 39 | G12: Protéger | H12: =LARGE(H5:H11,1)+1 -> 57 | I12: Snacker | L12: =LARGE(L5:L11,1)+1 -> 7 | M12: Blanchir | O12: E | P12: =LARGE(P5:P11,1)+1 -> 96 | Q12: Limoner | S12: S | V12: =LARGE(V5:V11,1)+1 -> 8 | W12: Agir rapidement | X12: =LARGE(X5:X11,1)+1 -> 63 | Y12: Déglacer | Z12: =LARGE(Z5:Z11,1)+1 -> 120 | AA12: Fixer | AB12: =LARGE(AB5:AB11,1)+1 -> 170 | AC12: Marquer | AD12: =LARGE(AD5:AD11,1)+1 -> 224 | AE12: Réchauffer en moins d'1 H | AF12: =LARGE(AF5:AF11,1)+1 -> 275 | AG12: Torréfier | AH12: =LARGE(AH4:AH11,1)+1 -> 9 | AI12: analyser | AK12: =LARGE(AK4:AK11,1)+1 -> 65 | AL12: inventer | AP12: Aromatiser : incorporer un arôme ou un aromate à une préparation.
B13: =LARGE(B5:B12,1)+1 -> 8 | C13: Battre | D13: =LARGE(D5:D12,1)+1 -> 22 | E13: Garnir | G13: R | I13: T | L13: =LARGE(L5:L12,1)+1 -> 8 | M13: Blondir | N13: =LARGE(N5:N12,1)+1 -> 53 | O13: Ebarber | P13: =LARGE(P5:P12,1)+1 -> 97 | Q13: Lisser | R13: =LARGE(R5:R12,1)+1 -> 137 | S13: Saigner | V13: =LARGE(V5:V12,1)+1 -> 9 | W13: Ajouter | X13: =LARGE(X5:X12,1)+1 -> 64 | Y13: Dégorger | Z13: =LARGE(Z5:Z12,1)+1 -> 121 | AA13: Flamber | AB13: =LARGE(AB5:AB12,1)+1 -> 171 | AC13: Masquer | AD13: =LARGE(AD5:AD12,1)+1 -> 225 | AE13: Recouvrir | AF13: =LARGE(AF5:AF12,1)+1 -> 276 | AG13: Tourer | AH13: =LARGE(AH4:AH12,1)+1 -> 10 | AI13: appliquer | AK13: =LARGE(AK4:AK12,1)+1 -> 66 | AL13: inventorier | AP13: B
C14: C | E14: I | F14: =LARGE(F5:F13,1)+1 -> 40 | G14: Réaliser | H14: =LARGE(H5:H13,1)+1 -> 58 | I14: Terminer | L14: =LARGE(L5:L13,1)+1 -> 9 | M14: Bouler | N14: =LARGE(N5:N13,1)+1 -> 54 | O14: Ecailler | P14: =LARGE(P5:P13,1)+1 -> 98 | Q14: Lustrer | R14: =LARGE(R5:R13,1)+1 -> 138 | S14: Saisir | V14: =LARGE(V5:V13,1)+1 -> 10 | W14: Aplatir | X14: =LARGE(X5:X13,1)+1 -> 65 | Y14: Dégourdir | Z14: =LARGE(Z5:Z13,1)+1 -> 122 | AA14: Flanquer | AB14: =LARGE(AB5:AB13,1)+1 -> 172 | AC14: Masser | AD14: =LARGE(AD5:AD13,1)+1 -> 226 | AE14: Rectifier | AF14: =LARGE(AF5:AF13,1)+1 -> 277 | AG14: Tourner | AH14: =LARGE(AH4:AH13,1)+1 -> 11 | AI14: approuver | AK14: =LARGE(AK4:AK13,1)+1 -> 67 | AL14: localiser | AP14: Beurrer :
B15: =LARGE(B5:B14,1)+1 -> 9 | C15: Chauffer | D15: =LARGE(D5:D14,1)+1 -> 23 | E15: Incorporer | F15: =LARGE(F5:F14,1)+1 -> 41 | G15: Réchauffer en moins d'1 H | I15: U | L15: =LARGE(L5:L14,1)+1 -> 10 | M15: Braiser | N15: =LARGE(N5:N14,1)+1 -> 55 | O15: Ecaler | Q15: M | R15: =LARGE(R5:R14,1)+1 -> 139 | S15: Sangler | V15: =LARGE(V5:V14,1)+1 -> 11 | W15: Aromatiser | X15: =LARGE(X5:X14,1)+1 -> 66 | Y15: Dégraisser | Z15: =LARGE(Z5:Z14,1)+1 -> 123 | AA15: Fleurer | AB15: =LARGE(AB5:AB14,1)+1 -> 173 | AC15: Mélanger | AD15: =LARGE(AD5:AD14,1)+1 -> 227 | AE15: Réduire | AF15: =LARGE(AF5:AF14,1)+1 -> 278 | AG15: Travailler | AH15: =LARGE(AH4:AH14,1)+1 -> 12 | AI15: archiver | AK15: =LARGE(AK4:AK14,1)+1 -> 68 | AL15: maintenir | AP15: – ajouter de beurre à une sauce
B16: =LARGE(B5:B15,1)+1 -> 10 | C16: Conserver | D16: =LARGE(D5:D15,1)+1 -> 24 | E16: Indications packaging | F16: =LARGE(F5:F15,1)+1 -> 42 | G16: Recouvrir | H16: =LARGE(H5:H15,1)+1 -> 59 | I16: Utiliser | L16: =LARGE(L5:L15,1)+1 -> 11 | M16: Brider | N16: =LARGE(N5:N15,1)+1 -> 56 | O16: Ecorcher | P16: =LARGE(P5:P15,1)+1 -> 99 | Q16: Macérer | R16: =LARGE(R5:R15,1)+1 -> 140 | S16: Sauter | V16: =LARGE(V5:V15,1)+1 -> 12 | W16: Arroser | X16: =LARGE(X5:X15,1)+1 -> 67 | Y16: Déhousser | Z16: =LARGE(Z5:Z15,1)+1 -> 124 | AA16: Foisonner | AB16: =LARGE(AB5:AB15,1)+1 -> 174 | AC16: Meringuer | AD16: =LARGE(AD5:AD15,1)+1 -> 228 | AE16: Refroidir | AF16: =LARGE(AF5:AF15,1)+1 -> 279 | AG16: Tremper | AH16: =LARGE(AH4:AH15,1)+1 -> 13 | AI16: assembler | AK16: =LARGE(AK4:AK15,1)+1 -> 69 | AL16: manier | AP16: – enduire un moule ou un ustensile de beurre afin d’empêcher les mets d’attacher au fond ou aux parois.
B17: =LARGE(B5:B16,1)+1 -> 11 | C17: Contrôler | E17: J | F17: =LARGE(F5:F16,1)+1 -> 43 | G17: Rectifier | I17: V | M17: C | N17: =LARGE(N5:N16,1)+1 -> 57 | O17: Ecosser | P17: =LARGE(P5:P16,1)+1 -> 100 | Q17: Manchonner | R17: =LARGE(R5:R16,1)+1 -> 141 | S17: Serrer | V17: =LARGE(V5:V16,1)+1 -> 13 | W17: Assaisonner | X17: =LARGE(X5:X16,1)+1 -> 68 | Y17: Délayer | Z17: =LARGE(Z5:Z16,1)+1 -> 125 | AA17: Foncer | AB17: =LARGE(AB5:AB16,1)+1 -> 175 | AC17: Mettre au point | AD17: =LARGE(AD5:AD16,1)+1 -> 229 | AE17: Régénérer | AF17: =LARGE(AF5:AF16,1)+1 -> 280 | AG17: Tronçonner | AH17: =LARGE(AH4:AH16,1)+1 -> 14 | AI17: attacher | AK17: =LARGE(AK4:AK16,1)+1 -> 70 | AL17: manœuvrer | AP17: – incorporer du beurre dans la détrempe d’une pâte feuilletée ou d’une pâte levée feuilletée, pour le tourage.
C18: D | D18: =LARGE(D5:D17,1)+1 -> 25 | E18: Jeter | F18: =LARGE(F5:F17,1)+1 -> 44 | G18: Refroidir | H18: =LARGE(H5:H17,1)+1 -> 60 | I18: Vérifier la temp. | L18: =LARGE(L5:L17,1)+1 -> 12 | M18: Canneler | N18: =LARGE(N5:N17,1)+1 -> 58 | O18: Ecumer | P18: =LARGE(P5:P17,1)+1 -> 101 | Q18: Marbrer | R18: =LARGE(R5:R17,1)+1 -> 142 | S18: Singer | W18: B | X18: =LARGE(X5:X17,1)+1 -> 69 | Y18: Démouler | Z18: =LARGE(Z5:Z17,1)+1 -> 126 | AA18: Fondre | AB18: =LARGE(AB5:AB17,1)+1 -> 176 | AC18: Mettre en cuisson | AD18: =LARGE(AD5:AD17,1)+1 -> 230 | AE18: Réhydrater | AF18: =LARGE(AF5:AF17,1)+1 -> 281 | AG18: Trousser | AH18: =LARGE(AH4:AH17,1)+1 -> 15 | AI18: attribuer | AK18: =LARGE(AK4:AK17,1)+1 -> 71 | AL18: mesurer | AP18: Bain-marie : eau plus ou moins chaude dans laquelle on place des récipients contenant des préparations à cuire ou à tenir au chaud.
B19: =LARGE(B5:B18,1)+1 -> 12 | C19: Décorer | E19: L | F19: =LARGE(F5:F18,1)+1 -> 45 | G19: Réhydrater | H19: =LARGE(H5:H18,1)+1 -> 61 | I19: Verser | L19: =LARGE(L5:L18,1)+1 -> 13 | M19: Caraméliser | N19: =LARGE(N5:N18,1)+1 -> 59 | O19: Effilandrer | P19: =LARGE(P5:P18,1)+1 -> 102 | Q19: Mariner | R19: =LARGE(R5:R18,1)+1 -> 143 | S19: Suer | V19: =LARGE(V5:V18,1)+1 -> 14 | W19: Barder | X19: =LARGE(X5:X18,1)+1 -> 70 | Y19: Dénerver | Z19: =LARGE(Z5:Z18,1)+1 -> 127 | AA19: Fouetter | AB19: =LARGE(AB5:AB18,1)+1 -> 177 | AC19: Mijoter | AD19: =LARGE(AD5:AD18,1)+1 -> 231 | AE19: Relâcher | AF19: =LARGE(AF5:AF18,1)+1 -> 282 | AG19: Turbiner | AH19: =LARGE(AH4:AH18,1)+1 -> 16 | AI19: brancher | AK19: =LARGE(AK4:AK18,1)+1 -> 72 | AL19: mettre | AP19: Battre : agiter vigoureusement une préparation à l’aide d’un fouet, pour la rendre homogène ou lui donner du volume (foisonnement).
B20: =LARGE(B5:B19,1)+1 -> 13 | C20: Délayer | D20: =LARGE(D5:D19,1)+1 -> 26 | E20: Laver | F20: =LARGE(F5:F19,1)+1 -> 46 | G20: Remonter en température | L20: =LARGE(L5:L19,1)+1 -> 14 | M20: Châtrer | N20: =LARGE(N5:N19,1)+1 -> 60 | O20: Effiler | P20: =LARGE(P5:P19,1)+1 -> 103 | Q20: Masquer | S20: T | V20: =LARGE(V5:V19,1)+1 -> 15 | W20: Battre | X20: =LARGE(X5:X19,1)+1 -> 71 | Y20: Dénoyauter | Z20: =LARGE(Z5:Z19,1)+1 -> 128 | AA20: Fouler | AB20: =LARGE(AB5:AB19,1)+1 -> 178 | AC20: Mixer | AD20: =LARGE(AD5:AD19,1)+1 -> 232 | AE20: Relever | AH20: =LARGE(AH4:AH19,1)+1 -> 17 | AI20: calculer | AK20: =LARGE(AK4:AK19,1)+1 -> 73 | AL20: moderniser | AP20: Beurre clarifié : beurre fondu et décanté dont on a éliminé de la caséine et du petit lait.
B21: =LARGE(B5:B20,1)+1 -> 14 | C21: Disperser | E21: M | F21: =LARGE(F5:F20,1)+1 -> 47 | G21: Remplacer | L21: =LARGE(L5:L20,1)+1 -> 15 | M21: Chaufroiter | N21: =LARGE(N5:N20,1)+1 -> 61 | O21: Egermer | P21: =LARGE(P5:P20,1)+1 -> 104 | Q21: Masser | R21: =LARGE(R5:R20,1)+1 -> 144 | S21: Tailler | V21: =LARGE(V5:V20,1)+1 -> 16 | W21: Beurrer | X21: =LARGE(X5:X20,1)+1 -> 72 | Y21: Denteler | Z21: =LARGE(Z5:Z20,1)+1 -> 129 | AA21: Fourrer | AB21: =LARGE(AB5:AB20,1)+1 -> 179 | AC21: Modeler | AD21: =LARGE(AD5:AD20,1)+1 -> 233 | AE21: Remonter en température | AG21: U | AH21: =LARGE(AH4:AH20,1)+1 -> 18 | AI21: cataloguer | AK21: =LARGE(AK4:AK20,1)+1 -> 74 | AL21: monter | AP21: Beurre en pommade : beurre ramolli ayant la consistance d’une pommade.
B22: =LARGE(B5:B21,1)+1 -> 15 | C22: Disposer | D22: =LARGE(D5:D21,1)+1 -> 27 | E22: Maintenir en temp. sup à 63° | F22: =LARGE(F5:F21,1)+1 -> 48 | G22: Remuer | L22: =LARGE(L5:L21,1)+1 -> 16 | M22: Chemiser | N22: =LARGE(N5:N21,1)+1 -> 62 | O22: Egoutter | P22: =LARGE(P5:P21,1)+1 -> 105 | Q22: Meringuer | R22: =LARGE(R5:R21,1)+1 -> 145 | S22: Tamiser | V22: =LARGE(V5:V21,1)+1 -> 17 | W22: Blanchir | X22: =LARGE(X5:X21,1)+1 -> 73 | Y22: Dépouiller | Z22: =LARGE(Z5:Z21,1)+1 -> 130 | AA22: Fraiser | AB22: =LARGE(AB5:AB21,1)+1 -> 180 | AC22: Moiner | AD22: =LARGE(AD5:AD21,1)+1 -> 234 | AE22: Remplacer | AF22: =LARGE(AF5:AF21,1)+1 -> 283 | AG22: Upériser | AH22: =LARGE(AH4:AH21,1)+1 -> 19 | AI22: centraliser | AK22: =LARGE(AK4:AK21,1)+1 -> 75 | AL22: naviguer | AP22: Blanchiment : phénomène de déstabilisation d’une fabrication de chocolat, correspondants à la migration en surface des cristaux de sucre, liée à une conservation en atmosphère humide et/ou un travail du chocolat à des températures inadaptées.
D23: =LARGE(D5:D22,1)+1 -> 28 | E23: Manipuler | F23: =LARGE(F5:F22,1)+1 -> 49 | G23: Répartir | L23: =LARGE(L5:L22,1)+1 -> 17 | M23: Chiqueter | N23: =LARGE(N5:N22,1)+1 -> 63 | O23: Egrapper | P23: =LARGE(P5:P22,1)+1 -> 106 | Q23: Mijoter | R23: =LARGE(R5:R22,1)+1 -> 146 | S23: Tamponner | V23: =LARGE(V5:V22,1)+1 -> 18 | W23: Blondir | X23: =LARGE(X5:X22,1)+1 -> 74 | Y23: Dérober | Z23: =LARGE(Z5:Z22,1)+1 -> 131 | AA23: Frapper | AB23: =LARGE(AB5:AB22,1)+1 -> 181 | AC23: Monder | AD23: =LARGE(AD5:AD22,1)+1 -> 235 | AE23: Remuer | AF23: =LARGE(AF5:AF22,1)+1 -> 284 | AG23: Utiliser | AH23: =LARGE(AH4:AH22,1)+1 -> 20 | AI23: chercher | AK23: =LARGE(AK4:AK22,1)+1 -> 76 | AL23: nettoyer | AP23: Blanchir : travailler ensemble le jaune d’œuf et le sucre au fouet jusqu’à ce que le mélange devienne mousseux.
D24: =LARGE(D5:D23,1)+1 -> 29 | E24: Mélanger | F24: =LARGE(F5:F23,1)+1 -> 50 | G24: Repasser | L24: =LARGE(L5:L23,1)+1 -> 18 | M24: Ciseler | N24: =LARGE(N5:N23,1)+1 -> 64 | O24: Egrener | P24: =LARGE(P5:P23,1)+1 -> 107 | Q24: Monder | R24: =LARGE(R5:R23,1)+1 -> 147 | S24: Tapisser | V24: =LARGE(V5:V23,1)+1 -> 19 | W24: Bouler | X24: =LARGE(X5:X23,1)+1 -> 75 | Y24: Désosser | Z24: =LARGE(Z5:Z23,1)+1 -> 132 | AA24: Fraser | AB24: =LARGE(AB5:AB23,1)+1 -> 182 | AC24: Monter | AD24: =LARGE(AD5:AD23,1)+1 -> 236 | AE24: Répartir | AH24: =LARGE(AH4:AH23,1)+1 -> 21 | AI24: classifier | AK24: =LARGE(AK4:AK23,1)+1 -> 77 | AL24: optimiser | AP24: Bouler : façonner à la main une pâte pour lui donner la forme d’une boule.
D25: =LARGE(D5:D24,1)+1 -> 30 | E25: Mettre en cuisson | L25: =LARGE(L5:L24,1)+1 -> 19 | M25: Citronner | N25: =LARGE(N5:N24,1)+1 -> 65 | O25: Emincer | P25: =LARGE(P5:P24,1)+1 -> 108 | Q25: Monter | R25: =LARGE(R5:R24,1)+1 -> 148 | S25: Tourer | V25: =LARGE(V5:V24,1)+1 -> 20 | W25: Braiser | X25: =LARGE(X5:X24,1)+1 -> 76 | Y25: Dessécher | Z25: =LARGE(Z5:Z24,1)+1 -> 133 | AA25: Frémir | AB25: =LARGE(AB5:AB24,1)+1 -> 183 | AC25: Mortifier | AD25: =LARGE(AD5:AD24,1)+1 -> 237 | AE25: Repasser | AG25: V | AH25: =LARGE(AH4:AH24,1)+1 -> 22 | AI25: commander | AK25: =LARGE(AK4:AK24,1)+1 -> 78 | AL25: ordonnancer | AP25: Brunissement enzymatique : c’est le phénomène qui se produit au contact de l’air à la suite d’opérations ou de traitements de divers végétaux (épluchage, taille) lesquels dégradent la structure végétale externe. Le phénomène conduit à un changement de couleur brun caractéristique du fruit).
D26: =LARGE(D5:D25,1)+1 -> 31 | E26: Mixer | L26: =LARGE(L5:L25,1)+1 -> 20 | M26: Clarifier | N26: =LARGE(N5:N25,1)+1 -> 66 | O26: Enrober | P26: =LARGE(P5:P25,1)+1 -> 109 | Q26: Mortifier | R26: =LARGE(R5:R25,1)+1 -> 149 | S26: Tourner | V26: =LARGE(V5:V25,1)+1 -> 21 | W26: Brider | X26: =LARGE(X5:X25,1)+1 -> 77 | Y26: Détailler | Z26: =LARGE(Z5:Z25,1)+1 -> 134 | AA26: Frire | AB26: =LARGE(AB5:AB25,1)+1 -> 184 | AC26: Mouiller | AD26: =LARGE(AD5:AD25,1)+1 -> 238 | AE26: Réserver | AF26: =LARGE(AF5:AF25,1)+1 -> 285 | AG26: Vanner | AH26: =LARGE(AH4:AH25,1)+1 -> 23 | AI26: compiler | AK26: =LARGE(AK4:AK25,1)+1 -> 79 | AL26: organiser | AP26: C
L27: =LARGE(L5:L26,1)+1 -> 21 | M27: Coller | N27: =LARGE(N5:N26,1)+1 -> 67 | O27: Eplucher | P27: =LARGE(P5:P26,1)+1 -> 110 | Q27: Mouiller | R27: =LARGE(R5:R26,1)+1 -> 150 | S27: Travailler | V27: =LARGE(V5:V26,1)+1 -> 22 | W27: Broyer | X27: =LARGE(X5:X26,1)+1 -> 78 | Y27: Détendre | AB27: =LARGE(AB5:AB26,1)+1 -> 185 | AC27: Mouler | AD27: =LARGE(AD5:AD26,1)+1 -> 239 | AE27: Respecter le délai de 2 H | AF27: =LARGE(AF5:AF26,1)+1 -> 286 | AG27: Vérifier la temp. | AH27: =LARGE(AH4:AH26,1)+1 -> 24 | AI27: compter | AK27: =LARGE(AK4:AK26,1)+1 -> 80 | AL27: planifier | AP27: Candir : technique qui consiste à immerger des confiseries, des décors, dans un sirop de sucre afin d’obtenir une cristallisation de sucre en surface.
L28: =LARGE(L5:L27,1)+1 -> 22 | M28: Compoter | N28: =LARGE(N5:N27,1)+1 -> 68 | O28: Escaloper | Q28: N | R28: =LARGE(R5:R27,1)+1 -> 151 | S28: Tremper | V28: =LARGE(V5:V27,1)+1 -> 23 | W28: Brûler | X28: =LARGE(X5:X27,1)+1 -> 79 | Y28: Détremper | AA28: G | AB28: =LARGE(AB5:AB27,1)+1 -> 186 | AC28: Mousser | AD28: =LARGE(AD5:AD27,1)+1 -> 240 | AE28: Retirer | AF28: =LARGE(AF5:AF27,1)+1 -> 287 | AG28: Verser | AH28: =LARGE(AH4:AH27,1)+1 -> 25 | AI28: concevoir | AK28: =LARGE(AK4:AK27,1)+1 -> 81 | AL28: préparer | AP28: Canneler : c’est le fait de faire de petites cannelures peu profondes à l’aide d’un couteau à canneler (appelé aussi canneleur) sur la surface de certains fruits & légumes (oranges, citrons, carottes…) pour améliorer leur présentation.
L29: =LARGE(L5:L28,1)+1 -> 23 | M29: Concasser | N29: =LARGE(N5:N28,1)+1 -> 69 | O29: Etuver | P29: =LARGE(P5:P28,1)+1 -> 111 | Q29: Nacrer | R29: =LARGE(R5:R28,1)+1 -> 152 | S29: Tronçonner | X29: =LARGE(X5:X28,1)+1 -> 80 | Y29: Disperser | Z29: =LARGE(Z5:Z28,1)+1 -> 135 | AA29: Garnir | AC29: N | AD29: =LARGE(AD5:AD28,1)+1 -> 241 | AE29: Retomber | AF29: =LARGE(AF5:AF28,1)+1 -> 288 | AG29: Videler | AH29: =LARGE(AH4:AH28,1)+1 -> 26 | AI29: conduire | AK29: =LARGE(AK4:AK28,1)+1 -> 82 | AL29: présenter | AP29: Caramélisation : phénomène correspondant au changement de couleur consécutif à une dégradation du saccharose au contact d’une source de chaleur importante. C’est une réaction de brunissement non enzymatique.
L30: =LARGE(L5:L29,1)+1 -> 24 | M30: Confire | N30: =LARGE(N5:N29,1)+1 -> 70 | O30: Evider | P30: =LARGE(P5:P29,1)+1 -> 112 | Q30: Napper | R30: =LARGE(R5:R29,1)+1 -> 153 | S30: Trousser | W30: C | X30: =LARGE(X5:X29,1)+1 -> 81 | Y30: Disposer | Z30: =LARGE(Z5:Z29,1)+1 -> 136 | AA30: Gerber | AB30: =LARGE(AB5:AB29,1)+1 -> 187 | AC30: Nacrer | AD30: =LARGE(AD5:AD29,1)+1 -> 242 | AE30: Retourner | AF30: =LARGE(AF5:AF29,1)+1 -> 289 | AG30: Voiler | AH30: =LARGE(AH4:AH29,1)+1 -> 27 | AI30: consigner | AK30: =LARGE(AK4:AK29,1)+1 -> 83 | AL30: prévoir | AP30: Caraméliser : enduire un moule ou une pâtisserie de sucre cuit au caramel.
L31: =LARGE(L5:L30,1)+1 -> 25 | M31: Contiser | N31: =LARGE(N5:N30,1)+1 -> 71 | O31: Exprimer | R31: =LARGE(R5:R30,1)+1 -> 154 | S31: Turbiner | V31: =LARGE(V5:V30,1)+1 -> 24 | W31: Candir | X31: =LARGE(X5:X30,1)+1 -> 82 | Y31: Dorer | Z31: =LARGE(Z5:Z30,1)+1 -> 137 | AA31: Glacer | AB31: =LARGE(AB5:AB30,1)+1 -> 188 | AC31: Napper | AD31: =LARGE(AD5:AD30,1)+1 -> 243 | AE31: Revenir | AH31: =LARGE(AH4:AH30,1)+1 -> 28 | AI31: constituer | AK31: =LARGE(AK4:AK30,1)+1 -> 84 | AL31: produire | AP31: Chablonner : appliquer du chocolat de couverture ou de la pâte à glacer à la base des entremets, petits gâteaux, des ganaches, pour faciliter leur manipulation avant leur montage ou découpage.
L32: =LARGE(L5:L31,1)+1 -> 26 | M32: Corner | O32: F | Q32: P | V32: =LARGE(V5:V31,1)+1 -> 25 | W32: Canneler | X32: =LARGE(X5:X31,1)+1 -> 83 | Y32: Doubler | Z32: =LARGE(Z5:Z31,1)+1 -> 138 | AA32: Gommer | AC32: P | AD32: =LARGE(AD5:AD31,1)+1 -> 244 | AE32: Rincer | AG32: Z | AH32: =LARGE(AH4:AH31,1)+1 -> 29 | AI32: construire | AK32: =LARGE(AK4:AK31,1)+1 -> 85 | AL32: programmer | AP32: Chemiser : appliquer contre la paroi intérieur d’un moule ou d’une caissette, une couche de pâte, de biscuit, de gelée, de chocolat, de glace, de farine etc…
L33: =LARGE(L5:L32,1)+1 -> 27 | M33: Corser | N33: =LARGE(N5:N32,1)+1 -> 72 | O33: Farcir | P33: =LARGE(P5:P32,1)+1 -> 113 | Q33: Paner | S33: V | V33: =LARGE(V5:V32,1)+1 -> 26 | W33: Caraméliser | X33: =LARGE(X5:X32,1)+1 -> 84 | Y33: Dresser | Z33: =LARGE(Z5:Z32,1)+1 -> 139 | AA33: Grainer | AB33: =LARGE(AB5:AB32,1)+1 -> 189 | AC33: Panacher | AD33: =LARGE(AD5:AD32,1)+1 -> 245 | AE33: Rioler | AF33: =LARGE(AF5:AF32,1)+1 -> 290 | AG33: Zester | AH33: =LARGE(AH4:AH32,1)+1 -> 30 | AI33: contrôler | AK33: =LARGE(AK4:AK32,1)+1 -> 86 | AL33: rebâtir | AP33: Chiqueter : tailler le tour d’une pièce de feuilletage avant la cuisson avec la lame d’un couteau pour lui donner un aspect particulier.
L34: =LARGE(L5:L33,1)+1 -> 28 | M34: Coucher | N34: =LARGE(N5:N33,1)+1 -> 73 | O34: Festonner | P34: =LARGE(P5:P33,1)+1 -> 114 | Q34: Papilloter | R34: =LARGE(R5:R33,1)+1 -> 155 | S34: Vanner | V34: =LARGE(V5:V33,1)+1 -> 27 | W34: Caraméliser | Z34: =LARGE(Z5:Z33,1)+1 -> 140 | AA34: Graisser | AB34: =LARGE(AB5:AB33,1)+1 -> 190 | AC34: Paner | AD34: =LARGE(AD5:AD33,1)+1 -> 246 | AE34: Rissoler | AH34: =LARGE(AH4:AH33,1)+1 -> 31 | AI34: couper | AK34: =LARGE(AK4:AK33,1)+1 -> 87 | AL34: réceptionner | AP34: Confire : remplacer l’eau de végétation des fruits par un sirop à la suite d’immersions multiples et répétées dans un sirop de sucre de plus en plus concentré.
L35: =LARGE(L5:L34,1)+1 -> 29 | M35: Coucher | N35: =LARGE(N5:N34,1)+1 -> 74 | O35: Flamber | P35: =LARGE(P5:P34,1)+1 -> 115 | Q35: Passer | R35: =LARGE(R5:R34,1)+1 -> 156 | S35: Videler | V35: =LARGE(V5:V34,1)+1 -> 28 | W35: Cerner | Y35: E | Z35: =LARGE(Z5:Z34,1)+1 -> 141 | AA35: Gratiner | AB35: =LARGE(AB5:AB34,1)+1 -> 191 | AC35: Papilloter | AD35: =LARGE(AD5:AD34,1)+1 -> 247 | AE35: Rompre | AH35: =LARGE(AH4:AH34,1)+1 -> 32 | AI35: créer | AK35: =LARGE(AK4:AK34,1)+1 -> 88 | AL35: reconstruire | AP35: Corner : utiliser une corne à l’intérieur d’un récipient pour récupérer le maximum d’appareil.
L36: =LARGE(L5:L35,1)+1 -> 30 | M36: Crémer | N36: =LARGE(N5:N35,1)+1 -> 75 | O36: Flanquer | P36: =LARGE(P5:P35,1)+1 -> 116 | Q36: Persiller | R36: =LARGE(R5:R35,1)+1 -> 157 | S36: Voiler | V36: =LARGE(V5:V35,1)+1 -> 29 | W36: Chablonner | X36: =LARGE(X5:X35,1)+1 -> 85 | Y36: Ebarber | Z36: =LARGE(Z5:Z35,1)+1 -> 142 | AA36: Griller | AB36: =LARGE(AB5:AB35,1)+1 -> 192 | AC36: Parer | AD36: =LARGE(AD5:AD35,1)+1 -> 248 | AE36: Rôtir | AH36: =LARGE(AH4:AH35,1)+1 -> 33 | AI36: creuser | AK36: =LARGE(AK4:AK35,1)+1 -> 89 | AL36: réduire | AP36: Corps : terme appliqué à une pâte pour désigner son élasticité, sa résistance après son pétrissage, résultant de la formation de gluten.
L37: =LARGE(L5:L36,1)+1 -> 31 | M37: Crever | N37: =LARGE(N5:N36,1)+1 -> 76 | O37: Fleurer | P37: =LARGE(P5:P36,1)+1 -> 117 | Q37: Piler | V37: =LARGE(V5:V36,1)+1 -> 30 | W37: Châtrer | X37: =LARGE(X5:X36,1)+1 -> 86 | Y37: Ebaucher | Z37: =LARGE(Z5:Z36,1)+1 -> 143 | AA37: H | AB37: =LARGE(AB5:AB36,1)+1 -> 193 | AC37: Parfumer | AD37: =LARGE(AD5:AD36,1)+1 -> 249 | AE37: Rouler | AH37: =LARGE(AH4:AH36,1)+1 -> 34 | AI37: cultiver | AK37: =LARGE(AK4:AK36,1)+1 -> 90 | AL37: régler | AP37: Corser : donner de l’élasticité à une pâte en la pétrissant davantage.
L38: =LARGE(L5:L37,1)+1 -> 32 | M38: Cuire | N38: =LARGE(N5:N37,1)+1 -> 77 | O38: Foisonner | P38: =LARGE(P5:P37,1)+1 -> 118 | Q38: Pincer | S38: Z | V38: =LARGE(V5:V37,1)+1 -> 31 | W38: Chauffer | X38: =LARGE(X5:X37,1)+1 -> 87 | Y38: Ecailler | Z38: =LARGE(Z5:Z37,1)+1 -> 144 | AA38: Habiller | AB38: =LARGE(AB5:AB37,1)+1 -> 194 | AC38: Parsemer | AD38: =LARGE(AD5:AD37,1)+1 -> 250 | AE38: Roussir | AH38: =LARGE(AH4:AH37,1)+1 -> 35 | AI38: décentraliser | AK38: =LARGE(AK4:AK37,1)+1 -> 91 | AL38: réguler | AP38: Coucher (synonyme de dresser) : façonner à la poche à douille généralement sur plaque ou tapis anti-adhérant, papier sulfurisé des appareils mous (pâte à choux, biscuits, meringues).
M39: D | N39: =LARGE(N5:N38,1)+1 -> 78 | O39: Foncer | P39: =LARGE(P5:P38,1)+1 -> 119 | Q39: Piquer | R39: =LARGE(R5:R38,1)+1 -> 158 | S39: Zester | V39: =LARGE(V5:V38,1)+1 -> 32 | W39: Chaufroiter | X39: =LARGE(X5:X38,1)+1 -> 88 | Y39: Ecaler | Z39: =LARGE(Z5:Z38,1)+1 -> 145 | AA39: Hacher | AB39: =LARGE(AB5:AB38,1)+1 -> 195 | AC39: Passer | AH39: =LARGE(AH4:AH38,1)+1 -> 36 | AI39: décharger | AK39: =LARGE(AK4:AK38,1)+1 -> 92 | AL39: remodeler | AP39: Crémer : travailler une matière grasse seule ou avec du sucre, afin de lui donner la consistance d’une crème.
L40: =LARGE(L5:L39,1)+1 -> 33 | M40: Décanter | N40: =LARGE(N5:N39,1)+1 -> 79 | O40: Fondre | P40: =LARGE(P5:P39,1)+1 -> 120 | Q40: Pocher | V40: =LARGE(V5:V39,1)+1 -> 33 | W40: Chemiser | X40: =LARGE(X5:X39,1)+1 -> 89 | Y40: Echauder | Z40: =LARGE(Z5:Z39,1)+1 -> 146 | AA40: Historier | AB40: =LARGE(AB5:AB39,1)+1 -> 196 | AC40: Pasteuriser | AE40: S | AH40: =LARGE(AH4:AH39,1)+1 -> 37 | AI40: dessiner | AK40: =LARGE(AK4:AK39,1)+1 -> 93 | AL40: remplacer | AP40: Crouter : opération permettant de sécher à l’air ou en étuve une fabrication crue ou cuite afin d’obtenir une pellicule sèche et résistante à sa surface (biscuit cuillère, macarons…).
L41: =LARGE(L5:L40,1)+1 -> 34 | M41: Décercler | N41: =LARGE(N5:N40,1)+1 -> 80 | O41: Fouler | P41: =LARGE(P5:P40,1)+1 -> 121 | Q41: Poêler | V41: =LARGE(V5:V40,1)+1 -> 34 | W41: Chevaucher | X41: =LARGE(X5:X40,1)+1 -> 90 | Y41: Ecorcher | Z41: =LARGE(Z5:Z40,1)+1 -> 147 | AA41: Huiler | AB41: =LARGE(AB5:AB40,1)+1 -> 197 | AC41: Peler | AD41: =LARGE(AD5:AD40,1)+1 -> 251 | AE41: Sabler | AH41: =LARGE(AH4:AH40,1)+1 -> 38 | AI41: documenter | AK41: =LARGE(AK4:AK40,1)+1 -> 94 | AL41: rénover | AP41: D
L42: =LARGE(L5:L41,1)+1 -> 35 | M42: Décortiquer | N42: =LARGE(N5:N41,1)+1 -> 81 | O42: Fraiser | P42: =LARGE(P5:P41,1)+1 -> 122 | Q42: Pousser | V42: =LARGE(V5:V41,1)+1 -> 35 | W42: Chiqueter | X42: =LARGE(X5:X41,1)+1 -> 91 | Y42: Ecosser | AB42: =LARGE(AB5:AB41,1)+1 -> 198 | AC42: Persiller | AD42: =LARGE(AD5:AD41,1)+1 -> 252 | AE42: Saigner | AH42: =LARGE(AH4:AH41,1)+1 -> 39 | AI42: écouler | AK42: =LARGE(AK4:AK41,1)+1 -> 95 | AL42: réorganiser | AP42: Décercler : retirer avec précaution le cercle d’un fond de tarte ou d’un entremet.
L43: =LARGE(L5:L42,1)+1 -> 36 | M43: Décuire | N43: =LARGE(N5:N42,1)+1 -> 82 | O43: Fileter | P43: =LARGE(P5:P42,1)+1 -> 123 | Q43: Puncher | V43: =LARGE(V5:V42,1)+1 -> 36 | W43: Ciseler | X43: =LARGE(X5:X42,1)+1 -> 92 | Y43: Ecumer | AA43: I | AB43: =LARGE(AB5:AB42,1)+1 -> 199 | AC43: Peser | AD43: =LARGE(AD5:AD42,1)+1 -> 253 | AE43: Saisir | AH43: =LARGE(AH4:AH42,1)+1 -> 40 | AI43: écrire | AK43: =LARGE(AK4:AK42,1)+1 -> 96 | AL43: réparer | AP43: Décoction : solution obtenue par l’action prolongée de l’eau bouillante sur une plante aromatique.
L44: =LARGE(L5:L43,1)+1 -> 37 | M44: Déffilandrer | N44: =LARGE(N5:N43,1)+1 -> 83 | O44: Frapper | Q44: Q | V44: =LARGE(V5:V43,1)+1 -> 37 | W44: Citronner | X44: =LARGE(X5:X43,1)+1 -> 93 | Y44: Effilandrer | Z44: =LARGE(Z5:Z43,1)+1 -> 148 | AA44: Imbiber | AB44: =LARGE(AB5:AB43,1)+1 -> 200 | AC44: Pétrir | AD44: =LARGE(AD5:AD43,1)+1 -> 254 | AE44: Sangler | AH44: =LARGE(AH4:AH43,1)+1 -> 41 | AI44: édifier | AK44: =LARGE(AK4:AK43,1)+1 -> 97 | AL44: résoudre | AP44: Dessécher : déshydrater, faire évaporer l’excédent d’eau se trouvant dans une préparation en la chauffant sur feu doux dans une étuve ou dans un four (ex : pâte à choux)
L45: =LARGE(L5:L44,1)+1 -> 38 | M45: Déglacer | N45: =LARGE(N5:N44,1)+1 -> 84 | O45: Frémir | P45: =LARGE(P5:P44,1)+1 -> 124 | Q45: Quadriller | V45: =LARGE(V5:V44,1)+1 -> 38 | W45: Clarifier | X45: =LARGE(X5:X44,1)+1 -> 94 | Y45: Effiler | Z45: =LARGE(Z5:Z44,1)+1 -> 149 | AA45: Inciser | AB45: =LARGE(AB5:AB44,1)+1 -> 201 | AC45: Piler | AD45: =LARGE(AD5:AD44,1)+1 -> 255 | AE45: Saumurer | AH45: =LARGE(AH4:AH44,1)+1 -> 42 | AI45: effectuer | AK45: =LARGE(AK4:AK44,1)+1 -> 98 | AL45: réviser | AP45: Détailler : découper des morceaux de pâte de forme bien déterminée dans une abaisse de pâte, à l’aide d’un couteau ou d’un découpoir.
L46: =LARGE(L5:L45,1)+1 -> 39 | M46: Dégorger | N46: =LARGE(N5:N45,1)+1 -> 85 | O46: Frire | V46: =LARGE(V5:V45,1)+1 -> 39 | W46: Clouter | X46: =LARGE(X5:X45,1)+1 -> 95 | Y46: Egermer | Z46: =LARGE(Z5:Z45,1)+1 -> 150 | AA46: Incorporer | AB46: =LARGE(AB5:AB45,1)+1 -> 202 | AC46: Pincer | AD46: =LARGE(AD5:AD45,1)+1 -> 256 | AE46: Saupoudrer | AH46: =LARGE(AH4:AH45,1)+1 -> 43 | AI46: élaborer | AK46: =LARGE(AK4:AK45,1)+1 -> 99 | AL46: revoir | AP46: Détrempe : mélange de farine, d’eau et de sel servant de base à la pâte feuilleté et à la pâte levée feuilleté.
L47: =LARGE(L5:L46,1)+1 -> 40 | M47: Dégourdir | O47: G | Q47: R | V47: =LARGE(V5:V46,1)+1 -> 40 | W47: Coller | X47: =LARGE(X5:X46,1)+1 -> 96 | Y47: Egoutter | Z47: =LARGE(Z5:Z46,1)+1 -> 151 | AA47: Indications packaging | AB47: =LARGE(AB5:AB46,1)+1 -> 203 | AC47: Piquer | AD47: =LARGE(AD5:AD46,1)+1 -> 257 | AE47: Sauter | AH47: =LARGE(AH4:AH46,1)+1 -> 44 | AI47: emplir | AK47: =LARGE(AK4:AK46,1)+1 -> 100 | AL47: sensibiliser | AP47: E
L48: =LARGE(L5:L47,1)+1 -> 41 | M48: Dégraisser | N48: =LARGE(N5:N47,1)+1 -> 86 | O48: Glacer | P48: =LARGE(P5:P47,1)+1 -> 125 | Q48: Rabattre | V48: =LARGE(V5:V47,1)+1 -> 41 | W48: Compoter | X48: =LARGE(X5:X47,1)+1 -> 97 | Y48: Egrapper | Z48: =LARGE(Z5:Z47,1)+1 -> 152 | AA48: Infuser | AB48: =LARGE(AB5:AB47,1)+1 -> 204 | AC48: Plaquer | AD48: =LARGE(AD5:AD47,1)+1 -> 258 | AE48: Serrer | AH48: =LARGE(AH4:AH47,1)+1 -> 45 | AI48: employer | AK48: =LARGE(AK4:AK47,1)+1 -> 101 | AL48: simplifier | AP48: Écumer : c’est éliminer les impuretés qui se forment à la surface de cuisson de sucre, confitures, gelées à l’aide d’une écumoire.
L49: =LARGE(L5:L48,1)+1 -> 42 | M49: Déhousser | N49: =LARGE(N5:N48,1)+1 -> 87 | O49: Gommer | P49: =LARGE(P5:P48,1)+1 -> 126 | Q49: Rafraîchir | V49: =LARGE(V5:V48,1)+1 -> 42 | W49: Concasser | X49: =LARGE(X5:X48,1)+1 -> 98 | Y49: Egrener | AB49: =LARGE(AB5:AB48,1)+1 -> 205 | AC49: Pocher | AD49: =LARGE(AD5:AD48,1)+1 -> 259 | AE49: Servir | AH49: =LARGE(AH4:AH48,1)+1 -> 46 | AI49: enregistrer | AK49: =LARGE(AK4:AK48,1)+1 -> 102 | AL49: soulever | AP49: Émonder : retirer les peaux, pellicules et enveloppe de certains fruits ou légumes.
L50: =LARGE(L5:L49,1)+1 -> 43 | M50: Dénerver | N50: =LARGE(N5:N49,1)+1 -> 88 | O50: Graisser | P50: =LARGE(P5:P49,1)+1 -> 127 | Q50: Raidir | V50: =LARGE(V5:V49,1)+1 -> 43 | W50: Confire | X50: =LARGE(X5:X49,1)+1 -> 99 | Y50: Eliminer | AA50: J | AB50: =LARGE(AB5:AB49,1)+1 -> 206 | AC50: Poêler | AD50: =LARGE(AD5:AD49,1)+1 -> 260 | AE50: Singer | AH50: =LARGE(AH4:AH49,1)+1 -> 47 | AI50: entretenir | AK50: =LARGE(AK4:AK49,1)+1 -> 103 | AL50: standardiser | AP50: Émulsionner : opération consistant à provoquer la dispersion d’un liquide dans un autre liquide ou d’une matière non miscible (ex : ganache).
L51: =LARGE(L5:L50,1)+1 -> 44 | M51: Dénoyauter | N51: =LARGE(N5:N50,1)+1 -> 89 | O51: Gratiner | P51: =LARGE(P5:P50,1)+1 -> 128 | Q51: Rassir | V51: =LARGE(V5:V50,1)+1 -> 44 | W51: Conserver | X51: =LARGE(X5:X50,1)+1 -> 100 | Y51: Emonder | Z51: =LARGE(Z5:Z50,1)+1 -> 153 | AA51: Jeter | AB51: =LARGE(AB5:AB50,1)+1 -> 207 | AC51: Porter à ébullition | AD51: =LARGE(AD5:AD50,1)+1 -> 261 | AE51: Siroper | AH51: =LARGE(AH4:AH50,1)+1 -> 48 | AI51: envoyer | AK51: =LARGE(AK4:AK50,1)+1 -> 104 | AL51: superviser | AP51: Évider : éliminer, extraire l’intérieur de certains fruits (ex : citrons, orange).
L52: =LARGE(L5:L51,1)+1 -> 45 | M52: Denteler | N52: =LARGE(N5:N51,1)+1 -> 90 | O52: Griller | P52: =LARGE(P5:P51,1)+1 -> 129 | Q52: Rayer | V52: =LARGE(V5:V51,1)+1 -> 45 | W52: Contiser | X52: =LARGE(X5:X51,1)+1 -> 101 | Y52: Émulsionner | AB52: =LARGE(AB5:AB51,1)+1 -> 208 | AC52: Poudrer | AD52: =LARGE(AD5:AD51,1)+1 -> 262 | AE52: Siroter | AH52: =LARGE(AH4:AH51,1)+1 -> 49 | AI52: ériger | AK52: =LARGE(AK4:AK51,1)+1 -> 105 | AL52: surveiller | AP52: F
V53: =LARGE(V5:V52,1)+1 -> 46 | W53: Contrôler | X53: =LARGE(X5:X52,1)+1 -> 102 | Y53: Enfourner | AA53: L | AB53: =LARGE(AB5:AB52,1)+1 -> 209 | AC53: Pousser | AD53: =LARGE(AD5:AD52,1)+1 -> 263 | AE53: Snacker | AH53: =LARGE(AH4:AH52,1)+1 -> 50 | AI53: établir | AK53: =LARGE(AK4:AK52,1)+1 -> 106 | AL53: tester | AP53: Façonner : c’est donner une forme particulière à toute sortes de pâtes par un travail manuel ou mécanique avant cuisson.
V54: =LARGE(V5:V53,1)+1 -> 47 | W54: Corner | X54: =LARGE(X5:X53,1)+1 -> 103 | Y54: Enrober | Z54: =LARGE(Z5:Z53,1)+1 -> 154 | AA54: Larder | AB54: =LARGE(AB5:AB53,1)+1 -> 210 | AC54: Praliner | AD54: =LARGE(AD5:AD53,1)+1 -> 264 | AE54: Sonder | AH54: =LARGE(AH4:AH53,1)+1 -> 51 | AI54: étendre | AK54: =LARGE(AK4:AK53,1)+1 -> 107 | AL54: transformer | AP54: Festonner : constituer des bordures décoratives ou des formes arrondies sur des pâtisseries (ex : pithiviers, tartelette…).
V55: =LARGE(V5:V54,1)+1 -> 48 | W55: Corser | X55: =LARGE(X5:X54,1)+1 -> 104 | Y55: Eplucher | Z55: =LARGE(Z5:Z54,1)+1 -> 155 | AA55: Laver | AB55: =LARGE(AB5:AB54,1)+1 -> 211 | AC55: Préchauffer | AD55: =LARGE(AD5:AD54,1)+1 -> 265 | AE55: Stériliser | AH55: =LARGE(AH4:AH54,1)+1 -> 52 | AI55: examiner | AK55: =LARGE(AK4:AK54,1)+1 -> 108 | AL55: trier | AP55: Fleurer : saupoudrer de farine un tour, une plaque ou un moule afin d’empêcher certaines préparations de coller.
V56: =LARGE(V5:V55,1)+1 -> 49 | W56: Coucher | X56: =LARGE(X5:X55,1)+1 -> 105 | Y56: Equeter | Z56: =LARGE(Z5:Z55,1)+1 -> 156 | AA56: Lever | AB56: =LARGE(AB5:AB55,1)+1 -> 212 | AC56: Prélever | AD56: =LARGE(AD5:AD55,1)+1 -> 266 | AE56: Suer | AH56: =LARGE(AH4:AH55,1)+1 -> 53 | AI56: exécuter | AK56: =LARGE(AK4:AK55,1)+1 -> 109 | AL56: utiliser | AP56: Foncer : tapisser l’intérieur d’un moule ou d’un cercle avec de la pâte, pour qu’elle épouse parfaitement sa forme.
V57: =LARGE(V5:V56,1)+1 -> 50 | W57: Craquer | X57: =LARGE(X5:X56,1)+1 -> 106 | Y57: Escaloper | Z57: =LARGE(Z5:Z56,1)+1 -> 157 | AA57: Lier | AB57: =LARGE(AB5:AB56,1)+1 -> 213 | AC57: Préparer | AD57: =LARGE(AD5:AD56,1)+1 -> 267 | AE57: Surgeler | AH57: =LARGE(AH4:AH56,1)+1 -> 54 | AI57: exploiter | AK57: =LARGE(AK4:AK56,1)+1 -> 110 | AL57: vaporiser | AP57: Fond : pâtisseries utilisée comme base de fabrication et constituant généralement la couche inférieure des gâteaux.
V58: =LARGE(V5:V57,1)+1 -> 51 | W58: Crémer | X58: =LARGE(X5:X57,1)+1 -> 107 | Y58: Etaler | Z58: =LARGE(Z5:Z57,1)+1 -> 158 | AA58: Limoner | AB58: =LARGE(AB5:AB57,1)+1 -> 214 | AC58: Protéger | AH58: =LARGE(AH4:AH57,1)+1 -> 55 | AI58: extraire | AK58: =LARGE(AK4:AK57,1)+1 -> 111 | AL58: vérifier | AP58: Foisonnement: phénomène résultant d’une augmentation de volume d’une fabrication par incorporation de gaz.
V59: =LARGE(V5:V58,1)+1 -> 52 | W59: Crever | X59: =LARGE(X5:X58,1)+1 -> 108 | Y59: Etoffer | Z59: =LARGE(Z5:Z58,1)+1 -> 159 | AA59: Lisser | AB59: =LARGE(AB5:AB58,1)+1 -> 215 | AC59: Puncher | AH59: =LARGE(AH4:AH58,1)+1 -> 56 | AI59: faire | AP59: Fraser : écraser les ingrédients d’une pâte pour les agglomérer soit sur le marbre avec la paume de la main en la poussant devant soi, soit au batteur en écrasant avec la paume de sa main sur les parois.
V60: =LARGE(V5:V59,1)+1 -> 53 | W60: Crouter | X60: =LARGE(X5:X59,1)+1 -> 109 | Y60: Etouffer | Z60: =LARGE(Z5:Z59,1)+1 -> 160 | AA60: Lustrer | AP60: G
V61: =LARGE(V5:V60,1)+1 -> 54 | W61: Cuire | X61: =LARGE(X5:X60,1)+1 -> 110 | Y61: Etuver | Z61: =LARGE(Z5:Z60,1)+1 -> 161 | AA61: Luter | AC61: Q | AP61: Garnir : remplir avec une préparation de crème ou autres un fond de gâteau, un moule, une poche.
V62: =LARGE(V5:V61,1)+1 -> 55 | W62: Culotter | X62: =LARGE(X5:X61,1)+1 -> 111 | Y62: Evider | Z62: =LARGE(Z5:Z61,1)+1 -> 162 | AA62: Lyophiliser | AB62: =LARGE(AB5:AB61,1)+1 -> 216 | AC62: Quadriller | AP62: Glacer :
X63: =LARGE(X5:X62,1)+1 -> 112 | Y63: Exprimer | AP63: – action de recouvrir partiellement ou entièrement la surface d’une pâtisserie avec un glaçage (ex : fondant)
AP64: – rendre brillant la surface d’une pâtisserie avec du sirop avant le passage au four ou saupoudrer une pièce de sucre glace et la passer au four, le temps de caraméliser le sucre.
AP65: Grainage : phénomène résultant de la déstabilisation d’une mousse alimentaire (ex : blancs montés) ou d’une émulsion mousseuse (ex : crème fouettée) à la suite d’un battage prolongé.
W66: Lien > | X66: Lexique en français de la boucherie | AP66: Graisser : enduire d’une couche de matière grasse à l’aide d’un pinceau ou d’une bombe à graisse les parois d’un moule ou une plaque.
W67: Lien > | X67: Le dictionnaire du boucher | AP67: I
W68: Verbes d'action Lien > | X68: https://www.unamur.be/services/sevrexe/prodoc/documents-mission-accompagnement-prodoc-AL/verbes-actions | AP68: Imbiber : c’est faire pénétrer un liquide (sirop, alcool, liqueur etc…) dans une préparation dans le but de la rendre moins sèche ou dans le but de la parfumer.
AP69: Infuser : opération consistant à placer une substance aromatique dans un liquide chauffé au préalable, pendant un temps déterminé et à couvert pour capter son arôme.
AP70: L
AP71: Lisser : mélanger une préparation pour la rendre homogène.
AP72: Lustrer : recouvrir de nappage de gelée ou de beurre fondu, une préparation afin de lui donner un aspect brillant.
AP73: M
AP74: Macérer : opération consistant à faire tremper un corps dans un liquide froid pour en extraire les parties solubles ou un produit alimentaire pour le parfumer ou le conserver.
AP75: Marbrer : réaliser divers dessins sur des gâteaux glacés (au fondant, au nappage etc …) pour améliorer leur présentation.
AP76: Masquer : recouvrir un entremets ou un fond de plat d’une légère couche de crème, de sauce ou de gelée.
AP77: Monter :
AP78: – battre au fouet une substance ou un appareil pour le rendre plus léger et en augmenter le volume (ex : blanc en neige).
AP79: – assembler les différentes parties d’une pâtisserie pour en faire un gâteau plus ou moins important (monter un entremet, pièce montée).
AP80: Mouler : verser une substance ou une préparation liquide ou semi-liquide dans un moule pour en obtenir une reproduction de sa forme après solidification.
AP81: N
AP82: Napper : verser sur un met chaud ou froid une sauce, une gelée, ou une crème pour le recouvrir complètement.
AP83: P
AP84: Pasteuriser : action de soumettre une préparation à un traitement thermique (Température inférieure à 100°C), pendant un temps défini, afin de détruire d’éventuels germes pathogènes et de prolonger leur conservations.
AP85: Passer : faire traverser un liquide dans un ustensile percé de trous pour en retenir en général les impuretés (ex : chinois, passoire, tamis).
AP86: Pâton : nom donné à un morceau de pâte pesé et prêt à être façonné.
AP87: Piquer : percer de nombreux petits trous la surface d’une abaisse de pâte à l’aide d’une fourchette ou d’un pique vite, dans le but d’empêcher la formation de boursouflures durant la cuisson.
AP88: Pincer : faire un décor sur le pourtour d’une tarte à l’aide d’une pince spéciale.
AP89: Pocher : opération qui consiste à cuire une préparation ou des aliments dans un liquide (eau, sirop, etc…) à une température basse, généralement comprise entre 70° et 85°C.
AP90: Pointage : technique survenant après le pétrissage d’une pâte levée, fermentée, permettant à la première fermentation de se réaliser et de développer des arômes caractéristiques, mais aussi de renforcer le corps de la pâte avant son façonnage.
AP91: Punch : mélange de sirop de sucre et d’un autre ingrédient (alcool, café, jus ou purée de fruits, vanille etc…).
AP92: Puncher (synonyme d’imbiber): rayer avec la pointe de la lame d’un couteau d’office, inciser de raies parallèles la surface de certains gâteaux préalablement passée à la dorure afin de parfaire la présentation.
AP93: R
AP94: Retomber : se dit d’une pâte, d’un appareil dont le volume diminue après avoir augmenté pendant le montage ou la cuisson.
AP95: Rognures : chutes de pâtisseries provenant de découpes de pâtes, d’entremets.
AP96: Rompre : actions manuelles consistant après un certain temps de pointage, a rabattre une pâte levée, fermentée, pour en chasser les gaz produits, avant le façonnage.
AP97: Ruban : préparation qui, après avoir été travaillé au fouet ou à la spatule, se glisse comme un ruban lorsqu’on la fait retomber de hauteur (ex : génoise).
AP98: S
AP99: Sabler : opération qui consiste à brasser de la farine et de la matière grasse jusqu’à l’obtention d’un mélange rappelant la texture du sable.
AP100: T
AP101: Tabler : technique de pré-cristallisation du chocolat de couverture sur un marbre.
AP103: Tourer : action de plier en trois ou en quatre un pâton de pâte levée, feuilletée, après l’avoir allongée.
AP104: Tremper :
AP105: – imbiber une pièce de pâtisseries avec du sirop
AP106: – enrober des bonbons, des intérieurs, des fruits dans du chocolat de couverture ou du fondant.
AP107: V
AP108: Vanner : remuer une sauce ou une crème pendant son refroidissement pour la rendre homogène, limité son dessèchement en surface et accélérer sa descente en température.
AP109: Z
AP110: Zeste : peau découpée dans l’écorce des agrumes.
AP111: Zester : retirer la partie extérieure de l’écorce d’agrumes (citrons, oranges, pamplemousse….) à l’aide d’un zesteur ou d’une râpe.
AO114: Lien > | AP114: https://www.passionpatisserie.fr/lexique
AO116: Lien > | AP116: http://devenir.patissier.free.fr/cours-CAP-vocabulaire-professionnel-eleve.pdf
AO118: Lien > | AP118: http://technologiepatisserie.blogspot.com/p/le-vocabulaire-professionnel-en.html
AO120: Lien > | AP120: https://devenirpatissier.fr/vocabulaire-professionnel/
AO122: Lien > | AP122: https://www.encoreungateau.com/pourquoi-un-blog-de-patisserie/vocabulaire-du-patissier/

Sheet Poids fruits et légumes
B1: POIDS DES FRUITS ET LÉGUMES …décembre 2017 annule et remplace les versions précédentes
B2: Saisissez votre nombre d'unité (encre rouge)Modifiez le poids unitaire (encre verte) s'il n'est pas excact | I2: Saisissez votre nombre d'unité (encre rouge)Modifiez le poids unitaire (encre verte) s'il n'est pas excact | P2: Saisissez votre nombre d'unité (encre rouge)Modifiez le poids unitaire (encre verte) s'il n'est pas excact
B5: N° | C5: Produits | D5: Poids unitaire | E5: Nb d'unités | F5: Poids en Gr | G5: Poids en Kg | I5: N° | J5: Produits | K5: Poids unitaire | L5: Nb d'unités | M5: Poids en Gr | N5: Poids en Kg | P5: N° | Q5: Produits | R5: Poids unitaire | S5: Nb d'unités | T5: Poids en Gr | U5: Poids en Kg
C6: A | J6: G | Q6: R | X6: 4.1. Poids et mesures (A-C) | AF6: Poids moyen (à la pièce, en grammes). | AV6: LIENS
B7: 1 | C7: Abricot | D7: 55 | E7: 10 | F7: =(D7*E7) -> 550 | G7: =F7/1000 -> 0.55 | I7: =B66+1 -> 56 | J7: Hareng | K7: 170 | L7: 10 | M7: =(K7*L7) -> 1700 | N7: =M7/1000 -> 1.7 | P7: =I68+1 -> 113 | Q7: Raisin sec Tasse thé de 15 cl | R7: 20 | S7: 10 | T7: =(R7*S7) -> 200 | U7: =T7/1000 -> 0.2
B8: =LARGE(B7:B7,1)+1 -> 2 | C8: Ail gousse | D8: 5 | E8: 10 | F8: 50 | G8: 0.05 | I8: =LARGE(I7:I7,1)+1 -> 57 | J8: Haricot sec Verre de 20 cl | K8: 160 | L8: 10 | M8: =(K8*L8) -> 1600 | N8: 1.6 | P8: =LARGE(P7:P7,1)+1 -> 114 | Q8: Riz long Verre de 20 cl | R8: 125 | S8: 10 | T8: 1250 | U8: 1.25 | X8: Aliment | Y8: Mesure de capacité | Z8: Poids | AB8: Aliment | AC8: Mesure de capacité | AD8: Poids | AF8: Biscuit sec : 10. Biscotte : 18. Croissant : 50. | AV8: http://www.nubel.be/fra/manual/liste_des_denrees_alimentaires.asp
B9: =LARGE(B7:B8,1)+1 -> 3 | C9: Ail gousse moyenne | D9: 8 | E9: 10 | F9: 80 | G9: 0.08 | I9: =LARGE(I7:I8,1)+1 -> 58 | J9: Homard moyen | K9: 885 | L9: 10 | M9: 8850 | N9: 8.85 | Q9: S | R9: 0 | T9: 0 | U9: 0
B10: =LARGE(B7:B9,1)+1 -> 4 | C10: Ail tête | D10: 50 | E10: 10 | F10: 500 | G10: 0.5 | I10: =LARGE(I7:I9,1)+1 -> 59 | J10: Homard petit | K10: 500 | L10: 10 | M10: 5000 | N10: 5 | P10: =LARGE(P7:P9,1)+1 -> 115 | Q10: Sardine | R10: 45 | S10: 10 | T10: 450 | U10: 0.45 | X10: Ananas (frais)/ananas (boîte) | Y10: 1 tranche moyenne | Z10: 100 g/35 g | AB10: Mandarine | AC10: 1 moyenne | AD10: 60 g | AF10: Crustacés (entiers) : écrevisse 34, homard 885. | AV10: https://www.nubel.be/fra/default.aspx
B11: =LARGE(B7:B10,1)+1 -> 5 | C11: Ananas | D11: 2000 | E11: 10 | F11: 20000 | G11: 20 | J11: L | K11: 0 | M11: 0 | N11: 0 | P11: =LARGE(P7:P10,1)+1 -> 116 | Q11: Sel 1 pincée | R11: 1 | S11: 10 | T11: 10 | U11: 0.01 | X11: Avocat | Y11: 1 moyen | Z11: 160 g | AB11: Mangue | AC11: 1 moyenne | AD11: 200 g
B12: =LARGE(B7:B11,1)+1 -> 6 | C12: Artichaut | D12: 350 | E12: 10 | F12: 3500 | G12: 3.5 | I12: =LARGE(I7:I11,1)+1 -> 60 | J12: Lapin vidé | K12: 1500 | L12: 10 | M12: 15000 | N12: 15 | P12: =LARGE(P7:P11,1)+1 -> 117 | Q12: Sel fin 1 cuillère café rase | R12: 50 | S12: 10 | T12: 500 | U12: 0.5 | X12: Abricot (sans noyau) | Y12: 1 | Z12: 150 g | AB12: Maquereau fumé | AC12: 1 filet | AD12: 145 g | AF12: Fromages : camembert 250, livarot 500, pont-l'évêque 320, petit-suisse 25-30, yaourt (petit pot) 120-150. | AV12: POIDS MOYEN BRUT DE LA PIÈCE | AX12: http://www.basesdelacuisine.com/Cadre1/z1/pp80.htm
B13: =LARGE(B7:B12,1)+1 -> 7 | C13: Avocat 1/2 | D13: 110 | E13: 10 | F13: 1100 | G13: 1.1 | I13: =LARGE(I7:I12,1)+1 -> 61 | J13: Lentilles Verre de 20 cl | K13: 150 | L13: 10 | M13: 1500 | N13: 1.5 | P13: =LARGE(P7:P12,1)+1 -> 118 | Q13: Sel fin 1 cuillère soupe rase | R13: 15 | S13: 10 | T13: 150 | U13: 0.15 | AB13: Margarine | AC13: 1 cuillère | AD13: 18 g
B14: =LARGE(B7:B13,1)+1 -> 8 | C14: Avocat entier | D14: 220 | E14: 10 | F14: 2200 | G14: 2.2 | J14: M | K14: 0 | M14: 0 | N14: 0 | P14: =LARGE(P7:P13,1)+1 -> 119 | Q14: Sel fin 1 tasse | R14: 200 | S14: 10 | T14: 2000 | U14: 2 | X14: Bacon | Y14: 1 fine tranche | Z14: 11 g | AB14: Mayonnaise | AC14: 1 cuillère | AD14: 25 g | AF14: Fruits : abricot 55, banane 150, citron 125, datte 10, figue sèche 42, figue fraîche 45, mandarine 100, noix 13, orange 180, pamplemousse 400, pêche 130, poire 180, pomme 120, pruneau 15. | AV14: Fruits et légumes frais Poids moyen d'une pièce | AY14: http://lahalledepessac.com/content/14-fruits-et-legumes-frais-poids-moyen-d-une-piece
C15: B | D15: 0 | F15: 0 | G15: 0 | I15: =LARGE(I7:I14,1)+1 -> 62 | J15: Maizena 1 cuillère soupe | K15: 10 | L15: 10 | M15: 100 | N15: 0.1 | P15: =LARGE(P7:P14,1)+1 -> 120 | Q15: Sel pour 1 Kg Blé | R15: 12 | S15: 10 | T15: 120 | U15: 0.12 | X15: Banane | Y15: 1 moyenne | Z15: 130 g | AB15: Melon | AC15: 1 moyen | AD15: 540 g
B16: =LARGE(B7:B15,1)+1 -> 9 | C16: Banane | D16: 120 | E16: 10 | F16: 1200 | G16: 1.2 | I16: =LARGE(I7:I15,1)+1 -> 63 | J16: Melon gros | K16: 800 | L16: 10 | M16: 8000 | N16: 8 | P16: =LARGE(P7:P15,1)+1 -> 121 | Q16: Sel pour 1 Kg Foie gras | R16: 12 | S16: 10 | T16: 120 | U16: 0.12 | X16: Beurre | Y16: 1 cuillère | Z16: 18 g | AB16: Merlan | AC16: 1 filet | AD16: 100 g | AF16: Légumes : artichaut 250, aubergine 225, chou 1 000, chou-fleur 1 200, laitue 500, romaine 400, chicorée frisée 400, melon 700-1 000, radis (la botte) 350, tomate 100, oignon 125. | AV16: TABLES DE GRAMMAGES | AW16: http://etab.ac-poitiers.fr/lycee-hotelier-la-rochelle/IMG/pdf/Grammage_4.pdf
B17: =LARGE(B7:B16,1)+1 -> 10 | C17: Baton de vanille | D17: 8 | E17: 10 | F17: 80 | G17: 0.08 | I17: =LARGE(I7:I16,1)+1 -> 64 | J17: Melon portion | K17: 500 | L17: 10 | M17: 5000 | N17: 5 | P17: =LARGE(P7:P16,1)+1 -> 122 | Q17: Sel pour 1 Kg Merguez | R17: 19 | S17: 10 | T17: 190 | U17: 0.19 | X17: Beurre de cacahuète | Y17: 1 cuillère | Z17: 15 g | AB17: Miel | AC17: 1 cuillère | AD17: 27 g
B18: =LARGE(B7:B17,1)+1 -> 11 | C18: Beurre 1 cuillère café | D18: 4 | E18: 10 | F18: 40 | G18: 0.04 | I18: =LARGE(I7:I17,1)+1 -> 65 | J18: Merlan | K18: 230 | L18: 10 | M18: 2300 | N18: 2.3 | P18: =LARGE(P7:P17,1)+1 -> 123 | Q18: Sel pour 1 Kg Pâtes alimentaires | R18: 12 | S18: 10 | T18: 120 | U18: 0.12 | X18: Bière (pils) | Y18: 1 verre à bière | Z18: 250 ml | AB18: Milk-shake | AC18: 1 verre | AD18: 150 ml | AF18: Poissons (entiers) : brochet 1 250, carpe 775, colin 2 000, daurade 600, églefin 350, hareng 170, saur 130, limande 150, maquereau 250, merlan 230, plie 160, sardine 45, truite 450, turbot 2 350. | AV18: POIDS MOYEN BRUT LEGUMES ET FRUITS | AX18: http://dmcwilshim.canalblog.com/archives/2009/01/18/12131475.html
B19: =LARGE(B7:B18,1)+1 -> 12 | C19: Beurre 1 cuillère soupe | D19: 15 | E19: 10 | F19: 150 | G19: 0.15 | I19: =LARGE(I7:I18,1)+1 -> 66 | J19: Mouton 1/2 carcasse | K19: 9.5 | L19: 10 | M19: 95 | N19: 0.095 | P19: =LARGE(P7:P18,1)+1 -> 124 | Q19: Sel pour 1 Kg Pommes terre | R19: 13 | S19: 10 | T19: 130 | U19: 0.13 | X19: Biscotte blanche/complète | Y19: 1 | Z19: 8 g/10 g | AB19: Moule | AC19: 1 pièce | AD19: 4 g
B20: =LARGE(B7:B19,1)+1 -> 13 | C20: Beurre 1 noisette | D20: 4 | E20: 10 | F20: 40 | G20: 0.04 | I20: =LARGE(I7:I19,1)+1 -> 67 | J20: Mouton carré couvert (5+3) | K20: 900 | L20: 10 | M20: 9000 | N20: 9 | P20: =LARGE(P7:P19,1)+1 -> 125 | Q20: Sel pour 1 Kg Saucisse a griller | R20: 12 | S20: 10 | T20: =(R20*S20)/1000 -> 0.12 | U20: 0.00012 | X20: Biscuit | Y20: 1 | Z20: 10 g | AB20: Muesli | AC20: 1 tasse à café | AD20: 50 g | AF20: Sucre (morceau) : 6. | AV20: Correspondance Calibre/ Poids fruits legumes
B21: =LARGE(B7:B20,1)+1 -> 14 | C21: Beurre 1 noix | D21: 15 | E21: 10 | F21: 150 | G21: 0.15 | I21: =LARGE(I7:I20,1)+1 -> 68 | J21: Mouton carré découvert (5) | K21: 900 | L21: 10 | M21: 9000 | N21: 9 | P21: =LARGE(P7:P20,1)+1 -> 126 | Q21: Sel pour 1 Kg Semoule a couscous | R21: 13 | S21: 10 | T21: =(R21*S21)/1000 -> 0.13 | U21: 0.00013 | X21: Biscuit apéritif | Y21: 1 pièce | Z21: 4 g
B22: =LARGE(B7:B21,1)+1 -> 15 | C22: Beurre 1 tasse | D22: 200 | E22: 10 | F22: 2000 | G22: 2 | I22: =LARGE(I7:I21,1)+1 -> 69 | J22: Mouton cervelle | K22: 230 | L22: 10 | M22: 2300 | N22: 2.3 | P22: =LARGE(P7:P21,1)+1 -> 127 | Q22: Semoule Tasse thé de 15 cl | R22: 110 | S22: 10 | T22: =(R22*S22)/1000 -> 1.1 | U22: 0.0011 | X22: Biscuit au chocolat | Y22: 1 | Z22: 20 g | AB22: Nectarine | AC22: 1 | AD22: 95 g | AF22: Viandes : lapin (vidé) 1 500 ; oie (entière) 5 500 ; poulet (entier) 1 800. Cervelle : bœuf 500, veau 300, mouton 100, porc 110. | AV22: https://portal.health.fgov.be/pls/portal/docs/PAGE/INTERNET_PG/HOMEPAGE_MENU/ABOUTUS1_MENU/INSTITUTIONSAPPARENTEES1_MENU/HOGEGEZONDHEIDSRAAD1_MENU/ADVIEZENENAANBEVELINGEN1_MENU/ADVIEZENENAANBEVELINGEN1_DOCS/6545-2_POIDSETMESURES_FR_2005_2.PDF
B23: =LARGE(B7:B22,1)+1 -> 16 | C23: Bœuf Cervelle | D23: 500 | E23: 10 | F23: 5000 | G23: 5 | I23: =LARGE(I7:I22,1)+1 -> 70 | J23: Mouton cœur | K23: 230 | L23: 10 | M23: 2300 | N23: 2.3 | P23: =LARGE(P7:P22,1)+1 -> 128 | Q23: Semoule Verre de 20 cl | R23: 130 | S23: 10 | T23: =(R23*S23)/1000 -> 1.3 | U23: 0.0013 | X23: Boudin blanc | Y23: 1 | Z23: 100 g | AB23: Noisettes | AC23: 10 pièces | AD23: 12 g | AF23: Cœur : bœuf 2 750, veau 500, mouton 230, porc 225. Foie : bœuf 8 500, veau 2 500, porc 750.
B24: =LARGE(B7:B23,1)+1 -> 17 | C24: Bœuf cœur | D24: 2750 | E24: 10 | F24: 27500 | G24: 27.5 | I24: =LARGE(I7:I23,1)+1 -> 71 | J24: Mouton épaule | K24: 1.7 | L24: 10 | M24: 17 | N24: 0.017 | P24: =LARGE(P7:P23,1)+1 -> 129 | Q24: Sole T1 | R24: 280 | S24: 10 | T24: =(R24*S24) -> 2800 | U24: 2.8 | X24: Boudin noir | Y24: 1 | Z24: 100 g | AF24: Langue : bœuf 4 000, veau 1 000. Pied de porc 200. Ris de veau 750. Rognon : bœuf 1 000, veau 250, porc 170. | AV24: http://www.aliments.org/poids.htm
B25: =LARGE(B7:B24,1)+1 -> 18 | C25: Bœuf entrecôte | D25: 6000 | E25: 10 | F25: 60000 | G25: 60 | I25: =LARGE(I7:I24,1)+1 -> 72 | J25: Mouton gigot raccourci | K25: 2.2 | L25: 10 | M25: 22 | N25: 0.022 | P25: =LARGE(P7:P24,1)+1 -> 130 | Q25: Sole T2 | R25: 350 | S25: 10 | T25: 3500 | U25: 3.5 | X25: Boudoir | Y25: 1 | Z25: 5,5 g | AB25: Oeuf cuit | AC25: 1 | AD25: 50 g
B26: =LARGE(B7:B25,1)+1 -> 19 | C26: Bœuf faux filet | D26: 8000 | E26: 10 | F26: 80000 | G26: 80 | I26: =LARGE(I7:I25,1)+1 -> 73 | J26: Mouton selle anglaise | K26: 2 | L26: 10 | M26: 20 | N26: 0.02 | P26: =LARGE(P7:P25,1)+1 -> 131 | Q26: Sole T3 | R26: 500 | S26: 10 | T26: 5000 | U26: 5 | AB26: Oignon | AC26: 1 moyen | AD26: 115 g | AV26: http://www.astro.ulg.ac.be/cours/magain/stat/stat52.html
B27: =LARGE(B7:B26,1)+1 -> 20 | C27: Bœuf filet | D27: 4200 | E27: 10 | F27: 42000 | G27: 42 | J27: N | K27: 0 | M27: 0 | N27: 0 | P27: =LARGE(P7:P26,1)+1 -> 132 | Q27: Sole T4 + de | R27: 600 | S27: 10 | T27: 6000 | U27: 6 | X27: Cabillaud | Y27: 1 darne | Z27: 175 g | AB27: Olive | AC27: 1 moyenne | AD27: 4 g | AF27: Modification. Poids brut d'aliments résultant de la cuisson de:
B28: =LARGE(B7:B27,1)+1 -> 21 | C28: Bœuf foie | D28: 8500 | E28: 10 | F28: 85000 | G28: 85 | I28: =LARGE(I7:I27,1)+1 -> 74 | J28: Noix | K28: 8 | L28: 10 | M28: 80 | N28: 0.08 | P28: =LARGE(P7:P27,1)+1 -> 133 | Q28: Sole T4 + de | R28: 800 | S28: 10 | T28: 8000 | U28: 8 | X28: Cacahuètes | Y28: 1 cuillère/10 pièces | Z28: 20 g/20 g | AB28: Omelette (1 œuf) | AC28: 1 | AD28: 60 g | AV28: lien : une portion c'est combien sur la nutrition.fr
B29: =LARGE(B7:B28,1)+1 -> 22 | C29: Bœuf langue | D29: 4000 | E29: 10 | F29: 40000 | G29: 40 | I29: =LARGE(I7:I28,1)+1 -> 75 | J29: Noix épluchées Tasse thé de 15 cl | K29: 50 | L29: 10 | M29: 500 | N29: 0.5 | P29: =LARGE(P7:P28,1)+1 -> 134 | Q29: Sucre morceaux | R29: 5 | S29: 10 | T29: 50 | U29: 0.05 | X29: Café/thé | Y29: 1 tasse | Z29: 125g | AB29: Orange | AC29: 1 moyenne | AD29: 140 g | AF29: 100 g d'aliments crus. Farineux : coquillettes 385, macaronis 400, nouilles 385, riz 295, spaghettis 385.
B30: =LARGE(B7:B29,1)+1 -> 23 | C30: Bœuf rognon | D30: 1000 | E30: 10 | F30: 10000 | G30: 10 | J30: O | K30: 0 | M30: 0 | N30: 0 | P30: =LARGE(P7:P29,1)+1 -> 135 | Q30: Sucre semoule 1 cuillère café | R30: 5 | S30: 10 | T30: 50 | U30: 0.05 | X30: Cake | Y30: 1 fine tranche | Z30: 30 g
B31: =LARGE(B7:B30,1)+1 -> 24 | C31: Bœuf train côtes milieu | D31: 8500 | E31: 10 | F31: 85000 | G31: 85 | I31: =LARGE(I7:I30,1)+1 -> 76 | J31: Oeuf le blanc | K31: 30 | L31: 10 | M31: 300 | N31: 0.3 | P31: =LARGE(P7:P30,1)+1 -> 136 | Q31: Sucre semoule 1 cuillère soupe | R31: 15 | S31: 10 | T31: 150 | U31: 0.15 | X31: Cake fourré aux fruits | Y31: 1 fine tranche | Z31: 35 g | AB31: Pain blanc/gris | AC31: 1 tranche carrée | AD31: 27 g | AF31: 100 g d'aliments crus. Légumes frais : artichauts 87, asperges 87, bettes 90, betteraves rouges à l'eau 91, au four 57, carottes à l'eau 100, à l'étouffée 64,
B32: =LARGE(B7:B31,1)+1 -> 25 | C32: Brochet | D32: 1250 | E32: 10 | F32: 12500 | G32: 12.5 | I32: =LARGE(I7:I31,1)+1 -> 77 | J32: Oeuf gros | K32: 60 | L32: 10 | M32: 600 | N32: 0.6 | P32: =LARGE(P7:P31,1)+1 -> 137 | Q32: Sucre semoule 1 tasse | R32: 200 | S32: 10 | T32: 2000 | U32: 2 | X32: Canard/faisan | Y32: 1 portion | Z32: 125 g | AB32: Pain blanc/gris | AC32: 1 tranche ronde | AD32: 29 g
C33: C | F33: 0 | G33: 0 | I33: =LARGE(I7:I32,1)+1 -> 78 | J33: Oeuf moyen | K33: 50 | L33: 10 | M33: 500 | N33: 0.5 | P33: =LARGE(P7:P32,1)+1 -> 138 | Q33: Sucre Verre de 20 cl | R33: 150 | S33: 10 | T33: 1500 | U33: 1.5 | X33: Carambole | Y33: 1 pièce | Z33: 155 g | AB33: Pain complet | AC33: 1 tranche carrée | AD33: 35 g | AF33: 100 g d'aliments crus. légumes frais : , céleris (côtes) 94, raves cuites à l'eau 91, sautées 54, champignons de couche frits 83,
B34: =LARGE(B7:B33,1)+1 -> 26 | C34: Cacao poudre 1 cuillère soupe | D34: 8 | E34: 10 | F34: 80 | G34: 0.08 | I34: =LARGE(I7:I33,1)+1 -> 79 | J34: Oeuf petit | K34: 40 | L34: 10 | M34: 400 | N34: 0.4 | Q34: T | R34: 0 | T34: 0 | U34: 0 | X34: Carotte | Y34: 1 moyenne | Z34: 100 g | AB34: Pain complet | AC34: 1 tranche ronde | AD34: 45 g
B35: =LARGE(B7:B34,1)+1 -> 27 | C35: Cacao Tasse thé de 15 cl | D35: 120 | E35: 10 | F35: 1200 | G35: 1.2 | I35: =LARGE(I7:I34,1)+1 -> 80 | J35: Œufs 1 douzaine | K35: 50 | L35: 12 | M35: 600 | N35: 0.6 | P35: =LARGE(P7:P34,1)+1 -> 139 | Q35: Tapioca Tasse thé de 15 cl | R35: 100 | S35: 10 | T35: 1000 | U35: 1 | X35: Céleri rave, cru | Y35: 1 portion | Z35: 85 g | AB35: Pain grillé blanc/gris | AC35: 1 | AD35: 21 g | AF35: 100 g d'aliments crus. légumes frais : chou vert, cuit à l'eau 92, à l'étouffée 64, de Bruxelles 86, -fleur 92,
B36: =LARGE(B7:B35,1)+1 -> 28 | C36: Canard vidé | D36: 1500 | E36: 10 | F36: 15000 | G36: 15 | I36: =LARGE(I7:I35,1)+1 -> 81 | J36: Œufs blanc d' | K36: 30 | L36: 10 | M36: 300 | N36: 0.3 | P36: =LARGE(P7:P35,1)+1 -> 140 | Q36: Thon boite 1/10 | R36: 80 | S36: 10 | T36: 800 | U36: 0.8 | X36: Céréales de petit déjeuner | Y36: 1 tasse à café | Z36: 40 g | AB36: Pain d'épices | AC36: 1 tranche | AD36: 23 g
B37: =LARGE(B7:B36,1)+1 -> 29 | C37: Carotte moyenne | D37: 120 | E37: 10 | F37: 1200 | G37: 1.2 | I37: =LARGE(I7:I36,1)+1 -> 82 | J37: Œufs entiers | K37: 50 | L37: 10 | M37: 500 | N37: 0.5 | P37: =LARGE(P7:P36,1)+1 -> 141 | Q37: Thon boite 1/3 saladière | R37: 260 | S37: 10 | T37: 2600 | U37: 2.6 | X37: Cerise (sans noyau) | Y37: 1 | Z37: 4 g | AB37: Pain de seigle | AC37: 1 tranche | AD37: 40 g | AF37: 100 g d'aliments crus. légumes frais : épinards cuits à l'eau ou au jus 83, haricots verts cuits à l'eau 104, à l'étouffée 90, navets, cuits à l'eau 95, à l'étouffée 92,
B38: =LARGE(B7:B37,1)+1 -> 30 | C38: Céléri 1 branche | D38: 35 | E38: 10 | F38: 350 | G38: 0.35 | I38: =LARGE(I7:I37,1)+1 -> 83 | J38: Œufs jaune | K38: 20 | L38: 10 | M38: 200 | N38: 0.2 | P38: =LARGE(P7:P37,1)+1 -> 142 | Q38: Thon boite 1/5 | R38: 160 | S38: 10 | T38: 1600 | U38: 1.6 | X38: Cervelas | Y38: 1 | Z38: 150 g | AB38: Pain de viande | AC38: 1 fine tranche | AD38: 30 g
B39: =LARGE(B7:B38,1)+1 -> 31 | C39: Céléri rave | D39: 1000 | E39: 10 | F39: 10000 | G39: 10 | I39: =LARGE(I7:I38,1)+1 -> 84 | J39: Oignon moyen | K39: 70 | L39: 10 | M39: 700 | N39: 0.7 | P39: =LARGE(P7:P38,1)+1 -> 143 | Q39: Thon boite 1/6 basse | R39: 430 | S39: 10 | T39: 4300 | U39: 4.3 | X39: Champignon, cuit | Y39: 1 cuillère | Z39: 30 g | AB39: Pain français (baguette) | AC39: 1 moyen | AD39: 260 g | AF39: 100 g d'aliments crus. légumes frais : poireaux 81, p. de terre en robe des champs 98, à l'anglaise 95, au four 80, en purée 119, en ragoût 154, frites 44 1,
B40: =LARGE(B7:B39,1)+1 -> 32 | C40: Cerises | D40: 65 | E40: 10 | F40: 650 | G40: 0.65 | I40: =LARGE(I7:I39,1)+1 -> 85 | J40: Olives | K40: 4 | L40: 10 | M40: 40 | N40: 0.04 | P40: =LARGE(P7:P39,1)+1 -> 144 | Q40: Thon boite 1/8 | R40: 52 | S40: 10 | T40: 520 | U40: 0.52 | X40: Chicon | Y40: 1 | Z40: 100 g | AB40: Pamplemousse | AC40: 1 moyen | AD40: 200 g
B41: =LARGE(B7:B40,1)+1 -> 33 | C41: Choux fleur | D41: 1500 | E41: 10 | F41: 15000 | G41: 15 | I41: =LARGE(I7:I40,1)+1 -> 86 | J41: Orange | K41: 240 | L41: 10 | M41: 2400 | N41: 2.4 | P41: =LARGE(P7:P40,1)+1 -> 145 | Q41: Thon boite 4/4 saladière | R41: 118 | S41: 10 | T41: 1180 | U41: 1.18 | X41: Chips | Y41: 1 paquet | Z41: 30 g | AB41: Papaye | AC41: 1 moyenne | AD41: 125 g | AF41: 100 g d'aliments crus. légumes frais : , potiron 55, scarole 71, tomates frites 69. Légumes secs : fèves 310, haricots 270,
B42: =LARGE(B7:B41,1)+1 -> 34 | C42: Choux vert | D42: 2000 | E42: 10 | F42: 20000 | G42: 20 | I42: =LARGE(I7:I41,1)+1 -> 87 | J42: Orange moyenne | K42: 140 | L42: 10 | M42: 1400 | N42: 1.4 | P42: =LARGE(P7:P41,1)+1 -> 146 | Q42: Tomate grosse | R42: 110 | S42: 10 | T42: 1100 | U42: 1.1 | X42: Chocolat | Y42: 1 barre | Z42: 25 g | AB42: Parmesan | AC42: 1 cuillère | AD42: 10 g
B43: =LARGE(B7:B42,1)+1 -> 35 | C43: Citron moyen | D43: 80 | E43: 10 | F43: 800 | G43: 0.8 | J43: P | K43: 0 | M43: 0 | N43: 0 | P43: =LARGE(P7:P42,1)+1 -> 147 | Q43: Tomate moyenne | R43: 50 | S43: 10 | T43: 500 | U43: 0.5 | X43: Chou de Bruxelles, cuit | Y43: 1 cuillère | Z43: 40 g | AB43: Pastèque | AC43: 1 moyenne | AD43: 1125 g | AF43: 100 g d'aliments crus. légumes frais : ,, pois cassés 400.
B44: =LARGE(B7:B43,1)+1 -> 36 | C44: Clémentine | D44: 70 | E44: 10 | F44: 700 | G44: 0.7 | I44: =LARGE(I7:I43,1)+1 -> 88 | J44: Pamplemousse | K44: 400 | L44: 10 | M44: 4000 | N44: 4 | P44: =LARGE(P7:P43,1)+1 -> 148 | Q44: Tomate petite | R44: 50 | S44: 10 | T44: 500 | U44: 0.5 | X44: Chou-fleur/brocoli, cuit | Y44: 1 cuillère | Z44: 30 g | AB44: Pâte à tartiner (choco) | AC44: 1 cuillère | AD44: 33 g
B45: =LARGE(B7:B44,1)+1 -> 37 | C45: Colin | D45: 2000 | E45: 10 | F45: 20000 | G45: 20 | I45: =LARGE(I7:I44,1)+1 -> 89 | J45: Pêche | K45: 120 | L45: 10 | M45: 1200 | N45: 1.2 | P45: =LARGE(P7:P44,1)+1 -> 149 | Q45: Truite portion | R45: 250 | S45: 10 | T45: 2500 | U45: 2.5 | X45: Citron | Y45: 1 moyen | Z45: 70 g | AB45: Pâté de foie | AC45: 1 cuillère | AD45: 15 g | AF45: 100 g d'aliments crus. l Poissons : au court-bouillon 95, frits 81. Crevettes : 97.
B46: =LARGE(B7:B45,1)+1 -> 38 | C46: Concombre | D46: 200 | E46: 10 | F46: 2000 | G46: 2 | I46: =LARGE(I7:I45,1)+1 -> 90 | J46: Pied veau | K46: 1 | L46: 10 | M46: 10 | N46: 0.01 | P46: =LARGE(P7:P45,1)+1 -> 150 | Q46: Turbot | R46: 3500 | S46: 10 | T46: 35000 | U46: 35 | X46: Clémentine | Y46: 1 | Z46: 35 g | AB46: Pâtes, cuites | AC46: 1 tasse à café | AD46: 210 g
B47: =LARGE(B7:B46,1)+1 -> 39 | C47: Coquillette Verre de 20 cl | D47: 120 | E47: 10 | F47: 1200 | G47: 1.2 | I47: =LARGE(I7:I46,1)+1 -> 91 | J47: Poireau beau | K47: 200 | L47: 10 | M47: 2000 | N47: 2 | Q47: V | R47: 0 | T47: 0 | U47: 0 | X47: Compote de pommes | Y47: 1 cuillère | Z47: 40 g | AB47: Pâtes, sèches | AC47: 1 tasse à café | AD47: 70 g | AF47: 100 g d'aliments crus. Viandes : bœuf : bifteck grillé 88, au gril 83, au plat 88, rôti (1/2 h) 77, bouilli 83.
B48: =LARGE(B7:B47,1)+1 -> 40 | C48: Courgette | D48: 350 | E48: 10 | F48: 3500 | G48: 3.5 | I48: =LARGE(I7:I47,1)+1 -> 92 | J48: Poireau blanc de | K48: 40 | L48: 10 | M48: 400 | N48: 0.4 | P48: =LARGE(P7:P47,1)+1 -> 151 | Q48: Veau carré couvert (5+3) | R48: 2200 | S48: 10 | T48: 22000 | U48: 22 | X48: Concombre, cru | Y48: 1 portion | Z48: 85 g | AB48: Pêche (sans noyau) | AC48: 1 | AD48: 125 g
B49: =LARGE(B7:B48,1)+1 -> 41 | C49: Cresson botte | D49: 200 | E49: 10 | F49: 2000 | G49: 2 | I49: =LARGE(I7:I48,1)+1 -> 93 | J49: Poireau moyen | K49: 150 | L49: 10 | M49: 1500 | N49: 1.5 | P49: =LARGE(P7:P48,1)+1 -> 152 | Q49: Veau carré découvert (5) | R49: 2000 | S49: 10 | T49: 20000 | U49: 20 | X49: Confiture | Y49: 1 cuillère | Z49: 30 g | AB49: Pickles | AC49: 1 cuillère | AD49: 15 g | AF49: 100 g d'aliments crus. Viandes : Veau : à la poêle 93, rôti (3/4 d'h) 74. Mouton : rôti 73, sauté 69.
B50: =LARGE(B7:B49,1)+1 -> 42 | C50: Cuillère café liquide | D50: 5 | E50: 10 | F50: 50 | G50: 0.05 | I50: =LARGE(I7:I49,1)+1 -> 94 | J50: Poivron | K50: 150 | L50: 10 | M50: 1500 | N50: 1.5 | P50: =LARGE(P7:P49,1)+1 -> 153 | Q50: Veau cervelle | R50: 300 | S50: 10 | T50: 3000 | U50: 3 | X50: Corned-beef | Y50: 1 fine tranche | Z50: 20 g | AB50: Pistolet | AC50: 1 | AD50: 45 g
B51: =LARGE(B7:B50,1)+1 -> 43 | C51: Cuillère soupe liquide | D51: 10 | E51: 10 | F51: 100 | G51: 0.1 | I51: =LARGE(I7:I50,1)+1 -> 95 | J51: Pomelos 1/2 | K51: 200 | L51: 10 | M51: 2000 | N51: 2 | P51: =LARGE(P7:P50,1)+1 -> 154 | Q51: Veau cœur | R51: 900 | S51: 10 | T51: 9000 | U51: 9 | X51: Corn Flakes | Y51: 1 tasse à café | Z51: 30 g | AB51: Plie | AC51: 1 pièce | AD51: 135 g | AF51: 100 g d'aliments crus. Viandes : Porc : côtelette 83, rôti 64. Cheval : bifteck à la poêle 93. Foie : 91. Boudin : 94. Saucisse fraîche : 92.
C52: D | D52: 0 | F52: 0 | G52: 0 | I52: =LARGE(I7:I51,1)+1 -> 96 | J52: Pomme | K52: 140 | L52: 10 | M52: 1400 | N52: 1.4 | P52: =LARGE(P7:P51,1)+1 -> 155 | Q52: Veau Foie | R52: 3500 | S52: 10 | T52: 35000 | U52: 35 | X52: Couque à la crème | Y52: 1 | Z52: 80 g | AB52: Poire | AC52: 1 moyenne | AD52: 160 g
B53: =LARGE(B7:B52,1)+1 -> 44 | C53: Daurade | D53: 600 | E53: 10 | F53: 6000 | G53: 6 | I53: =LARGE(I7:I52,1)+1 -> 97 | J53: Pomme de terre moyenne | K53: 100 | L53: 10 | M53: 1000 | N53: 1 | P53: =LARGE(P7:P52,1)+1 -> 156 | Q53: Veau langue | R53: 1200 | S53: 10 | T53: 12000 | U53: 12 | X53: Couque au beurre | Y53: 1 | Z53: 75 g | AB53: Poireau, cuit | AC53: 1 cuillère | AD53: 45 g | AG53: Verres
C54: E | D54: 0 | F54: 0 | G54: 0 | I54: =LARGE(I7:I53,1)+1 -> 98 | J54: Pomme fruit grosse | K54: 150 | L54: 10 | M54: 1500 | N54: 1.5 | P54: =LARGE(P7:P53,1)+1 -> 157 | Q54: Veau noix | R54: 3100 | S54: 10 | T54: 31000 | U54: 31 | X54: Couque suisse | Y54: 1 longue / ronde | Z54: 75 g / 90 g | AB54: Poivron vert/jaune/rouge | AC54: 1 pièce | AD54: 185 g | AG54: Petit verre à eau/limonade, rempli normalement 150
B55: =LARGE(B7:B54,1)+1 -> 45 | C55: Eau grand verre à eau | D55: 200 | E55: 10 | F55: 2000 | G55: 2 | I55: =LARGE(I7:I54,1)+1 -> 99 | J55: Pomme fruit moyenne | K55: 100 | L55: 10 | M55: 1000 | N55: 1 | P55: =LARGE(P7:P54,1)+1 -> 158 | Q55: Veau noix patissière | R55: 2650 | S55: 10 | T55: 26500 | U55: 26.5 | X55: Courgette, cuite | Y55: 1 cuillère | Z55: 35 g | AB55: Pomme | AC55: 1 moyenne | AD55: 140 g
B56: =LARGE(B7:B55,1)+1 -> 46 | C56: Echalote belle | D56: 25 | E56: 10 | F56: 250 | G56: 0.25 | I56: =LARGE(I7:I55,1)+1 -> 100 | J56: Pomme terre grosse | K56: 200 | L56: 10 | M56: 2000 | N56: 2 | P56: =LARGE(P7:P55,1)+1 -> 159 | Q56: Veau ris | R56: 750 | S56: 10 | T56: 7500 | U56: 7.5 | X56: Cramique | Y56: 1 tranche | Z56: 40 g | AB56: Pomme de terre, cuite (ovale) | AC56: 1 | AD56: 50 g | AG56: Grand verre à eau/limonade, rempli normalement 250
B57: =LARGE(B7:B56,1)+1 -> 47 | C57: Echalote moyenne | D57: 18 | E57: 10 | F57: 180 | G57: 0.18 | I57: =LARGE(I7:I56,1)+1 -> 101 | J57: Pomme terre moyenne | K57: 120 | L57: 10 | M57: 1200 | N57: 1.2 | P57: =LARGE(P7:P56,1)+1 -> 160 | Q57: Veau rognon | R57: 350 | S57: 10 | T57: 3500 | U57: 3.5 | X57: Crème | Y57: 1 cuillère | Z57: 24 g | AB57: Pomme de terre, rôtie | AC57: 1 cuillère | AD57: 30 g
B58: =LARGE(B7:B57,1)+1 -> 48 | C58: Echalote petite | D58: 10 | E58: 10 | F58: 100 | G58: 0.1 | I58: =LARGE(I7:I57,1)+1 -> 102 | J58: Pomme terre petite | K58: 80 | L58: 10 | M58: 800 | N58: 0.8 | P58: =LARGE(P7:P57,1)+1 -> 161 | Q58: Veau sous noix | R58: 6200 | S58: 10 | T58: 62000 | U58: 62 | X58: Crème à fouetter | Y58: 1 cuillère | Z58: 12 g | AB58: Porto | AC58: 1 petit verre | AD58: 75 ml | AG58: Verre à vin: blanc/rouge, rempli normalement 125
B59: =LARGE(B7:B58,1)+1 -> 49 | C59: Ecrevisse | D59: 35 | E59: 10 | F59: 350 | G59: 0.35 | I59: =LARGE(I7:I58,1)+1 -> 103 | J59: Porc cervelle | K59: 225 | L59: 10 | M59: 2250 | N59: 2.25 | X59: Crème glacée | Y59: 1 boule | Z59: 50 g | AB59: Poulet, poitrine (sans peau) | AC59: 1 filet | AD59: 160 g
C60: F | D60: 0 | F60: 0 | G60: 0 | I60: =LARGE(I7:I59,1)+1 -> 104 | J60: Porc cœur | K60: 225 | L60: 10 | M60: 2250 | N60: 2.25 | X60: Crêpe | Y60: 1 pièce | Z60: 60 g | AB60: Poulet, cuisse(sans peau) | AC60: 1 cuisse | AD60: 165 g | AG60: Verre à mousseux, rempli normalement 100
B61: =LARGE(B7:B60,1)+1 -> 50 | C61: Farine 1 cuillère café | D61: 3 | E61: 10 | F61: 30 | G61: 0.03 | I61: =LARGE(I7:I60,1)+1 -> 105 | J61: Porc foie | K61: 750 | L61: 10 | M61: 7500 | N61: 7.5 | X61: Crevettes | Y61: 1 cuillère | Z61: 18 g | AB61: Praline | AC61: 1 | AD61: 15 g
B62: =LARGE(B7:B61,1)+1 -> 51 | C62: Farine 1 cuillère soupe | D62: 8 | E62: 10 | F62: 80 | G62: 0.08 | I62: =LARGE(I7:I61,1)+1 -> 106 | J62: Porc jambon | K62: 8.6 | L62: 10 | M62: 86 | N62: 0.086 | X62: Croissant | Y62: 1 moyen | Z62: 50 g | AB62: Prune, sans noyau | AC62: 1 moyenne | AD62: 55 g | AG62: Verre à bière, rempli normalement 250 et 330
B63: =LARGE(B7:B62,1)+1 -> 52 | C63: Farine 1 tasse | D63: 100 | E63: 10 | F63: 1000 | G63: 1 | I63: =LARGE(I7:I62,1)+1 -> 107 | J63: Porc longe | K63: 11.5 | L63: 10 | M63: 115 | N63: 0.115 | X63: Croque-monsieur | Y63: 1 | Z63: 135 g | AB63: Prune, sèche | AC63: 1 | AD63: 6 g
B64: =LARGE(B7:B63,1)+1 -> 53 | C64: Farine Tasse thé de 15 cl | D64: 100 | E64: 10 | F64: 1000 | G64: 1 | I64: =LARGE(I7:I63,1)+1 -> 108 | J64: Porc poitrine | K64: 3.75 | L64: 10 | M64: 37.5 | N64: 0.0375 | X64: Croquette de pomme de terre (c) | Y64: 1 moyenne | Z64: 27 g | AB64: Pudding | AC64: 1 portion | AD64: 125 g/200 g | AG64: Lors de l’établissement du poids des denrées alimentaires liquides (boissons alcoolisées,
B65: =LARGE(B7:B64,1)+1 -> 54 | C65: Farine Verre de 20 cl | D65: 135 | E65: 10 | F65: 1350 | G65: 1.35 | I65: =LARGE(I7:I64,1)+1 -> 109 | J65: Porc rognon | K65: 170 | L65: 10 | M65: 1700 | N65: 1.7 | AB65: Purée de pommes de terre | AC65: 1 cuillère/portion | AD65: 50 g/160 g
B66: =LARGE(B7:B65,1)+1 -> 55 | C66: Fraise | D66: 12 | E66: 10 | F66: 120 | G66: 0.12 | I66: =LARGE(I7:I65,1)+1 -> 110 | J66: Poulet 4/4 | K66: 1000 | L66: 10 | M66: 10000 | N66: 10 | AG66: lait, lait chocolaté et lait de soja, milkshake et yaourt) les "ml" ont été assimilés aux "g"
I67: =LARGE(I7:I66,1)+1 -> 111 | J67: Poulet pac | K67: 1500 | L67: 10 | M67: 15000 | N67: 15 | X67: Aliment | Y67: Mesure de capacité | Z67: Poids | AB67: Aliment | AC67: Mesure de capacité | AD67: Poids | AG67: (source 7.104).
I68: =LARGE(I7:I67,1)+1 -> 112 | J68: Pruneau | K68: 15 | L68: 10 | M68: 150 | N68: 0.15
X69: Datte sèche (sans noyau) | Y69: 1 | Z69: 9 g | AB69: Radis | AC69: 1 pièce | AD69: 6 g | AG69: Pour la crème glacée et la mousse, le facteur de conversion est mentionné dans la colonne
AB70: Raisin | AC70: 1 | AD70: 7 g | AG70: précisions.
X71: Éclair au chocolat | Y71: 1 pièce | Z71: 115 g | AB71: Raisin, sec | AC71: 1 cuillère | AD71: 12 g
X72: Edam jeune | Y72: 1 fine tranche | Z72: 25 g | AB72: Ravioli | AC72: 1 portion | AD72: 400 g
AB73: Riz au lait, vanille | AC73: 1 portion | AD73: 100 g/200 g | AF73: Nota : (1) En cuisant, les pommes frites absorbent 8 à 10 % de matières grasses.
X74: Farine | Y74: 1 cuillère | Z74: 12 g | AB74: Riz, cuit | AC74: 1 portion | AD74: 150 g | AF74: Besoins journaliers (limites moyennes) | AG74: En grammes | AJ74: En milligrammes
X75: Fécule de pomme de terre | Y75: 1 cuillère | Z75: 12 g | AB75: Riz, non cuit | AC75: 1 sachet | AD75: 62,5 g | AG75: Protides | AH75: Lipides | AI75: Glucides | AJ75: Calcium 7 | AK75: Phosphore | AL75: Fer | AM75: Vit. C
X76: Fenouil | Y76: 1 | Z76: 200 g | AF76: Jeunes
X77: Fève de soja, cuite | Y77: 1 tasse à café | Z77: 140 g | AB77: Salami | AC77: 1 fine tranche | AD77: 9 g | AF77: 2 à 4 ans | AG77: 30/35 | AH77: 32 | AI77: 200/250 | AJ77: 700/750 | AK77: 650/700 | AL77: 40/94 | AM77: 40/60
X78: Figue, sèche | Y78: 1 pièce | Z78: 20 g | AB78: Sandwich sucré | AC78: 1 | AD78: 40 g | AF78: 4 à 6 ans | AG78: 35/40 | AH78: 33 | AI78: 200/250 | AJ78: 600/800 | AK78: 600/800 | AL78: 40/94 | AM78: 40/60
X79: Filet d'Anvers | Y79: 1 tranche | Z79: 15 g | AB79: Sardine | AC79: 1 pièce | AD79: 33 g | AF79: 6 à 10 ans | AG79: 45/55 | AH79: 37 | AI79: 300/340 | AJ79: 850/950 | AK79: 850/950 | AL79: 40/94 | AM79: 40/60
X80: Flétan, fumé | Y80: 1 fine tranche | Z80: 30 g | AB80: Saumon | AC80: 1 tranche | AD80: 180 g | AF80: 10 à 12 ans (filles 9 à 11) | AG80: 60/65 | AH80: 50 | AI80: 350/400 1 | AJ80: 1 000/1 200 | AK80: 1 100/1 300 | AL80: 20/30 | AM80: 60/100
X81: Flocons d'avoine | Y81: 1 tasse à café | Z81: 45 g | AB81: Saumon, fumé | AC81: 1 fine tranche | AD81: 30 g | AF81: 12 à 15 ans (filles 11 à 13) | AG81: 5/9 2 | AH81: 65 | AI81: 440/550 3 | AJ81: 1 200/1 400 | AK81: 1 300/1 500 | AL81: 20/30 | AM81: 60/100
X82: Fraise | Y82: 1 moyenne | Z82: 15 g | AB82: Sel | AC82: 1 cuillère | AD82: 15 g | AF82: 15 à 20 ans (filles 13 à 18) | AG82: 75/100 4 | AH82: 75 | AI82: 550/600 5 | AJ82: 1 400/1 600 | AK82: 1 500/1 700 | AL82: 20/30 | AM82: 60/100
X83: Frangipane | Y83: 1 part | Z83: 100 g | AB83: Soupe | AC83: 1 tasse/1 assiette | AD83: 300 ml/250 ml | AF83: Hommes
X84: Frites | Y84: 1 portion | Z84: 250 g | AB84: Spaghetti, préparé | AC84: 1 assiette | AD84: 300 g | AF84: Vie sédentaire | AG84: 75/85 4 | AH84: 60 | AI84: 400/500 | AJ84: 800/900 | AK84: 1 200/1 400 | AL84: 18/20 | AM84: 70/80
X85: Fromage frais | Y85: 1 cuillère | Z85: 25 g | AB85: Spéculoos | AC85: 1 pièce | AD85: 7 g | AF85: Travail de force
X86: Fromage fondu | Y86: 1 portion/cuillère | Z86: 20 g/15 g | AB86: Sucre | AC86: 1 cuillère/morceau | AD86: 15 g/6 g | AF86: 4e et 3e cat. | AG86: 85/110 | AH86: 75 | AI86: 550/700 | AJ86: 1 000/1 200 | AK86: 1 500/1 800 | AL86: 23/26 | AM86: 90/110
X87: Fruit de la passion | Y87: 1 moyen | Z87: 15 g | AB87: Sucre impalpable | AC87: 1 cuillère | AD87: 6 g | AF87: 2e et 1re cat. | AG87: 100/110 | AH87: 95 | AI87: 850/1 000 | AJ87: 1 400/1 600 | AK87: 2 000/2 400 | AL87: 30/45 | AM87: 130/150
AF88: Femmes
X89: Galette de riz | Y89: 1 pièce | Z89: 7 g | AB89: Tarte à la confiture | AC89: 1 part | AD89: 80 g | AF89: Vie sédentaire | AG89: 65/75 4 | AH89: 50 | AI89: 350/400 | AJ89: 800/900 | AK89: 1 000/1 200 | AL89: 15/20 | AM89: 60/70
X90: Gaufre au chocolat | Y90: 1 moyenne | Z90: 60 g | AB90: Tarte au riz | AC90: 1 part | AD90: 140 g | AF90: Enceintes (5e-9e mois) 6 | AG90: 90/110 | AH90: 80 | AI90: 500/550 | AJ90: 1 500/2 000 | AK90: 1 500/2 000 | AL90: 20/25 | AM90: 100/150
X91: Gaufre de Liège | Y91: 1 moyenne | Z91: 55 g | AB91: Tarte aux fruits | AC91: 1 part | AD91: 165 g | AF91: Allaitant 6 | AG91: 100/110 | AH91: 80 | AI91: 500/550 | AJ91: 1 500/2 000 | AK91: 1 500/2 000 | AL91: 20/25 | AM91: 100/150
X92: Gouda | Y92: 1 fine tranche | Z92: 20 g | AB92: Tarte aux mattons | AC92: 1 morceau | AD92: 120 g | AF92: Vieillards 6 | AG92: 65 | AH92: 45 | AI92: 300/400 | AJ92: 900/1 000 | AK92: 900/1 000 | AL92: 14/16 | AM92: 50/60
X93: Graisse de cuisson | Y93: 1 cuillère | Z93: 18 g | AB93: Toast | AC93: 1 pièce | AD93: 3 g
X94: Gruyère | Y94: 1 fine tranche | Z94: 25 g | AB94: Tomate | AC94: 1 moyenne | AD94: 150 g | AF94: Nota : Pour les filles : (1) 330/350, (2) 80/85, (3) 400/500, (4) 85-90, (5) 500/550. (6) Vie sédentaire ou légère activité. (7) Contenu surtout dans le fromage et le lait.
X95: Gruyère, râpé | Y95: 1 cuillère | Z95: 15 g | AB95: Truite | AC95: 1 pièce | AD95: 120 g
X97: Hamburger + sandwich | Y97: 1 moyenne | Z97: 130 g | AB97: Viande de porc, côtelette | AC97: 1 avec/sans côte | AD97: 175g /160 g
X98: Haricot blanc, cuit /sec | Y98: 1 cuillère | Z98: 35 g/105 g | AB98: Viande de porc, tranche | AC98: 1 | AD98: 150 g
X99: Hareng/maatje | Y99: 1 moyen | Z99: 80 g | AB99: Vin de table blanc/rouge | AC99: 1 verre | AD99: 125 ml
X100: Huile | Y100: 1 cuillère | Z100: 10 g | AB100: Yaourt | AC100: 1 cuillère | AD100: 25 g
X102: Jambon, cru, fumé | Y102: 1 fine tranche | Z102: 25 g | AB102: 4. MESURES DE CAPACITE*
X103: Jambon, cuit | Y103: 1 fine tranche | Z103: 45 g | AB103: Mesures de capacité calculées à partir d’eau | AD103: Poids en grammes
X104: Jambon de dinde | Y104: 1 fine tranche | Z104: 20 g
X105: Jambon de poulet | Y105: 1 fine tranche | Z105: 20 g | AB105: Cuillère à café | AD105: 4,5 g
X106: Jus de pomme/jus d'orange | Y106: 1 verre | Z106: 150 ml | AB106: Cuillère à soupe | AD106: 12 g
X107: Ketchup | Y107: 1 cuillère | Z107: 23 g | AB107: Cuillère à dessert | AD107: 8 g
X108: Kiwi | Y108: 1 moyen | Z108: 75 g | AB108: Cuillère à sauce | AD108: 25 g
AB109: Louche | AD109: 150 g
X110: Lait | Y110: 1 verre | Z110: 150 ml | AB110: Tasse à ras bord | AD110: 150 g
X111: Lait battu nature | Y111: 1 verre | Z111: 150 ml | AB111: Tasse liquide | AD111: 125 g
X112: Lait chocolaté | Y112: 1 petite bouteille | Z112: 200 ml | AB112: Grande tasse à ras bord | AD112: 250 g
X113: Lait concentré | Y113: 1 portion individuelle | Z113: 7,5 g | AB113: Grande tasse liquide | AD113: 225 g
X114: Langue de bœuf | Y114: 1 fine tranche | Z114: 15 g | AB114: Gobelet plastique à ras bord | AD114: 150 g
X115: Lapin/lièvre (cuisse) | Y115: 1 morceau | Z115: 250 g | AB115: Gobelet plastique liquide | AD115: 125 g
X116: Lard fumé | Y116: 1 petite tranche | Z116: 15 g | AB116: Bol de soupe à ras bord | AD116: 300 g
X117: Lasagne | Y117: 1 portion | Z117: 400 g | AB117: Bol de soupe liquide | AD117: 250 g
X118: Levure fraîche | Y118: 1 petit paquet | Z118: 42 g | AB118: Ravier à dessert | AD118: 150 g
X119: Limonade/cola/eau | Y119: 1 verre | Z119: 150 ml | AB119: Verre à limonade/eau | AD119: 150 g
X120: Litchi | Y120: 1 | Z120: 11 g | AB120: Verre à limonade grand | AD120: 250 g
AB121: Verre à vin rouge | AD121: 125 g
AB122: Verre à vin blanc | AD122: 125 g
AB123: Verre à champagne | AD123: 100 g
AB124: Verre à bière petit | AD124: 250 g
AB125: Verre à bière grand | AD125: 330 g
AB127: * Source:
AB128: Groupe de travail « Poids et mesures », Conseil Supérieur d’Hygiène.

Sheet ORT
B1: ORGANISATION RAISONNÉE DU TRAVAIL
B2: PROCESS > principales étapes > un verbe = une action
B4: Mesures d'Hygiène
B6: Auteur | C6: Michel Grossman et Alain Le Franc La cuisine de collectivité éditions BPI - 2006
B7: =MID(CELL("filename",B7),FIND("[",CELL("filename",B7)),300) -> [OK.Modèle.fiche.F.B2.2022-25.lignes.avec.MFC.xlsm]ORT
B8: MISE EN PLACE DU POSTE DE TRAVAIL
B9: 1 | C9: tenue professionnelle de circonstance (charlotte-masque)
B10: 2 | C10: verifier - bactéricide - esssuie mains - sacs poubelle
B11: 3 | C11: vérifier températures - locaux et chambres froides
B12: 4 | C12: se laver les mains souvent - prévoir gants
B13: 5 | C13: sélectionner le matériel nécessaire
B14: 6 | C14: laver et désinfecter le matériel et le poste de travail
C15: ORGANISATION RAISONNÉE DU TRAVAIL
B16: 1 | C16: controler les marchandises - qualité - quantité - températures
B17: 2 | C17: vérifier les DLC - relever les N° de lot ou conserver les étiquettes
B18: 3 | C18: désinfecter les sachets - poches - barquettes - boites avant ouverture
B19: 4 | C19: laver légumes et fruits avant utilisation
B20: 5 | C20: égoutter en bacs perforées si besoin
B21: 6 | C21: décongeler en bacs perforés + étiquette date de décongélation
B22: 7 | C22: cuire et refroidir en cellule avant assemblage
B23: 8 | C23: trancher - découper - hacher en respectant les protocoles
B24: 9 | C24: préparer l'assaisonnement ou la sauce
B25: 10 | C25: assembler
B26: 11 | C26: gouter et vérifier l'assaisonnement - dresser
B27: 12 | C27: décorer
B28: 13 | C28: conditionner et étiqueter DLC
B29: 14 | C29: garder un plat témoins
B30: 15 | C30: stocker en chambre froide
C32: Pour vérification : cocher - entourer - ou surligner les produits ou actions concernées
C33: Si vous manquez de place pour les codes barres traçabilité
C34: collez les au dos de cette feuille en indiquant le N° de ligne produit

Sheet utilitaires
A1: =CELL("largeur",A1) -> 4 | B1: 10 | C1: 11 | D1: 11 | E1: 11 | F1: 11 | G1: 11 | H1: 10 | I1: 11 | J1: 11 | K1: 11 | L1: 11 | M1: 11 | N1: 11 | O1: 11 | P1: =CELL("largeur",P1) -> 11 | Q1: =CELL("largeur",Q1) -> 11
B2: Cuisiniers : PESEZ …..Evitez les volumes , n'utilisez que les poids comme les pâtissiers
B3: Les cuisiniers "sont des artistes"……..ce qui ne doit pas les empêcher … d'UTILISEZ UNE BALANCE…...les résultats seront plus réguliers
B4: Cuisiniers : PESEZ …..même le sel…..on ne sale pas 50L de sauce à la "chichette" au "pif" ou à l'expérience
B5: la sauce crémée ne se sale pas comme la sauce tomatée etc…….
I8: Equivalence litre / Kg
I9: sur la base eau : 1L = 1Kg | M9: Saisissez vos valeurs
I10: Litres (l.) | J10: Centilitres (cl.) | K10: Décilitres (dl.) | L10: Kilogrammes (kg.) | M10: Kg | N10: hg | O10: dag | P10: gr
M11: L | N11: dl | O11: cl | P11: ml
I12: 1litre | J12: 100 cl | K12: 10 dl | L12: 1 kg | M12: 1 | N12: 0 | O12: 0 | P12: 0
I13: 1/2 litre | J13: 50 cl | K13: 5 dl | L13: 0,500 kg | M13: 0 | N13: 5 | O13: 0 | P13: 0
I14: 1/4 litre | J14: 25 cl | K14: 2,5 dl | L14: 0,250 kg | M14: 0 | N14: 2 | O14: 5 | P14: 0
I15: 1/8 litre | J15: 12, 5 c | K15: 1,25 dl | L15: 0,125 kg | M15: 0 | N15: 1 | O15: 2 | P15: 5
I16: http://www.cuisinealafrancaise.com/fr/2-poids-et-mesures
B20: LIAISON AU TAPIOCA | I20: Equivalence litre / Kg | O20: Saisissez votre volume
I21: Saisissez vos valeurs | O21: 2.5 | P21: L | Q21: Kg
B22: POUR 1 LITRE DE SAUCE TERMINÉE | I22: Kg | J22: , | K22: hg | L22: dag | M22: gr | O22: =O21*10 -> 25 | P22: dl | Q22: hg
I23: L | K23: dl | L23: cl | M23: ml | O23: =O22*10 -> 250 | P23: cl | Q23: dag
B24: 30 gr | C24: pour lier 1L de soupe à l'oignon | I24: 0 | K24: 0 | L24: 0 | M24: 1 | O24: =O23*10 -> 2500 | P24: ml | Q24: gr
B25: 30 gr | C25: pour lier 200g de chair à saucisse pour tomates farcies | I25: sur la base eau : 1L = 1Kg
B26: 30 gr | C26: pour lier 1Kg de tomates concassées avec jus | I26: 1 gr = 2 zéros après la virgule du Kg
B27: 40 gr | C27: pour quiche avec 2 œufs
B28: 50 gr | C28: sauce bien liée épaisse | I28: SERVICE DES SAUCES | K28: Plat mode de cuisson | M28: Grammages sauce p.p. | N28: 1 Kg pour :
B29: 60 gr | C29: plus 8 œufs pour crème patissière
B30: 60 gr | C30: un velouté ou une sauce veloutée | I30: Sans sauce | K30: grillé,frit,nature
B31: 70/80 gr | C31: béchamelle gluante, solidification à froid, donc épaississement important lors de la chute en température | I31: Déglaçage | K31: roti,poélé | M31: 20/30 g | N31: 33 à 50 p.
I32: Sauce courte | K32: pièces sautées | M32: 40/50 g | N32: 20 à 25 p.
B33: 90 gr | C33: pour lier 1L de lait pour gratin d'épinards avec 4 œufs et 120g de gruyère | I33: Sauce longue | K33: ragoûts,braisés | M33: 60/80 g | N33: 12 à 16 p.
I34: Bouillon | K34: pochés,plats complets | M34: 90/150 g | N34: 6 à 11 p.
B36: Quantités nettes à prévoir : Mater - Prim - Adul - Adul+ | H36: PURÉE DÉSHYDRATÉE
B37: Grammages nets | D37: Quantité Totale | E37: =(B39*B42)+(C39*C42)+(D39*D42)+(E39*E42) -> 228.85 | H37: Purée déshydratée | I37: Eau | J37: Lait déshydraté | K37: Lait frais | L37: Crème fraiche | M37: Beurre | N37: Poids reconstitué
H38: 0.12 | I38: 1 | J38: 0.11 | K38: 0 | L38: 0.01 | M38: 0.005 | N38: =SUM(H38:M38) -> 1.245
B39: 0.065 | C39: 0.075 | D39: 0.12 | E39: 0.15
H40: =(H38/N38)*N40 -> 2.120481928 | I40: =(I38/N38)*N40 -> 17.67068273 | J40: =(J38/N38)*N40 -> 1.9437751 | K40: =(K38/N38)*N40 -> 0 | L40: =(L38/N38)*N40 -> 0.1767068273 | M40: =(M38/N38)*N40 -> 0.08835341365 | N40: 22
B41: Maternelles | C41: Primaires | D41: Adultes | E41: Adultes +
B42: 920 | C42: 1700 | D42: 240 | E42: 85 | H42: Poids à l'arrondi supérieur
H43: =ROUNDUP(H40,2) -> 2.13 | I43: 17.68 | J43: 1.95 | K43: 0 | L43: 0.18 | M43: 0.09 | N43: =SUM(H43:M43) -> 22.03
B44: Effectifs | C44: =SUM(B42:E42) -> 2945 | D44: Parts Adultes | E44: =IF(E37=0,0,E37/D39) -> 1907.083333
H45: Saisissez vos valeurs dans les cellules fond ivoire ou jaune
B46: Saisissez vos valeurs dans les cellules fond ivoire ou jaune
D48: Combien faut-il commander pour des effectifs et des grammages différents
D50: Petit utilitaire d'Aide à la décision
G52: Saisissez vos effectifs | H52: 250 | I52: 620 | J52: 37 | K52: 14 | L52: =SUM(H52:K52) -> 921 | M52: couverts
G53: et vos grammages nets à servir | H53: 0.045 | I53: 0.07 | J53: 0.11 | K53: 0.13 | M53: % de perte | N53: 25 | O53: @
G54: Familles de convives | H54: Mater | I54: Prim | J54: Adultes | K54: Adultes + | L54: Quantités à Prévoir
G55: Net à servir : | H55: =H53*H52 -> 11.25 | I55: =I53*I52 -> 43.4 | J55: =J53*J52 -> 4.07 | K55: =K53*K52 -> 1.82 | L55: =SUM(H55:K55) -> 60.54 | N55: Net
G56: Brut à Commander | H56: =H55/(100-N53)*100 -> 15 | I56: =I55/(100-N53)*100 -> 57.86666667 | J56: =J55/(100-N53)*100 -> 5.426666667 | K56: =K55/(100-N53)*100 -> 2.426666667 | L56: =SUM(H56:K56) -> 80.72 | N56: Brut
L57: =L56-L55 -> 20.18 | N57: poids de perte
L58: =(L57/L52)*1000 -> 21.91096634 | N58: en moyenne par convive
E59: @ | F59: Facultatif Mais si vous saisissez un % la question à vous poser c'est : le produit brut ou cru perd comblien au parage ou en cuisson
F60: Vous obtiendrez le poids brut à commander
C64: Composition d'une garniture "COUSCOUS"
C65: POIDS NET A FABRIQUER | F65: 1 | G65: =F65 -> 1 | H65: Net cuit | J65: perte en cuisson | K65: Poids brut à mettre en œuvre
C66: carottes coupées | F66: 25 | G66: =G65 -> 1 | H66: =(G66*F66)/100 -> 0.25 | J66: 20 | K66: =H66/(100-J66)*100 -> 0.3125
C67: courgettescoupées | F67: 20 | G67: =G65 -> 1 | H67: 0.2 | J67: 25 | K67: 0.2666666667
C68: navets coupé | F68: 15 | G68: =G65 -> 1 | H68: 0.15 | J68: 20 | K68: 0.1875
C69: pois chiches pré-cuits | F69: 15 | G69: =G65 -> 1 | H69: 0.15 | J69: 0 | K69: 0.15
C70: garniture de céléri branche | F70: 10 | G70: =G65 -> 1 | H70: 0.1 | J70: 20 | K70: 0.125
C71: poivrons rouges coupés | F71: 7.5 | G71: =G65 -> 1 | H71: 0.075 | J71: 20 | K71: 0.09375
C72: poivrons verts coupés | F72: 7.5 | G72: =G65 -> 1 | H72: 0.075 | J72: 20 | K72: 0.09375
C73: Total | F73: =SUM(F66:F72) -> 100
C77: COMPOSITION ET SERVICE D'UN PLAT COMPLET
C78: Veullez saisir les informations dans les cellules fond de couleur ivoire.
C79: SERVICE EN FONCTION DES EFFECTIFS
C80: =CELL("nomfichier") -> E:\0-UPRT\1-UPRT.FR-SITE-WEB\ff-fiches-fabrications\ff-fiches-fabrication-maj-08-2020\[OK.Modèle.fiche.F.B2.2022-25.lignes.avec.MFC.xlsm]FF.12-Nota
C81: COUSCOUS
E82: Document édité le : | G82: =TODAY() -> 2022-02-17 | J82: =NOW() -> 44609.72338
C83: 1 | D83: Effectifs à saisir
D84: Famille de convives | H84: Mater | I84: Prim | J84: Adultes | K84: Adultes + | L84: Ainés
D85: Total Effectifs | G85: =SUM(H85:L85) -> 2170 | H85: 550 | I85: 920 | J85: 340 | K85: 150 | L85: 210
C87: 2 | D87: grammages ou nombre de Morceaux ou tranches à saisir
D88: haut de cuisse de poulet | G88: =(H88*H85)+(I88*I85)+(J88*J85)+(K88*K85)+(L88*L85) -> 1470 | H88: 0 | I88: 1 | J88: 1 | K88: 0 | L88: 1
D89: pilon de poulet | G89: =(H89*H85)+(I89*I85)+(J89*J85)+(K89*K85)+(L89*L85) -> 850 | H89: 1 | I89: 0 | J89: 0 | K89: 2 | L89: 0
D90: merguez | G90: =(H90*H85)+(I90*I85)+(J90*J85)+(K90*K85)+(L90*L85) -> 1895 | H90: 0.5 | I90: 1 | J90: 1 | K90: 1 | L90: 1
D91: Agneau en morceaux | G91: =(H91*H85)+(I91*I85)+(J91*J85)+(K91*K85)+(L91*L85) -> 1190 | H91: 0 | I91: 0 | J91: 2 | K91: 2 | L91: 1
D92: Agneau boulettes | G92: =(H92*H85)+(I92*I85)+(J92*J85)+(K92*K85)+(L92*L85) -> 2540 | H92: 1 | I92: 2 | J92: 0 | K92: 1 | L92: 0
H93: Mater | I93: Prim | J93: Adultes | K93: Adultes + | L93: Ainés
G94: Total Mx par convive | H94: =SUM(H88:H93) -> 2.5 | I94: =SUM(I88:I93) -> 4 | J94: =SUM(J88:J93) -> 4 | K94: =SUM(K88:K93) -> 6 | L94: =SUM(L88:L93) -> 3
C96: 3 | D96: légumes couscous cuits | G96: =(H96*H85)+(I96*I85)+(J96*J85)+(K96*K85)+(L96*L85) -> 208.6 | H96: 0.06 | I96: 0.08 | J96: 0.15 | K96: 0.2 | L96: 0.1
C98: 4 | D98: Semoule cuite | G98: =(H98*H85)+(I98*I85)+(J98*J85)+(K98*K85)+(L98*L85) -> 213.5 | H98: 0.06 | I98: 0.1 | J98: 0.12 | K98: 0.15 | L98: 0.12
C100: 5 | D100: Bouillon | G100: =(H100*H85)+(I100*I85)+(J100*J85)+(K100*K85)+(L100*L85) -> 237.5 | H100: 0.06 | I100: 0.1 | J100: 0.15 | K100: 0.2 | L100: 0.15
C104: Comment respecter un grammage à servir Exemple N° 1
C105: Police de couleur pour saisir vos valeurs Noir ou gris = formules
C106: Les quantités consommées par les enfants dépendent :de l'âge, de la saison, du goût, de l'influence des camarades,de l'activité phisique et/ou du grignotage en récréation sans parler du verre de lait (long à digérer) servi parfois trop près de l'heure du repas
C110: Au repas si l'enfant mange beaucoup de pain avec ou en remplacement du plat proposé; les quantités ingérées seront d'autant diminuées. Pour limiter le "gaspillage" et satisfaire les "gourmants"; vous pouvez avoir recours à cet exemple de service.
C114: POSSON PANÉ | G114: Poids unitaire du produit | I114: 0.09 | J114: Grammages à servir | L114: 0.12
C117: =IF(E117="","produit à servir","produits entiers à couper en ") -> produits entiers à couper en | E117: =IF(K124=1,"",K124) -> 1.5 | F117: =LARGE(F125:F129,1) -> 3 | G117: parts | H117: pour | I117: =LARGE(G125:G129,1) -> 2 | J117: enfants
C120: =IF(D120="","MOINS","Servir ") -> Servir | D120: =IF(F117-1=0,"",F117-1) -> 2 | E120: =IF(D120="","",IF(G120=1,"produits entiers de","produits coupés en ")) -> produits entiers de | G120: =IF(D120="","",I117/D120) -> 1 | H120: =IF(D120="","","parts") -> parts | I120: =IF(D120="","","grammage unitaire") -> grammage unitaire | K120: =IF(D120="","",I114/G120) -> 0.09
C122: =IF(D120="","","plus") -> plus | D122: =IF(D120="","",F117-D120) -> 1 | E122: =IF(D122="","","produit coupé en ") -> produit coupé en | G122: =IF(E122="","",I117) -> 2 | H122: =IF(E122="","","parts") -> parts | J122: =IF(D122="","moins"," de") -> de | K122: =IF(E122="",I114-L114,I114/G122) -> 0.045
C124: Poids produit à servir | D124: Poids produit envoyé | E124: Écart de poids | F124: Meilleur rapport | H124: produits entiers | I124: pour | K124: =LARGE(L125:L129,1) -> 1.5 | L124: =SMALL(E125:E129,COUNTIF(E125:E129,0)+1) -> 0.03
C125: =L114*I125 -> 0 | D125: =I114*H125 -> 0.09 | E125: =D125-C125 -> 0.09 | F125: =IF(E125=L124,H125,0) -> 0 | G125: =IF(F125>0,I125,0) -> 0 | H125: 1 | I125: =INT(J125) -> 0 | J125: =D125/L114 -> 0.75 | K125: =IF(F125=0,0,F125/G125) -> 0 | L125: =ROUNDDOWN(K125,1) -> 0
C126: =L114*I126 -> 0.12 | D126: =I114*H126 -> 0.18 | E126: =D126-C126 -> 0.06 | F126: =IF(E126=L124,H126,0) -> 0 | G126: =IF(F126>0,I126,0) -> 0 | H126: 2 | I126: =INT(J126) -> 1 | J126: =D126/L114 -> 1.5 | K126: =IF(F126=0,0,F126/G126) -> 0 | L126: =ROUNDDOWN(K126,1) -> 0
C127: =L114*I127 -> 0.24 | D127: =I114*H127 -> 0.27 | E127: =D127-C127 -> 0.03 | F127: =IF(E127=L124,H127,0) -> 3 | G127: =IF(F127>0,I127,0) -> 2 | H127: 3 | I127: =INT(J127) -> 2 | J127: =D127/L114 -> 2.25 | K127: =IF(F127=0,0,F127/G127) -> 1.5 | L127: =ROUNDDOWN(K127,1) -> 1.5
C128: =L114*I128 -> 0.36 | D128: =I114*H128 -> 0.36 | E128: =D128-C128 -> 0 | F128: =IF(E128=L124,H128,0) -> 0 | G128: =IF(F128>0,I128,0) -> 0 | H128: 4 | I128: =INT(J128) -> 3 | J128: =D128/L114 -> 3 | K128: =IF(F128=0,0,F128/G128) -> 0 | L128: =ROUNDDOWN(K128,1) -> 0
C129: =L114*I129 -> 0.36 | D129: =I114*H129 -> 0.45 | E129: =D129-C129 -> 0.09 | F129: =IF(E129=L124,H129,0) -> 0 | G129: =IF(F129>0,I129,0) -> 0 | H129: 5 | I129: =INT(J129) -> 3 | J129: =D129/L114 -> 3.75 | K129: =IF(F129=0,0,F129/G129) -> 0 | L129: =ROUNDDOWN(K129,1) -> 0
C132: Tableaux pour service ou cuisson
C133: 1 = saisissez le poids dans un contenant (une louche - une barquette etc,,)
E134: 2 = saisissez le poids de la portion à servir par convive
C135: Police de couleur pour saisir vos valeurs Noir = formules
C136: Poids dans 1 contenant | E136: Poids d' une Portion
C138: 10 | E138: 0.1 | K138: 1 louche ou 1 contenant pour | L138: =C138/E138 -> 100
C139: 1 | E139: 0.07 | K139: 1 louche ou 1 contenant pour | L139: =C139/E139 -> 14.28571429
C141: 1 = saisissez le poids dans un contenant (une louche - une barquette etc,,)
E142: 2 = saisissez le nombre de portions à servir
C143: Poids dans 1 contenant | E143: Nb de Portions à servir | G143: Exemples | M143: Poids de la portion
C145: 0.9 | E145: 7 | G145: 1 melon de | J145: =C145 -> 0.9 | K145: pour | L145: =E145 -> 7 | M145: =C145/E145 -> 0.1285714286
C146: 3.5 | E146: 20 | G146: 1 plaque hachis parmentier | J146: =C146 -> 3.5 | K146: pour | L146: =E146 -> 20 | M146: =C146/E146 -> 0.175
C150: Total Mx dans 1 contenant | E150: Portion Nb de Mx par portion | G150: Nb portions | H150: Police de couleur pour saisir vos valeurs Noir = formules
C152: 32 | E152: 1.45 | G152: =C152/E152 -> 22.06896552 | H152: QUOI ?
C154: EXEMPLES
C155: 32 | E155: 1.2 | G155: =C155/E155 -> 26.66666667 | H155: 32 tranches par plaque ( 1 plaque pour 26 maternelles)
C156: 12 | E156: 1 | G156: 12 | H156: table de 12
C157: 32 | E157: 2 | G157: 16 | H157: 32 tranches par plaque ( 1 plaque pour 16 adultes)
C158: 32 | E158: 1.2 | G158: 26.66666667 | H158: 32 tranches par plaque ( 1 plaque pour 16 adultes)
C159: 33 | E159: 1.3 | G159: 25.38461538 | H159: 1 plaque pour 25 ( 1 tranche par maternelle plus RAB )
C160: 33 | E160: 1.5 | G160: 22 | H160: 33 tranches par plaque ( 1.5 tranches par primaire)
C161: 30 | E161: 1.2 | G161: 25 | H161: 1 plaque pour 25 ( 1 morceau par maternelle plus RAB )
C162: 33 | E162: 1.6 | G162: 20.625 | H162: 1 plaque pour 20 ( 1 morceau par primaire plus RAB )
C163: 33 | E163: 2 | G163: 16.5 | H163: 1 plaque pour 16 ( 1 morceau par adulte plus RAB )
C164: 48 | E164: 6 | G164: 8 | H164: 1 plaque pour 8 ( 6 morceau par adulte + )
C165: 1 | E165: 0.25 | G165: 4 | H165: 1 CITRON POUR 4
C166: 25 | E166: 1 | G166: 25 | H166: 1 Boite de compote pour 25
C168: Le contenant peut être une louche pour le service - un gastro pour la cuisson etc…
C169: Les Mx cela peut s'appliquer à des morceaux de bourguignon mais aussi des tomates farcies ou des oreillons de pêches au sirop pour le dessert etc..
A175: COMPLÉMENTS
B177: Mise à jour du 3 Janvier 2017
A180: ICI | B180: QUANTITÉS A SERVIR OU A COMMANDER | N180: 1
B182: DESCRIPTIF
B183: Saisissez vos effectifs - Saisissez vos quantités pour vos familles de convives et vous obtiendrez le net à servir. Avez-vous un pourcentage de perte (à l'épluchage -au parage - en cuisson ou autre)…saisissez le et vous obtiendrez les quantités brutes à commander
L188: ❶
K189: Que traitez vous : des Kg des litres des pièces - des portions …des poires etc… | L189: pommes
F191: Famille de convives | G191: Mater | H191: Prim | I191: Adultes | J191: Adultes + | K191: Seniors
F192: Saisissez vos effectifs | G192: 50 | H192: 500 | I192: 150 | J192: 13 | K192: 13 | L192: =SUM(G192:K192) -> 726 | M192: couverts
F193: Saisissez vos quantités nets à servir | G193: 0.5 | H193: 1 | I193: 1 | J193: 2 | K193: 1 | L193: =SUM(G193:K193)/COUNTIF(G193:K193,">0") -> 1.1 | M193: de moyenne
F194: Net à préparer : | G194: =G193*G192 -> 25 | H194: =H193*H192 -> 500 | I194: =I193*I192 -> 150 | J194: =J193*J192 -> 26 | K194: =K193*K192 -> 13 | L194: =SUM(G194:K194) -> 714 | M194: =L189 -> pommes
G195: =L189 -> pommes | H195: =L189 -> pommes | I195: =L189 -> pommes | J195: =L189 -> pommes | K195: =L189 -> pommes
C196: % de perte | D196: 10 | E196: ❷
F197: Brut à Commander | G197: =G194/(100-D196)*100 -> 27.77777778 | H197: =H194/(100-D196)*100 -> 555.5555556 | I197: =I194/(100-D196)*100 -> 166.6666667 | J197: =J194/(100-D196)*100 -> 28.88888889 | K197: =K194/(100-D196)*100 -> 14.44444444 | L197: =SUM(G197:K197) -> 793.3333333 | M197: =L189 -> pommes
G198: =L189 -> pommes | H198: =L189 -> pommes | I198: =L189 -> pommes | J198: =L189 -> pommes | K198: =L189 -> pommes
B200: ❶ | C200: Collez une des unités suivante ou saisissez un nom de produit
C201: litres | F201: Kg | I201: Portions | L201: Pièce(s)
B202: ❷ | C202: si vous n'avez pas de perte ne saisissez rien
B203: Familles de convives :Mater = enfants Maternelles - Prim = enfants de l'enseignement Primaire - Adulte = sédentaire - Adulte + = travailleur de force - Seniors = nos Ainés - je classe les Adolescennts en Adultes +
B205: Adresse PC | C205: =CELL("nomfichier") -> E:\0-UPRT\1-UPRT.FR-SITE-WEB\ff-fiches-fabrications\ff-fiches-fabrication-maj-08-2020\[OK.Modèle.fiche.F.B2.2022-25.lignes.avec.MFC.xlsm]FF.12-Nota
B206: Mise à jour | C206: du 03-01-2017 - Annule et remplace les versions précédentes
B207: Adaptation : Joël Leboucher..UPRT "Union des Personnels de la Restauration Territoriale" membre du réseau RESTAU'CO
A209: ICI | B209: COMBIEN POURRIEZ VOUS SERVIR AVEC | N209: 2
B211: DESCRIPTIF
B212: Vous avez préparé ou il vous reste un poids X d'une préparation. Avec ce poids combien de convives ou combien de portions pourrez vous servir
L217: ❶
K218: Poids de votre préparation | L218: 2.4
F221: Famille de convives | G221: Mater | H221: Prim | I221: Adultes | J221: Adultes + | K221: Seniors
F222: Saisissez vos grammages nets à servir | G222: 0.05 | H222: 0.08 | I222: 0.11 | J222: 0.125 | K222: 0.07 | L222: =SUM(G222:K222)/COUNTIF(G222:K222,">0") -> 0.087 | M222: de moyenne
F223: Vous pourrIez servir | G223: =L218/G222 -> 48 | H223: =L218/H222 -> 30 | I223: =L218/I222 -> 21.81818182 | J223: =L218/J222 -> 19.2 | K223: =L218/K222 -> 34.28571429 | L223: Portions / pièces / parts
B224: ❶ | C224: A vous de saisir un poids
B225: BONUS
L226: ❷
K227: Que traitez vous : des Kg des litres des pièces - des portions …des poires etc… | L227: Kg
F229: Saisissez vos effectifs | G229: 50 | H229: 500 | I229: 150 | J229: 13 | K229: 13 | L229: =SUM(G229:K229) -> 726 | M229: couverts
F230: Vous devriez préparer : | G230: =G222*G229 -> 2.5 | H230: =H222*H229 -> 40 | I230: =I222*I229 -> 16.5 | J230: =J222*J229 -> 1.625 | K230: =K222*K229 -> 0.91 | L230: =SUM(G230:K230) -> 61.535 | M230: =L227 -> Kg
G231: =L227 -> Kg | H231: =L227 -> Kg | I231: =L227 -> Kg | J231: =L227 -> Kg | K231: =L227 -> Kg
C232: % de perte | D232: 50 | E232: ❸
F233: Brut à Commander | G233: =G230/(100-D232)*100 -> 5 | H233: =H230/(100-D232)*100 -> 80 | I233: =I230/(100-D232)*100 -> 33 | J233: =J230/(100-D232)*100 -> 3.25 | K233: =K230/(100-D232)*100 -> 1.82 | L233: =SUM(G233:K233) -> 123.07 | M233: =L227 -> Kg
G234: =L227 -> Kg | H234: =L227 -> Kg | I234: =L227 -> Kg | J234: =L227 -> Kg | K234: =L227 -> Kg
B235: ❸ | C235: si vous n'avez pas de perte ne saisissez rien
B236: ❷ | C236: Collez une des unités suivante ou saisissez un nom de produit
C237: Kg | F237: Portions | I237: Pièce(s) | L237: litres
B239: Familles de convives :Mater = enfants Maternelles - Prim = enfants de l'enseignement Primaire - Adulte = sédentaire - Adulte + = travailleur de force - Seniors = nos Ainés - je classe les Adolescennts en Adultes +
B241: Adresse PC | C241: =CELL("nomfichier") -> E:\0-UPRT\1-UPRT.FR-SITE-WEB\ff-fiches-fabrications\ff-fiches-fabrication-maj-08-2020\[OK.Modèle.fiche.F.B2.2022-25.lignes.avec.MFC.xlsm]FF.12-Nota
B242: Mise à jour | C242: du 03-01-2017 - Annule et remplace les versions précédentes
B243: Adaptation : Joël Leboucher..UPRT "Union des Personnels de la Restauration Territoriale" membre du réseau RESTAU'CO
J246: Prix D'ACHAT / Prix de VENTE
C247: PRIX D'ACHAT | D247: 0.44 | F247: PRIX D'ACHAT | G247: 100 | I247: PRIX VENTE | J247: 115
C248: % d'augmentation | D248: 60 | F248: Augmentation | G248: 10 | I248: PRIX D'ACHAT | J248: 133
C249: Augmentation | D249: =D247*D248% -> 0.264 | F249: PRIX VENTE | G249: =IF(G247=0,0,G247+G248) -> 110 | I249: Augmentation | J249: =IF(J247=0,0,IF(J248=0,0,J247-J248)) -> -18
C250: PRIX VENTE | D250: =((D247*D248)/100)+D247 -> 0.704 | F250: % d'augmentation | G250: =IF(G247=0,0,IF(ISBLANK(G247),0,(G248/G247)*100)) -> 10 | I250: % d'augmentation | J250: =IF(J248=0,0,IF(ISBLANK(J248),0,(J249/J248)*100)) -> -13.53383459
C252: PRIX D'ACHAT | D252: 5.897 | F252: PRIX VENTE | G252: 9.64 | I252: PRIX VENTE | J252: 100
C253: PRIX VENTE | D253: 9.64 | F253: % d'augmentation | G253: 63.5 | I253: Augmentation | J253: 50
C254: Augmentation | D254: =IF(D252=0,0,IF(D253=0,0,D253-D252)) -> 3.743 | F254: Augmentation | G254: =G252-G255 -> 3.743975535 | I254: PRIX D'ACHAT | J254: =IF(J252=0,0,IF(ISBLANK(J252),0,J252-J253)) -> 50
C255: % d'augmentation | D255: =IF(D252=0,0,IF(ISBLANK(D252),0,(D254/D252)*100)) -> 63.47295235 | F255: PRIX D'ACHAT | G255: =(G252/(100+G253)*100) -> 5.896024465 | I255: % d'augmentation | J255: =IF(J254=0,0,IF(ISBLANK(J253),0,(J253/J254)*100)) -> 100
B256: Saisissez vos valeurs dans les cellules fond ivoire ou jaune
B258: Aide à la décision | J258: Pourcentages NET / BRUT
C259: POIDS NET | D259: 1 | F259: POIDS NET | G259: 10 | I259: POIDS BRUT | J259: 10
C260: % de PERTE | D260: 50 | F260: POIDS de PERTE | G260: 2 | I260: POIDS NET | J260: 3.2
C261: POIDS DE PERTE | D261: =D262*D260% -> 1 | F261: POIDS BRUT | G261: =IF(G259=0,0,G259+G260) -> 12 | I261: POIDS DE PERTE | J261: =IF(J259=0,0,IF(J260=0,0,J259-J260)) -> 6.8
C262: POIDS BRUT | D262: =D259/(100-D260)*100 -> 2 | F262: % de PERTE | G262: =IF(G259=0,0,G260/G261) -> 0.1666666667 | I262: % de PERTE | J262: =IF(J259=0,0,J261/J259) -> 0.68
C264: POIDS NET | D264: 100 | F264: POIDS BRUT | G264: 183 | I264: POIDS BRUT | J264: 100
C265: POIDS BRUT | D265: 150 | F265: % de PERTE | G265: 40 | I265: POIDS de PERTE | J265: 15
C266: POIDS DE PERTE | D266: =IF(D264=0,0,IF(D265=0,0,D265-D264)) -> 50 | F266: POIDS DE PERTE | G266: =G264*G265% -> 73.2 | I266: POIDS NET | J266: =IF(J264=0,0,IF(J265=0,0,J264-J265)) -> 85
C267: % de PERTE | D267: =IF(D264=0,0,IF(D265=0,0,D266/D265)) -> 0.3333333333 | F267: POIDS NET | G267: =G264-G266 -> 109.8 | I267: % de PERTE | J267: =IF(J264=0,0,IF(J265=0,0,J265/J264)) -> 0.15
B268: Saisissez vos valeurs dans les cellules fond ivoire ou jaune
A270: RÉFLEXION SUR DES MODÈLE DE RÉPERTOIRE
E273: Créer un ou plusieurs répertoires n'est pas tâche facile…à chacun de classer comme il le souhaite
F274: par famille de produits
F275: par technique
F276: par ingrédients
F277: etc...autant de possibilités que de façons de penser
E278: vous pouvez utiliser un disque dur externe qui vous suivra partout
C280: Répertoire Patisserie | I280: Répertoire "Postits" Alpha par type de fabrication si possible
D282: Entremets
... 33 more rows
